Workbook

Sheet Welcome
C3: Enhanced Interchange Safety Analysis Tool
G6: Build 06.10
B7: FOREWORD
B8: This software can be used to evaluate the relationship between various highway design configurations and the expected average crash frequency. The profession's understanding of the influence of geometric design and traffic control features on safety is an evolving process. As additional information becomes available, this software will be updated to include the latest findings.
B12: The "Introduction" worksheet provides useful information about this software. This information should be read prior to first use of the software. The Introduction worksheet can be selected from the tabs at the bottom of the screen. After reading the Introduction, the other worksheets can be used to evaluate a freeway facility.
B16: This software is intended for use with the document identified below. The analyst is encouraged to read this document so that he or she will have an understanding of how best to use the software and interpret its output.
B19: Bonneson, J., M. Pratt, S. Geedipally, D. Lord, T. Neuman, and J. Moller. Enhanced Interchange Safety Analysis Tool: User Manual. Texas Transportation Institute, Texas A&M University, College Station, Texas, July 2013.
B22: ACKNOWLEDGMENT OF SPONSORSHIP
B23: This work was sponsored by the American Association of State Highway and Transportation Officials (AASHTO), in cooperation with the Federal Highway Administration, and was conducted in the National Cooperative Highway Research Program (NCHRP), which is administered by the Transportation Research Board of the National Academies.
B27: DISCLAIMER
B28: This material represents the computational engine implementation of the freeway and interchange methodologies developed for the second edition of the Highway Safety Manual (HSM).
B31: This computational engine is offered as is, without warranty or promise of support of any kind either expressed or implied. Under no circumstance will the National Academy of Sciences or the Transportation Research Board (TRB) be liable for any loss or damage caused by the installation or use of this product. The National Academy of Sciences, TRB, and the TRB National Cooperative Highway Research Program (NCHRP) make no representation or warranty of any kind, expressed or implied, in fact or in law, including without limitations the warranty of merchantability or the warranty of fitness for a particular purpose, and shall not in any case be liable for any consequential or special damages.
B38: This computational engine is subject to change without notice and does not represent a commitment on the part of the National Academy of Sciences, the TRB Committee on Highway Safety Performance, TRB, or the NCHRP to notify any person of such revisions.
B42: COPYRIGHT © 2011

Sheet Introduction
C3: INTRODUCTION
B6: PREFACE
B7: The Enhanced Interchange Safety Analysis Tool (ISATe) provides information about the relationship between geometric design features and safety. It is based on research that quantified the relationship between various design elements (e.g., lane width) or design components (e.g., left-turn bay) and average crash frequency. The information provided in ISATe is intended to help designers make informed judgments about the safety performance of design alternatives.
B12: ISATe does not define design controls and does not represent a design requirement. It is not a substitute for engineering judgment. Further, it does not represent a legal requirement for roadway design.
B15: As discussed in the Highway Safety Manual, analysts should be aware that variability in crash data is so large that crash counts averaged over only a few years may not reveal telling information about the true average crash frequency at a given site. This large variability, combined with the subtle influence that most geometric features have on safety, can make it difficult to observe the safety effect of a change in geometry in the year or two following the change. In many cases, the change must be implemented at many sites and monitored for several years before its true effect on safety can be detected using crash data.
B21: EVALUATION SCOPE
B22: ISATe can be used to evaluate the following basic freeway and interchange components:
B24: ● Freeway sections (with or without speed-change lanes).
B25: ● Ramps or collector-distributor (C-D) roads.
B26: ● Crossroad ramp terminals.
B28: It can also be used to evaluate combinations of components, as may exist along a freeway section or in the vicinity of an interchange. Examples include:
B31: ● A freeway section comprised of several consecutive freeway segments.
B32: ● A freeway section within an interchange area with one or more freeway speed-change lanes.
B33: ● An interchange ramp comprised of one or more segments.
B34: ● An interchange consisting of one or more ramps and related ramp terminals.
B36: ISATe can be used to evaluate freeways and interchanges in urban and rural areas. It cannot be used to evaluate crossroad segments at an interchange. If the crossroad needs to be evaluated, then one of the following Part C methods in the Highway Safety Manual may be used for this purpose (as determined by the area type and crossroad cross section):
B40: ● Chapter 10 - Predictive Method for Rural Two-Lane Roads.
B41: ● Chapter 11 - Predictive Method for Rural Multilane Highways.
B42: ● Chapter 12 - Predictive Method for Urban and Suburban Arterials.
B44: WORKSHEET SELECTION
B45: ISATe includes the following worksheets:
B47: ● Welcome | E47: Includes a foreword, acknowledgements, and disclaimer.
B48: ● Introduction | E48: Brief overview of ISATe.
B49: ● Main | E49: Input data to describe evaluation and start calculations.
B50: ● Input Freeway Segments | E50: Input data describing freeway segments and speed-change lanes.
B51: ● Input Ramp Segments | E51: Input data describing ramp and C-D road segments.
B52: ● Input Ramp Terminals | E52: Input data describing crossroad ramp terminals.
B53: ● Output Summary | E53: Summary of analysis results.
B54: ● Output Freeway Segments | E54: Detailed listing of analysis results for freeway segments and speed-change lanes.
B55: ● Output Ramp Segments | E55: Detailed listing of analysis results for ramp and C-D road segments.
B56: ● Output Ramp Terminals | E56: Detailed listing of analysis results for crossroad ramp terminals.
B57: ● Calibration Factors | E57: Calibration factors for predictive models and crash type distributions.
B59: >>> Always proceed to the Main worksheet to start the evaluation process. <<<
B61: USER'S GUIDE
B62: Each spreadsheet is designed in a consistent manner and their use is similar. The cells with a blue background are for user input. Most of the other cells are locked to prevent inadvertent changes to cell contents. A sample portion of the Main worksheet and the Input Freeway Segments worksheet is shown below.
B66: Main Worksheet
D81: Place cursor over the red corner to obtain | I81: Drop-down list. Click on grey square
D82: a pop-up message with useful information. | I82: to show list. Click on input choice.
B84: General Information
B85: The analyst can enter any descriptive information about the location being analyzed. Use the blue cells to enter this data.
B87: Crash Data Description
B88: Indicate whether crash data will be input. If input, these data will provide a more reliable estimate of the expected crash frequency. The crash data can be provided for each site, or for the collective set of sites (i.e., for the entire project). Of these two options, providing crash data for each site will provide a more reliable estimate of the expected crash frequency. The analyst can consult Appendix B of the ISATe User Manual for more information on this topic.
B93: Study Period and Crash Period
B94: All evaluations must have a specified study period. This period represents the consecutive years for which an estimate of the crash frequency is desired. It can represent past years, the current year, or some future years.
B97: The Study Period is defined by the "First year of analysis" and the "Last year of analysis." Input data (i.e., geometric design and traffic data) will need to be provided to describe conditions during the study period.
B100: The Crash Period is optional. It is used if crash data are provided.
B102: The Crash Period is defined by the "First year of crash data" and the "Last year of crash data." Input data (i.e., geometric design and traffic data) will need to be provided to describe conditions during the crash period.
B105: Note that if crash data are provided, then input data are needed for BOTH the study period and the crash period. These periods may or may not represent the same time period. Typically, the crash period is for some number of past years and the study period is for some number of future years.
B109: Input Freeway Segment Worksheet | I109: Click on a button to execute macro code.
J125: Drop-down list. Click on grey square
J126: to show list. Click on input choice.
B128: Data entry in this worksheet (and the Input Ramp Segments and Input Ramp Terminals worksheets) should proceed from top to bottom. That is, it should proceed in the direction of increasing row number. Worksheet macro code monitors each input value and adjusts the color of the cells in the rows below (i.e., it identifies the appropriate input cells by changing their background color to blue and eliminates the unneeded input cells by changing their background color to white).
B133: Basic Roadway Data
B134: Enter a value, or make a selection in a drop-down list, for each input variable. Use the blue cells to enter this data. If the value entered is not within range, then a message is displayed indicating "Out of Range!". Re-enter a value that is within the indicated range.
B138: Alignment Data
B139: Data entry is the same as for Basic Roadway Data. If an input value suggests the need for additional input, then additional cells in the same column may be converted to blue and require an input value. Similarly, if an input value suggests that some input cells are not relevant, then these cells will be converted to white. Only data in blue cells will be used in the analysis. Data must be provided for all blue cells (unless stated otherwise).
B144: In the "Input Worksheet for Freeway Segments" graphic shown above, the row labeled "Horizontal curve in segment?" shows "No" for segment 1. This response indicates that segment 1 does not have a curve on it during the crash period or the study period. As a result, the rows labeled "Curve radius", "Length of curve", and "Length of curve in segment" have cells that are white (i.e., no curve so no curve data needed). In contrast, segment 2 has a curve on on both roadbeds of the divided freeway so "Both Dir." is input. As a result, the subsequent three cells are converted to blue and curve data are input. Note that the curve radius is 2,500 ft for the crash period and 3,500 ft for the study period. In this instance, the crash data correspond to a period of time where the curve radius was 2,500 ft but the agency is investigating the safety benefit of curve flattening on this segment.
B152: Traffic Data
B171: AADT volume must be provided for one year in either the crash period or study period. Desirably, AADT volume is provided for each year of interest. The cells associated with the crash period and the study period have a blue background.
B174: In the graphic above, the crash period is for years 2005 to 2007 and the study period is for years 2013 to 2015. If the AADT volume is unknown for one or more years, then the corresponding blue cell is left blank by the analyst. The missing AADT volumes are estimated using the rules described in Section C.5 in Part C of the Highway Safety Manual.
B178: Output Freeway Segments
B179: The output worksheet is divided into several sections. The first section lists the computed CMF values. The next section lists the estimated crash frequency, categorized by fatal-and-injury and property-damage-only crash severity categories. The next section lists the crash severity distribution. The next section lists some intermediate calculations and the last section lists the AADT values used in the calculations (including those values that were estimated because of missing AADT data).
B184: Crash Modification Factors
B201: This section summarizes the CMFs computed using the equations described in the Project 17-45 Final Report. Each CMF is associated with one geometric design or traffic control feature. Its value is 1.0 when the feature’s characteristics are the same as those used to define the base condition for the predictive model. The CMF value will be less than 1.0 if (1) the characteristics of associated feature are different from those of the base condition and (2) the sites that have this variation of the feature experience fewer crashes than otherwise similar sites but with feature characteristics consistent with base conditions. The Highway Safety Manual provides additional discussion of CMFs.
B208: Fatal-and-Injury Crash Frequency
B227: The expected average crash frequency for the freeway segment equals the sum of the expected multiple-vehicle-, single-vehicle-, ramp-entrance-, and ramp-exit-related crashes. It is an estimate of the long-run frequency of crashes for the segment. The expected fatal-and-injury crash frequency and the expected property-damage-only crash frequency are separately computed and summarized in the output worksheet.
B232: Crash Severity Distribution
B248: This section provides the severity distribution of crashes for each segment. The distribution for all segments combined is provided in the Output Summary worksheet.
B251: Calibration Factors
B252: Crash Frequency Models
B266: This section of the spreadsheet is intended for analysts that desire to adjust the predictive models to better match conditions in their jurisdiction. The calibration factors and default model coefficients provided (in yellow shaded cells) are representative of several states. The calibration factors should be used to calibrate the models to local conditions. Changes to the model coefficients should be made with care, and based on sound statistical modeling. Guidance for quantifying local calibration factors is provided in Appendix A of the ISATe User Manual.
B272: Crash Distribution
B288: Default values are provided for the distribution of crashes by area type, crash type, and crash type category. The values shown are representative of roadways on the state highway system in several states. Other values can be used, if desired, to tailor the estimates to local conditions.
B292: FREEWAY SPEED-CHANGE LANE LOCATION
B314: The entrance ramp speed-change lane is considered to coincide with the ramp entrance length (shown in the graphic above) and include all lanes associated with the freeway and ramp for a common travel direction. Similarly, the exit ramp speed-change lane is considered to coincide with the ramp exit length (shown above) and include all lanes associated with the freeway and ramp for a common travel direction.
B319: By applying the aforementioned definition, a speed-change-related crash is identified as a crash that is located between the taper point and the gore point and on the same side of the roadway as the ramp. This definition is likely to identify all speed-change-related crashes, but it may also identify some freeway crashes that are not associated with the speed-change lane. For this reason, some factors that influence crash frequency on freeway segments (e.g., lane width) may also influence crashes in the speed-change lane.
B325: Note that a typical weaving section does not have a speed-change lane at either of its ends.
B327: WEAVING LENGTH AND TYPE
B328: The weaving section geometry has some influence on safety. Three types are defined in the 2000 Highway Capacity Manual. Type B has unique features and is specifically addressed in the safety predictive method. Typical Type B weaving sections are shown in the graphic to the right.
B334: The length of the weaving section has an important influence on the operation and safety of the freeway segment. This influence relates to the degree to which the weaving activity is concentrated along the freeway. The convention used to measure this length is shown in the graphic below.
B347: The length of the weaving section on a collector-distributor road is measured using the same convention as for freeway weaving sections. The graphic above shows the convention used to measure weaving section length on collector-distributor roads.
B352: RAMP CURVE LOCATION
I354: Curves are located along the ramp or collector-distributor road using a linear referencing system. The beginning of the ramp is designated as ramp-mile 0.0.
I358: The gore point will often be used to define ramp-mile 0.0 for a ramp or C-D road. The gore point is located where the pair of solid white pavement edge markings that separate the ramp from the intersecting roadway are 2.0 ft apart.
I364: For exit ramps and C-D roads that diverge from the freeway (and entrance ramps that diverge from the crossroad using a speed-change lane), ramp-mile 0.0 is located where the gore point projects onto the ramp reference line. The ramp reference line is defined as the right edge of the ramp traveled way.
I371: For entrance ramps that intersect the crossroad, ramp-mile 0.0 is located where the ramp reference line intersects with the near edge of traveled way of the crossroad. The location of the ramp-mile 0.0 is shown in the graphic to the left.
B380: RAMP TERMINALS
B381: Ramp Terminal Configurations
B471: Ramp Terminal Boundaries
B491: The graphic above illustrates two crossroad ramp terminals with the D4 configuration. Each terminal represents a separate site. The two terminals are shown in the context of a diamond interchange. The arrangement shown is intended to illustrate the ramp terminal boundaries used for safety evaluation–it is not necessarily typical ramp terminal geometry.
B495: The free-flow loop ramp associated with the four-quadrant parclos (i.e., the A4 and B4 configurations) is not considered to be part of the nearby ramp terminal. All subsequent discussions where “ramp AADT” is identified for these two configurations are referring to the AADT of the diagonal entrance ramp or the AADT of the diagonal exit ramp. With one exception, the loop ramp of the A4 and B4 configuration is not explicitly addressed by the ramp terminal models. The exception is the right-turn channelization that serves traffic entering the loop ramp at the A4 configuration. It can be part of the ramp terminal design and its associated crashes are addressed by the predictive models.
B502: Number of Lanes for Exit Ramps (nex)
B536: The number of lanes serving the exit ramp (nex) is based on the count of lanes taken at the last point where all exiting movements are joined (i.e., at the channelization gore point if right-turn channelization is provided). All lanes counted need to be fully developed for 100 ft or more upstream from the point at which their respective movement intersects with the crossroad. The lane (or lanes) associated with the loop exit ramp at a B4 terminal configuration are not included in this count. The graphic above illustrates the application of this guidance.
B542: Skew Angle
B561: Skew angle is measured for the exit ramp. At a B4 terminal configuration, the skew angle represents that for the diagonal exit ramp (not the loop exit ramp). Skew angle is the acute angle between the crossroad centerline and a line along the center an imaginary vehicle stopped at the end of the exit ramp (i.e., where it joins the crossroad). The vehicle is centered in the traveled way. If vehicles can exit the ramp as left- or right-turn movements, then use a left-turning vehicle as the vehicle of reference. The skew angle is 0.0 degrees if the two reference lines intersect at 90 degrees.
B567: Median Width and Turn Bay Width
B586: The crossroad median width at an intersection is measured between the near edges of the traveled way associated with the opposing through traffic streams. It includes the width of the left shoulder and any left-turn lanes that are present.
B589: The left-turn bay width is measured from the near edge of the traveled way of the adjacent through lane to the lane marking (or curb face) that delineates the median.

Sheet Main
B3: Enhanced Interchange Safety Analysis Tool | AC3: Freeway | AG3: Ramp | AK3: Ramp
B4: General Information | AC4: Segments | AG4: Segments | AK4: Terminals
B5: Project description: | D5: Rural 4 Lane Freeway | AA5: First year: | AC5: =MIN($D7, AC7) -> 2010 | AG5: =MIN($D7, AG7) -> 2010 | AK5: =MIN($D7, AK7) -> 2010
B6: Analyst: | D6: KS | F6: Date: | G6: =NOW() -> 2016-10-29T23:04:08.490 | I6: Area type: | K6: Rural | AA6: Last year: | AC6: =MAX($D8,AC8) -> 2015 | AG6: =MAX($D8,AG8) -> 2015 | AK6: =MAX($D8,AK8) -> 2015
B7: First year of analysis: | D7: 2010 | AA7: First crash data year: | AC7: =AD7 -> 2010 | AD7: 2010 | AG7: =AH7 -> 2010 | AH7: 2010 | AK7: =AL7 -> 2010 | AL7: 2010
B8: Last year of analysis: | D8: 2015 | E8: =IF(D8<D7, "Note: must equal or exceed first year of analysis.", IF(D8-MIN(AC5,AG5,AK5)+1>24, "Note: last year must be less than or equal to "&TEXT(MIN(AC5,AG5,AK5)+24-1,"0"),".")) -> . | AA8: Last crash data year: | AC8: =MIN($D$8, AD8, AC7+4,YEAR(NOW())) -> 2014 | AD8: 2015 | AG8: =MIN($D$8, AH8, AG7+4,YEAR(NOW())) -> 2014 | AH8: 2015 | AK8: =MIN($D$8, AL8, AK7+4,YEAR(NOW())) -> 2014 | AL8: 2015
B9: Crash Data Description
B10: Freeway segments | G10: =IF(L11-I11>4, "Upper limit of 5 years of crash data.", ".") -> . | AA10: Freeway Segments | AE10: Ramp Segments | AI10: Ramp Terminals
G11: First year of crash data: | I11: 2010 | J11: Last year of crash data: | L11: 2014 | AA11: No crash data | AC11: No crash data | AE11: No crash data | AG11: No crash data | AI11: No crash data | AK11: No crash data
B12: Ramp segments | G12: =IF(L13-I13>4, "Upper limit of 5 years of crash data.", ".") -> . | AA12: Data for all segments combined | AE12: Data for all segments combined | AI12: Data for all terminals combined
G13: First year of crash data: | I13: 2005 | J13: Last year of crash data: | L13: 2007 | AA13: Data for each individual segment | AE13: Data for each individual segment | AI13: Data for each individual terminal
B14: Ramp terminals | G14: =IF(L15-I15>4, "Upper limit of 5 years of crash data.", ".") -> . | AB14: Data? | AC14: =IF(AC11=AA11, FALSE, TRUE) -> FALSE | AG14: =IF(AG11=AE11, FALSE, TRUE) -> FALSE | AK14: =IF(AK11=AI11, FALSE, TRUE) -> FALSE
G15: First year of crash data: | I15: 2005 | J15: Last year of crash data: | L15: 2007 | AB15: Project? | AC15: =IF(AC11=AA12,TRUE,FALSE) -> FALSE | AG15: =IF(AG11=AE12,TRUE,FALSE) -> FALSE | AK15: =IF(AK11=AI12,TRUE,FALSE) -> FALSE
B18: Program Control
B19: 1. Enter data in the Main, Input Freeway Segments, Input Ramp Segments, Input Ramp Terminals worksheets.
B20: 2. Click Perform Calculations button to start calculation process.
B24: 3. Review results in the Output Summary worksheet. Optionally, click the Print buttons to print the summary worksheets.
B25: 4. Optionally, detailed results can be reviewed in the Output Freeway Segments, Output Ramp Segments, Output Ramp Terminals worksheets.
B29: Warning Messages | D29: See note
B30: Freeway Segments | E30: Ramp Segments | H30: Ramp Terminals

Sheet Input Freeway Segments
E3: Input Worksheet for Freeway Segments
G4: ="Segment "& TEXT(INT((COLUMN()-5)/2),"0") -> Segment 1 | I4: ="Segment "& TEXT(INT((COLUMN()-5)/2),"0") -> Segment 2 | K4: ="Segment "& TEXT(INT((COLUMN()-5)/2),"0") -> Segment 3 | M4: ="Segment "& TEXT(INT((COLUMN()-5)/2),"0") -> Segment 4 | O4: ="Segment "& TEXT(INT((COLUMN()-5)/2),"0") -> Segment 5 | Q4: ="Segment "& TEXT(INT((COLUMN()-5)/2),"0") -> Segment 6 | S4: ="Segment "& TEXT(INT((COLUMN()-5)/2),"0") -> Segment 7 | U4: ="Segment "& TEXT(INT((COLUMN()-5)/2),"0") -> Segment 8 | W4: ="Segment "& TEXT(INT((COLUMN()-5)/2),"0") -> Segment 9 | Y4: ="Segment "& TEXT(INT((COLUMN()-5)/2),"0") -> Segment 10 | AA4: ="Segment "& TEXT(INT((COLUMN()-5)/2),"0") -> Segment 11 | AC4: ="Segment "& TEXT(INT((COLUMN()-5)/2),"0") -> Segment 12 | AE4: ="Segment "& TEXT(INT((COLUMN()-5)/2),"0") -> Segment 13 | AG4: ="Segment "& TEXT(INT((COLUMN()-5)/2),"0") -> Segment 14 | AI4: ="Segment "& TEXT(INT((COLUMN()-5)/2),"0") -> Segment 15 | AK4: ="Segment "& TEXT(INT((COLUMN()-5)/2),"0") -> Segment 16 | AM4: ="Segment "& TEXT(INT((COLUMN()-5)/2),"0") -> Segment 17 | AO4: ="Segment "& TEXT(INT((COLUMN()-5)/2),"0") -> Segment 18 | AQ4: ="Segment "& TEXT(INT((COLUMN()-5)/2),"0") -> Segment 19 | AS4: ="Segment "& TEXT(INT((COLUMN()-5)/2),"0") -> Segment 20 | AV4: =G4 -> Segment 1 | AX4: =I4 -> Segment 2 | AZ4: =K4 -> Segment 3 | BB4: =M4 -> Segment 4 | BD4: =O4 -> Segment 5 | BF4: =Q4 -> Segment 6 | BH4: =S4 -> Segment 7 | BJ4: =U4 -> Segment 8 | BL4: =W4 -> Segment 9 | BN4: =Y4 -> Segment 10 | BP4: =AA4 -> Segment 11 | BR4: =AC4 -> Segment 12 | BT4: =AE4 -> Segment 13 | BV4: =AG4 -> Segment 14 | BX4: =AI4 -> Segment 15 | BZ4: =AK4 -> Segment 16 | CB4: =AM4 -> Segment 17 | CD4: =AO4 -> Segment 18 | CF4: =AQ4 -> Segment 19 | CH4: =AS4 -> Segment 20
G5: =IF(Main!$AC$14=TRUE, "Crash Period", "Study Period") -> Study Period | H5: =IF(Main!$AC$14=TRUE, "Study Period", "") ->  | I5: =G5 -> Study Period | K5: Study Period | M5: Study Period | O5: Study Period | Q5: Study Period | S5: Study Period | U5: Study Period | W5: Study Period | Y5: Study Period | AA5: Study Period | AC5: Study Period | AE5: Study Period | AG5: Study Period | AI5: Study Period | AK5: Study Period | AM5: Study Period | AO5: Study Period | AQ5: Study Period | AS5: Study Period | AV5: =G5 -> Study Period | AW5: =H5 ->  | AX5: =I5 -> Study Period | AY5: =J5 ->  | AZ5: =K5 -> Study Period | BA5: =L5 ->  | BB5: =M5 -> Study Period | BC5: =N5 ->  | BD5: =O5 -> Study Period | BE5: =P5 ->  | BF5: =Q5 -> Study Period | BG5: =R5 ->  | BH5: =S5 -> Study Period | BI5: =T5 ->  | BJ5: =U5 -> Study Period | BK5: =V5 ->  | BL5: =W5 -> Study Period | BM5: =X5 ->  | BN5: =Y5 -> Study Period | BO5: =Z5 ->  | BP5: =AA5 -> Study Period | BQ5: =AB5 ->  | BR5: =AC5 -> Study Period | BS5: =AD5 ->  | BT5: =AE5 -> Study Period | BU5: =AF5 ->  | BV5: =AG5 -> Study Period | BW5: =AH5 ->  | BX5: =AI5 -> Study Period | BY5: =AJ5 ->  | BZ5: =AK5 -> Study Period | CA5: =AL5 ->  | CB5: =AM5 -> Study Period | CC5: =AN5 ->  | CD5: =AO5 -> Study Period | CE5: =AP5 ->  | CF5: =AQ5 -> Study Period | CG5: =AR5 ->  | CH5: =AS5 -> Study Period | CI5: =AT5 -> 
C6: (View results in Column AV) | D6: (View results in Advisory Messages)
B7: Basic Roadway Data
B8: Number of through lanes (n): | G8: 4 | H8: =G8 -> 4 | I8: 4 | J8: =I8 -> 4 | K8: 4 | L8: =K8 -> 4 | M8: 4 | N8: =M8 -> 4 | O8: 4 | P8: =O8 -> 4 | Q8: 4 | R8: =Q8 -> 4 | S8: 4 | T8: =S8 -> 4 | U8: 4 | V8: =U8 -> 4 | W8: 4 | X8: =W8 -> 4 | Y8: 4 | Z8: =Y8 -> 4 | AA8: 4 | AB8: =AA8 -> 4 | AC8: 4 | AD8: =AC8 -> 4 | AE8: 4 | AF8: =AE8 -> 4 | AG8: 4 | AH8: =AG8 -> 4 | AI8: 4 | AJ8: =AI8 -> 4 | AK8: 4 | AL8: =AK8 -> 4 | AM8: 4 | AN8: =AM8 -> 4 | AO8: 4 | AP8: =AO8 -> 4 | AQ8: 4 | AR8: =AQ8 -> 4 | AS8: 4 | AT8: =AS8 -> 4
B9: Freeway segment description:
B10: Segment length (L), mi: | G10: 0.525 | H10: =G10 -> 0.525 | I10: 1.16 | J10: =I10 -> 1.16 | K10: 1.413 | L10: =K10 -> 1.413 | M10: 0.103 | N10: =M10 -> 0.103 | O10: 1.045 | P10: =O10 -> 1.045 | Q10: 0.68 | R10: =Q10 -> 0.68 | S10: 1.46 | T10: =S10 -> 1.46 | U10: 1.091 | V10: =U10 -> 1.091 | W10: 1.956 | X10: =W10 -> 1.956 | Y10: 1.636 | Z10: =Y10 -> 1.636 | AA10: 1.47 | AB10: =AA10 -> 1.47 | AC10: 1.513 | AD10: =AC10 -> 1.513 | AE10: 1.236 | AF10: =AE10 -> 1.236 | AG10: 1.674 | AH10: =AG10 -> 1.674 | AI10: 1.459 | AJ10: =AI10 -> 1.459 | AK10: 1.84 | AL10: =AK10 -> 1.84 | AM10: 2.315 | AN10: =AM10 -> 2.315 | AO10: 1.229 | AP10: =AO10 -> 1.229 | AQ10: 1.205 | AR10: =AQ10 -> 1.205 | AS10: 1.767 | AT10: =AS10 -> 1.767
B11: Alignment Data
B12: Horizontal Curve Data | E12: See note
B13: 1 | C13: Horizontal curve in segment?: | G13: No | H13: =G13 -> No | I13: Both Dir. | J13: =I13 -> Both Dir. | K13: No | L13: =K13 -> No | M13: No | N13: =M13 -> No | O13: Both Dir. | P13: =O13 -> Both Dir. | Q13: No | R13: =Q13 -> No | S13: No | T13: =S13 -> No | U13: Both Dir. | V13: =U13 -> Both Dir. | W13: Both Dir. | X13: =W13 -> Both Dir. | Y13: No | Z13: =Y13 -> No | AA13: Both Dir. | AB13: =AA13 -> Both Dir. | AC13: No | AD13: =AC13 -> No | AE13: Both Dir. | AF13: =AE13 -> Both Dir. | AG13: Both Dir. | AH13: =AG13 -> Both Dir. | AI13: No | AJ13: =AI13 -> No | AK13: Both Dir. | AL13: =AK13 -> Both Dir. | AM13: Both Dir. | AN13: =AM13 -> Both Dir. | AO13: Both Dir. | AP13: =AO13 -> Both Dir. | AQ13: No | AR13: =AQ13 -> No | AS13: No | AT13: =AS13 -> No
C14: Curve radius (R1), ft: | H14: 0 | I14: 13600 | J14: 13600 | L14: 0 | N14: 0 | O14: 5569 | P14: 5569 | R14: 0 | T14: 0 | U14: 11783 | V14: 11783 | W14: 7389 | X14: 7389 | Z14: 0 | AA14: 2872 | AB14: 2872 | AD14: 0 | AE14: 6000 | AF14: 6000 | AG14: 2912 | AH14: 2912 | AJ14: 0 | AK14: 6753 | AL14: 6753 | AM14: 18004 | AN14: 18004 | AO14: 6546 | AP14: 6546 | AR14: 0 | AT14: 0
C15: Length of curve (Lc1), mi: | H15: 0 | I15: 0.609 | J15: 0.609 | L15: 0 | N15: 0 | O15: 0.619 | P15: 0.619 | R15: 0 | T15: 0 | U15: 0.612 | V15: 0.612 | W15: 1.161 | X15: 1.161 | Z15: 0 | AA15: 0.357 | AB15: 0.357 | AD15: 0 | AE15: 0.787 | AF15: 0.787 | AG15: 0.519 | AH15: 0.519 | AJ15: 0 | AK15: 0.666 | AL15: 0.666 | AM15: 1.463 | AN15: 1.463 | AO15: 1.271 | AP15: 1.271 | AR15: 0 | AT15: 0
C16: Length of curve in segment (Lc1,seg), mi: | H16: 0 | I16: 0.609 | J16: 0.609 | L16: 0 | N16: 0 | O16: 0.458 | P16: 0.458 | R16: 0 | T16: 0 | U16: 0.612 | V16: 0.612 | W16: 1.161 | X16: 1.161 | Z16: 0 | AA16: 0.357 | AB16: 0.357 | AD16: 0 | AE16: 0.695 | AF16: 0.695 | AG16: 0.519 | AH16: 0.519 | AJ16: 0 | AK16: 0.666 | AL16: 0.666 | AM16: 1.463 | AN16: 1.463 | AO16: 1.003 | AP16: 1.003 | AR16: 0 | AT16: 0
B17: 2 | C17: Horizontal curve in segment?: | H17: 0 | I17: No | J17: No | L17: 0 | N17: 0 | O17: No | P17: No | R17: 0 | T17: 0 | U17: No | V17: No | W17: No | X17: No | Z17: 0 | AA17: No | AB17: No | AD17: 0 | AE17: No | AF17: No | AG17: Both Dir. | AH17: Both Dir. | AJ17: 0 | AK17: No | AL17: No | AM17: No | AN17: No | AO17: No | AP17: No | AR17: 0 | AT17: 0
C18: Curve radius (R2), ft: | H18: 0 | J18: 0 | L18: 0 | N18: 0 | P18: 0 | R18: 0 | T18: 0 | V18: 0 | X18: 0 | Z18: 0 | AB18: 0 | AD18: 0 | AF18: 0 | AG18: 2835 | AH18: 2835 | AJ18: 0 | AL18: 0 | AN18: 0 | AP18: 0 | AR18: 0 | AT18: 0
C19: Length of curve (Lc2), mi: | H19: 0 | J19: 0 | L19: 0 | N19: 0 | P19: 0 | R19: 0 | T19: 0 | V19: 0 | X19: 0 | Z19: 0 | AB19: 0 | AD19: 0 | AF19: 0 | AG19: 0.431 | AH19: 0.431 | AJ19: 0 | AL19: 0 | AN19: 0 | AP19: 0 | AR19: 0 | AT19: 0
C20: Length of curve in segment (Lc2,seg), mi: | H20: 0 | J20: 0 | L20: 0 | N20: 0 | P20: 0 | R20: 0 | T20: 0 | V20: 0 | X20: 0 | Z20: 0 | AB20: 0 | AD20: 0 | AF20: 0 | AG20: 0.431 | AH20: 0.431 | AJ20: 0 | AL20: 0 | AN20: 0 | AP20: 0 | AR20: 0 | AT20: 0
B21: 3 | C21: Horizontal curve in segment?: | H21: 0 | J21: 0 | L21: 0 | N21: 0 | P21: 0 | R21: 0 | T21: 0 | V21: 0 | X21: 0 | Z21: 0 | AB21: 0 | AD21: 0 | AF21: 0 | AG21: Both Dir. | AH21: Both Dir. | AJ21: 0 | AL21: 0 | AN21: 0 | AP21: 0 | AR21: 0 | AT21: 0
C22: Curve radius (R3), ft: | H22: 0 | J22: 0 | L22: 0 | N22: 0 | P22: 0 | R22: 0 | T22: 0 | V22: 0 | X22: 0 | Z22: 0 | AB22: 0 | AD22: 0 | AF22: 0 | AG22: 3262 | AH22: 3262 | AJ22: 0 | AL22: 0 | AN22: 0 | AP22: 0 | AR22: 0 | AT22: 0
C23: Length of curve (Lc3), mi: | H23: 0 | J23: 0 | L23: 0 | N23: 0 | P23: 0 | R23: 0 | T23: 0 | V23: 0 | X23: 0 | Z23: 0 | AB23: 0 | AD23: 0 | AF23: 0 | AG23: 0.658 | AH23: 0.658 | AJ23: 0 | AL23: 0 | AN23: 0 | AP23: 0 | AR23: 0 | AT23: 0
C24: Length of curve in segment (Lc3,seg), mi: | H24: 0 | J24: 0 | L24: 0 | N24: 0 | P24: 0 | R24: 0 | T24: 0 | V24: 0 | X24: 0 | Z24: 0 | AB24: 0 | AD24: 0 | AF24: 0 | AG24: 0.581 | AH24: 0.581 | AJ24: 0 | AL24: 0 | AN24: 0 | AP24: 0 | AR24: 0 | AT24: 0
B25: Cross Section Data
B26: Lane width (Wl), ft: | G26: 11 | H26: =G26 -> 11 | I26: 12 | J26: =I26 -> 12 | K26: 11 | L26: =K26 -> 11 | M26: 11 | N26: =M26 -> 11 | O26: 12 | P26: =O26 -> 12 | Q26: 12 | R26: =Q26 -> 12 | S26: 12 | T26: =S26 -> 12 | U26: 11 | V26: =U26 -> 11 | W26: 11 | X26: =W26 -> 11 | Y26: 11 | Z26: =Y26 -> 11 | AA26: 11 | AB26: =AA26 -> 11 | AC26: 11 | AD26: =AC26 -> 11 | AE26: 12 | AF26: =AE26 -> 12 | AG26: 12 | AH26: =AG26 -> 12 | AI26: 12 | AJ26: =AI26 -> 12 | AK26: 11 | AL26: 11 | AM26: 11 | AN26: 11 | AO26: 11 | AP26: =AO26 -> 11 | AQ26: 11 | AR26: 11 | AS26: 11 | AT26: =AS26 -> 11
B27: Outside shoulder width (Ws), ft: | G27: 12 | H27: 12 | I27: 10 | J27: 10 | K27: 12 | L27: 12 | M27: 8 | N27: 8 | O27: 4 | P27: 4 | Q27: 8 | R27: 8 | S27: 9 | T27: 9 | U27: 9 | V27: 9 | W27: 4 | X27: 4 | Y27: 9 | Z27: 9 | AA27: 5 | AB27: 5 | AC27: 8 | AD27: 8 | AE27: 11 | AF27: 11 | AG27: 5 | AH27: 5 | AI27: 8 | AJ27: 8 | AK27: 4 | AL27: =AK27 -> 4 | AM27: 10 | AN27: =AM27 -> 10 | AO27: 10 | AP27: 10 | AQ27: 11 | AR27: =AQ27 -> 11 | AS27: 10 | AT27: 10
B28: Inside shoulder width (Wis), ft: | G28: 6 | H28: 6 | I28: 4 | J28: 4 | K28: 10 | L28: 10 | M28: 2 | N28: 2 | O28: 3 | P28: 3 | Q28: 4 | R28: 4 | S28: 4 | T28: 4 | U28: 3 | V28: 3 | W28: 2 | X28: 2 | Y28: 2 | Z28: 2 | AA28: 3 | AB28: 3 | AC28: 4 | AD28: 4 | AE28: 3 | AF28: 3 | AG28: 3 | AH28: 3 | AI28: 8 | AJ28: 8 | AK28: 3 | AL28: 3 | AM28: 3 | AN28: 3 | AO28: 3 | AP28: 3 | AQ28: 3 | AR28: 3 | AS28: 3 | AT28: 3
B29: Median width (Wm), ft: | G29: 70 | H29: 70 | I29: 40 | J29: 40 | K29: 90 | L29: 90 | M29: 46 | N29: 46 | O29: 70 | P29: 70 | Q29: 90 | R29: 90 | S29: 44 | T29: 44 | U29: 37 | V29: 37 | W29: 90 | X29: 90 | Y29: 85 | Z29: 85 | AA29: 90 | AB29: 90 | AC29: 70 | AD29: 70 | AE29: 20 | AF29: 20 | AG29: 75 | AH29: 75 | AI29: 36 | AJ29: 36 | AK29: 70 | AL29: 70 | AM29: 32 | AN29: 32 | AO29: 47 | AP29: 47 | AQ29: 70 | AR29: 70 | AS29: 30 | AT29: 30
B30: Rumble strips on outside shoulders?: | G30: Yes | H30: Yes | I30: Yes | J30: Yes | K30: Yes | L30: Yes | M30: Yes | N30: Yes | O30: Yes | P30: Yes | Q30: Yes | R30: Yes | S30: Yes | T30: Yes | U30: Yes | V30: Yes | W30: Yes | X30: Yes | Y30: Yes | Z30: Yes | AA30: Yes | AB30: Yes | AC30: Yes | AD30: Yes | AE30: Yes | AF30: Yes | AG30: Yes | AH30: Yes | AI30: Yes | AJ30: Yes | AK30: Yes | AL30: Yes | AM30: Yes | AN30: Yes | AO30: Yes | AP30: Yes | AQ30: Yes | AR30: Yes | AS30: Yes | AT30: Yes
C31: Length of rumble strips for travel in increasing milepost direction, mi: | G31: 0.525 | H31: 0.525 | I31: 1.16 | J31: 1.16 | K31: 1.413 | L31: 1.413 | M31: 0.103 | N31: 0.103 | O31: 1.045 | P31: 1.045 | Q31: 0.68 | R31: 0.68 | S31: 1.46 | T31: 1.46 | U31: 1.091 | V31: 1.091 | W31: 1.956 | X31: 1.956 | Y31: 1.636 | Z31: 1.636 | AA31: 1.47 | AB31: 1.47 | AC31: 1.513 | AD31: 1.513 | AE31: 1.236 | AF31: 1.236 | AG31: 1.674 | AH31: 1.674 | AI31: 1.459 | AJ31: 1.459 | AK31: 1.84 | AL31: 1.84 | AM31: 2.315 | AN31: 2.315 | AO31: 1.229 | AP31: 1.229 | AQ31: 1.205 | AR31: 1.205 | AS31: 1.767 | AT31: 1.767
C32: Length of rumble strips for travel in decreasing milepost direction, mi: | G32: 0.525 | H32: 0.525 | I32: 1.16 | J32: 1.16 | K32: 1.413 | L32: 1.413 | M32: 0.103 | N32: 0.103 | O32: 1.045 | P32: 1.045 | Q32: 0.68 | R32: 0.68 | S32: 1.46 | T32: 1.46 | U32: 1.091 | V32: 1.091 | W32: 1.956 | X32: 1.956 | Y32: 1.636 | Z32: 1.636 | AA32: 1.47 | AB32: 1.47 | AC32: 1.513 | AD32: 1.513 | AE32: 1.236 | AF32: 1.236 | AG32: 1.674 | AH32: 1.674 | AI32: 1.459 | AJ32: 1.459 | AK32: 1.84 | AL32: 1.84 | AM32: 2.315 | AN32: 2.315 | AO32: 1.229 | AP32: 1.229 | AQ32: 1.205 | AR32: 1.205 | AS32: 1.767 | AT32: 1.767
B33: Rumble strips on inside shoulders?: | G33: Yes | H33: Yes | I33: Yes | J33: Yes | K33: Yes | L33: Yes | M33: Yes | N33: Yes | O33: Yes | P33: Yes | Q33: Yes | R33: Yes | S33: Yes | T33: Yes | U33: Yes | V33: Yes | W33: Yes | X33: Yes | Y33: Yes | Z33: Yes | AA33: Yes | AB33: Yes | AC33: Yes | AD33: Yes | AE33: Yes | AF33: Yes | AG33: Yes | AH33: Yes | AI33: Yes | AJ33: Yes | AK33: Yes | AL33: Yes | AM33: Yes | AN33: Yes | AO33: Yes | AP33: Yes | AQ33: Yes | AR33: Yes | AS33: Yes | AT33: Yes
C34: Length of rumble strips for travel in increasing milepost direction, mi: | G34: 0.525 | H34: 0.525 | I34: 1.16 | J34: 1.16 | K34: 1.413 | L34: 1.413 | M34: 0.103 | N34: 0.103 | O34: 1.045 | P34: 1.045 | Q34: 0.68 | R34: 0.68 | S34: 1.46 | T34: 1.46 | U34: 1.091 | V34: =U34 -> 1.091 | W34: 1.956 | X34: 1.956 | Y34: 1.636 | Z34: 1.636 | AA34: 1.47 | AB34: 1.47 | AC34: 1.513 | AD34: 1.513 | AE34: 1.236 | AF34: 1.236 | AG34: 1.674 | AH34: 1.674 | AI34: 1.459 | AJ34: 1.459 | AK34: 1.84 | AL34: 1.84 | AM34: 2.315 | AN34: 2.315 | AO34: 1.229 | AP34: 1.229 | AQ34: 1.205 | AR34: 1.205 | AS34: 1.767 | AT34: 1.767
C35: Length of rumble strips for travel in decreasing milepost direction, mi: | G35: 0.525 | H35: 0.525 | I35: 1.16 | J35: 1.16 | K35: 1.413 | L35: 1.413 | M35: 0.103 | N35: 0.103 | O35: 1.045 | P35: 1.045 | Q35: 0.68 | R35: 0.68 | S35: 1.46 | T35: 1.46 | U35: 1.091 | V35: 1.091 | W35: 1.956 | X35: 1.956 | Y35: 1.636 | Z35: 1.636 | AA35: 1.47 | AB35: 1.47 | AC35: 1.513 | AD35: 1.513 | AE35: 1.236 | AF35: 1.236 | AG35: 1.674 | AH35: 1.674 | AI35: 1.459 | AJ35: 1.459 | AK35: 1.84 | AL35: 1.84 | AM35: 2.315 | AN35: 2.315 | AO35: 1.229 | AP35: 1.229 | AQ35: 1.205 | AR35: 1.205 | AS35: 1.767 | AT35: 1.767
B36: Presence of barrier in median: | G36: Offset | H36: Offset | I36: Offset | J36: Offset | K36: Offset | L36: Offset | M36: Offset | N36: Offset | O36: Offset | P36: Offset | Q36: Center | R36: Center | S36: Offset | T36: Offset | U36: Offset | V36: Offset | W36: Offset | X36: Offset | Y36: Offset | Z36: Offset | AA36: Some | AB36: Some | AC36: Some | AD36: Some | AE36: Some | AF36: Some | AG36: Some | AH36: Some | AI36: Center | AJ36: Center | AK36: Offset | AL36: Offset | AM36: Offset | AN36: Offset | AO36: Offset | AP36: Offset | AQ36: Offset | AR36: Offset | AS36: Offset | AT36: Offset
B37: 1 | C37: Length of barrier (Lib,1), mi: | G37: =1.037/2 -> 0.5185 | H37: 0.5185 | I37: 1.16 | J37: 1.16 | K37: 1.413 | L37: 1.413 | M37: 0.103 | N37: 0.103 | O37: 1.045 | P37: 1.045 | Q37: =1.36/2 -> 0.68 | R37: 0.68 | S37: 1.46 | T37: 1.46 | U37: 1.091 | V37: 1.091 | W37: =3.877/2 -> 1.9385 | X37: 1.9385 | Y37: 1.636 | Z37: 1.636 | AA37: 1.432 | AB37: 1.432 | AC37: 1.371 | AD37: 1.371 | AE37: 1.182 | AF37: 1.182 | AG37: 1.665 | AH37: 1.665 | AI37: =2.909/2 -> 1.4545 | AJ37: 1.4545 | AK37: 1.84 | AL37: 1.84 | AM37: 2.315 | AN37: 2.315 | AO37: 1.229 | AP37: 1.229 | AQ37: 1.166 | AR37: 1.166 | AS37: 1.767 | AT37: 1.767
C38: Distance from edge of traveled way to barrier face (Woff,in,1), ft: | G38: 9 | H38: 9 | I38: 21 | J38: 21 | K38: 30 | L38: 30 | M38: 28 | N38: 28 | O38: 22 | P38: 22 | Q38: 4 | R38: 4 | S38: 30 | T38: 30 | U38: 20 | V38: 20 | W38: 8 | X38: 8 | Y38: 21 | Z38: 21 | AA38: 20 | AB38: 20 | AC38: 11 | AD38: 11 | AE38: 23 | AF38: 23 | AG38: 20 | AH38: 20 | AI38: 8 | AJ38: 8 | AK38: 33 | AL38: 33 | AM38: 21 | AN38: 21 | AO38: 19 | AP38: 19 | AQ38: 20 | AR38: 20 | AS38: 21 | AT38: 21
B39: 2 | C39: Length of barrier (Lib,2), mi: | H39: 0 | J39: 0 | L39: 0 | N39: 0 | P39: 0 | R39: 0 | T39: 0 | V39: 0 | X39: 0 | Z39: 0 | AA39: 0.038 | AB39: 0.038 | AC39: 0.142 | AD39: 0.142 | AE39: 0.054 | AF39: 0.054 | AG39: 0.038 | AH39: 0.038 | AJ39: 0 | AL39: 0 | AN39: 0 | AP39: 0 | AR39: 0 | AT39: 0
C40: Distance from edge of traveled way to barrier face (Woff,in,2), ft: | H40: 0 | J40: 0 | L40: 0 | N40: 0 | P40: 0 | R40: 0 | T40: 0 | V40: 0 | X40: 0 | Z40: 0 | AA40: 20 | AB40: 20 | AC40: 11 | AD40: 11 | AE40: 23 | AF40: 23 | AG40: 20 | AH40: 20 | AJ40: 0 | AL40: 0 | AN40: 0 | AP40: 0 | AR40: 0 | AT40: 0
B41: 3 | C41: Length of barrier (Lib,3), mi: | H41: 0 | J41: 0 | L41: 0 | N41: 0 | P41: 0 | R41: 0 | T41: 0 | V41: 0 | X41: 0 | Z41: 0 | AB41: 0 | AD41: 0 | AF41: 0 | AH41: 0 | AJ41: 0 | AL41: 0 | AN41: 0 | AP41: 0 | AR41: 0 | AT41: 0
C42: Distance from edge of traveled way to barrier face (Woff,in,3), ft: | H42: 0 | J42: 0 | L42: 0 | N42: 0 | P42: 0 | R42: 0 | T42: 0 | V42: 0 | X42: 0 | Z42: 0 | AB42: 0 | AD42: 0 | AF42: 0 | AH42: 0 | AJ42: 0 | AL42: 0 | AN42: 0 | AP42: 0 | AR42: 0 | AT42: 0
B43: 4 | C43: Length of barrier (Lib,4), mi: | H43: 0 | J43: 0 | L43: 0 | N43: 0 | P43: 0 | R43: 0 | T43: 0 | V43: 0 | X43: 0 | Z43: 0 | AB43: 0 | AD43: 0 | AF43: 0 | AH43: 0 | AJ43: 0 | AL43: 0 | AN43: 0 | AP43: 0 | AR43: 0 | AT43: 0
C44: Distance from edge of traveled way to barrier face (Woff,in,4), ft: | H44: 0 | J44: 0 | L44: 0 | N44: 0 | P44: 0 | R44: 0 | T44: 0 | V44: 0 | X44: 0 | Z44: 0 | AB44: 0 | AD44: 0 | AF44: 0 | AH44: 0 | AJ44: 0 | AL44: 0 | AN44: 0 | AP44: 0 | AR44: 0 | AT44: 0
B45: 5 | C45: Length of barrier (Lib,5), mi: | H45: 0 | J45: 0 | L45: 0 | N45: 0 | P45: 0 | R45: 0 | T45: 0 | V45: 0 | X45: 0 | Z45: 0 | AB45: 0 | AD45: 0 | AF45: 0 | AH45: 0 | AJ45: 0 | AL45: 0 | AN45: 0 | AP45: 0 | AR45: 0 | AT45: 0
C46: Distance from edge of traveled way to barrier face (Woff,in,5), ft: | H46: 0 | J46: 0 | L46: 0 | N46: 0 | P46: 0 | R46: 0 | T46: 0 | V46: 0 | X46: 0 | Z46: 0 | AB46: 0 | AD46: 0 | AF46: 0 | AH46: 0 | AJ46: 0 | AL46: 0 | AN46: 0 | AP46: 0 | AR46: 0 | AT46: 0
B47: Median barrier width (Wib), ft: | G47: 3 | H47: 3 | I47: 1 | J47: 1 | K47: 1 | L47: 1 | M47: 1 | N47: 1 | O47: 1 | P47: 1 | Q47: 3 | R47: 3 | S47: 1 | T47: 1 | U47: 1 | V47: 1 | W47: 3 | X47: 3 | Y47: 1 | Z47: 1 | AA47: 1 | AB47: 1 | AC47: 1 | AD47: 1 | AE47: 1 | AF47: 1 | AG47: 1 | AH47: 1 | AI47: 3 | AJ47: 3 | AK47: 1 | AL47: 1 | AM47: 1 | AN47: 1 | AO47: 1 | AP47: 1 | AQ47: 1 | AR47: 1 | AS47: 1 | AT47: 1
B48: Nearest distance from edge of traveled way to barrier face (Wnear), ft: | G48: 9 | H48: 9 | I48: 21 | J48: 21 | K48: 30 | L48: 30 | M48: 26 | N48: 26 | O48: 19 | P48: 19 | Q48: 4 | R48: 4 | S48: 29 | T48: 29 | U48: 17 | V48: 17 | W48: 7 | X48: 7 | Y48: 21 | Z48: 21 | AA48: 20 | AB48: 20 | AC48: 10 | AD48: 10 | AE48: 22 | AF48: 22 | AG48: 20 | AH48: 20 | AI48: 8 | AJ48: 8 | AK48: 32 | AL48: 32 | AM48: 19 | AN48: 19 | AO48: 14 | AP48: 14 | AQ48: 19 | AR48: 19 | AS48: 20 | AT48: 20
B49: Roadside Data
B50: Clear zone width (Whc), ft: | G50: 30 | H50: =G50 -> 30 | I50: 30 | J50: =I50 -> 30 | K50: 30 | L50: =K50 -> 30 | M50: 30 | N50: =M50 -> 30 | O50: 30 | P50: =O50 -> 30 | Q50: 30 | R50: =Q50 -> 30 | S50: 30 | T50: =S50 -> 30 | U50: 30 | V50: =U50 -> 30 | W50: 30 | X50: =W50 -> 30 | Y50: 30 | Z50: =Y50 -> 30 | AA50: 30 | AB50: =AA50 -> 30 | AC50: 30 | AD50: =AC50 -> 30 | AE50: 30 | AF50: =AE50 -> 30 | AG50: 30 | AH50: =AG50 -> 30 | AI50: 30 | AJ50: =AI50 -> 30 | AK50: 30 | AL50: =AK50 -> 30 | AM50: 30 | AN50: =AM50 -> 30 | AO50: 30 | AP50: =AO50 -> 30 | AQ50: 30 | AR50: =AQ50 -> 30 | AS50: 30 | AT50: =AS50 -> 30
B51: Presence of barrier on roadside: | G51: Some | H51: Some | I51: Some | J51: Some | K51: None | L51: None | M51: Full | N51: Full | O51: None | P51: None | Q51: Some | R51: Some | S51: Some | T51: Some | U51: Some | V51: Some | W51: Some | X51: Some | Y51: None | Z51: None | AA51: Some | AB51: Some | AC51: Some | AD51: Some | AE51: Some | AF51: Some | AG51: Some | AH51: Some | AI51: Some | AJ51: Some | AK51: Some | AL51: Some | AM51: Some | AN51: Some | AO51: Some | AP51: Some | AQ51: Some | AR51: Some | AS51: Some | AT51: Some
B52: 1 | C52: Length of barrier (Lob,1), mi: | G52: 0.164 | H52: 0.164 | I52: 0.032 | J52: 0.032 | L52: 0 | M52: 0.103 | N52: 0.103 | P52: 0 | Q52: 0.155 | R52: 0.155 | S52: 0.383 | T52: 0.383 | U52: 0.701 | V52: 0.701 | W52: 0.789 | X52: 0.789 | Z52: 0 | AA52: 0.141 | AB52: 0.141 | AC52: 0.064 | AD52: 0.064 | AE52: 0.216 | AF52: 0.216 | AG52: 0.109 | AH52: 0.109 | AI52: 0.252 | AJ52: 0.252 | AK52: 0.057 | AL52: 0.057 | AM52: 0.08 | AN52: 0.08 | AO52: 0.474 | AP52: 0.474 | AQ52: 0.106 | AR52: 0.106 | AS52: 0.011 | AT52: 0.011
C53: Distance from edge of traveled way to barrier face (Woff,o,1), ft: | G53: =G27+1 -> 13 | H53: 13 | I53: =I27+1 -> 11 | J53: 11 | L53: 0 | N53: 0 | P53: 0 | Q53: =Q27+1 -> 9 | R53: 9 | S53: =S27+1 -> 10 | T53: 10 | U53: =U27+1 -> 10 | V53: 10 | W53: =W27+10 -> 14 | X53: 14 | Z53: 0 | AA53: =AA27+1 -> 6 | AB53: 6 | AC53: =AC27+1 -> 9 | AD53: 9 | AE53: =AE27+1 -> 12 | AF53: 12 | AG53: =AG27+4 -> 9 | AH53: 9 | AI53: =AI27+1 -> 9 | AJ53: 9 | AK53: =AK27+1 -> 5 | AL53: 5 | AM53: =AM27+1 -> 11 | AN53: 11 | AO53: =AO27+1 -> 11 | AP53: 11 | AQ53: =AQ27+1 -> 12 | AR53: 12 | AS53: =AS27+2 -> 12 | AT53: 12
B54: 2 | C54: Length of barrier (Lob,2), mi: | H54: 0 | J54: 0 | L54: 0 | N54: 0 | P54: 0 | R54: 0 | T54: 0 | V54: 0 | X54: 0 | Z54: 0 | AB54: 0 | AD54: 0 | AF54: 0 | AH54: 0 | AJ54: 0 | AL54: 0 | AN54: 0 | AP54: 0 | AR54: 0 | AT54: 0
C55: Distance from edge of traveled way to barrier face (Woff,o,2), ft: | H55: 0 | J55: 0 | L55: 0 | N55: 0 | P55: 0 | R55: 0 | T55: 0 | V55: 0 | X55: 0 | Z55: 0 | AB55: 0 | AD55: 0 | AF55: 0 | AH55: 0 | AJ55: 0 | AL55: 0 | AN55: 0 | AP55: 0 | AR55: 0 | AT55: 0
B56: 3 | C56: Length of barrier (Lob,3), mi: | H56: 0 | J56: 0 | L56: 0 | N56: 0 | P56: 0 | R56: 0 | T56: 0 | V56: 0 | X56: 0 | Z56: 0 | AB56: 0 | AD56: 0 | AF56: 0 | AH56: 0 | AJ56: 0 | AL56: 0 | AN56: 0 | AP56: 0 | AR56: 0 | AT56: 0
C57: Distance from edge of traveled way to barrier face (Woff,o,3), ft: | H57: 0 | J57: 0 | L57: 0 | N57: 0 | P57: 0 | R57: 0 | T57: 0 | V57: 0 | X57: 0 | Z57: 0 | AB57: 0 | AD57: 0 | AF57: 0 | AH57: 0 | AJ57: 0 | AL57: 0 | AN57: 0 | AP57: 0 | AR57: 0 | AT57: 0
B58: 4 | C58: Length of barrier (Lob,4), mi: | H58: 0 | J58: 0 | L58: 0 | N58: 0 | P58: 0 | R58: 0 | T58: 0 | V58: 0 | X58: 0 | Z58: 0 | AB58: 0 | AD58: 0 | AF58: 0 | AH58: 0 | AJ58: 0 | AL58: 0 | AN58: 0 | AP58: 0 | AR58: 0 | AT58: 0
C59: Distance from edge of traveled way to barrier face (Woff,o,4), ft: | H59: 0 | J59: 0 | L59: 0 | N59: 0 | P59: 0 | R59: 0 | T59: 0 | V59: 0 | X59: 0 | Z59: 0 | AB59: 0 | AD59: 0 | AF59: 0 | AH59: 0 | AJ59: 0 | AL59: 0 | AN59: 0 | AP59: 0 | AR59: 0 | AT59: 0
B60: 5 | C60: Length of barrier (Lob,5), mi: | H60: 0 | J60: 0 | L60: 0 | N60: 0 | P60: 0 | R60: 0 | T60: 0 | V60: 0 | X60: 0 | Z60: 0 | AB60: 0 | AD60: 0 | AF60: 0 | AH60: 0 | AJ60: 0 | AL60: 0 | AN60: 0 | AP60: 0 | AR60: 0 | AT60: 0
C61: Distance from edge of traveled way to barrier face (Woff,o,5), ft: | H61: 0 | J61: 0 | L61: 0 | N61: 0 | P61: 0 | R61: 0 | T61: 0 | V61: 0 | X61: 0 | Z61: 0 | AB61: 0 | AD61: 0 | AF61: 0 | AH61: 0 | AJ61: 0 | AL61: 0 | AN61: 0 | AP61: 0 | AR61: 0 | AT61: 0
B62: Distance from edge of traveled way to barrier face, increasing milepost (Woff,inc), ft: | H62: 0 | J62: 0 | L62: 0 | M62: =M27+2 -> 10 | N62: 10 | P62: 0 | R62: 0 | T62: 0 | V62: 0 | X62: 0 | Z62: 0 | AB62: 0 | AD62: 0 | AF62: 0 | AH62: 0 | AJ62: 0 | AL62: 0 | AN62: 0 | AP62: 0 | AR62: 0 | AT62: 0
B63: Distance from edge of traveled way to barrier face, decreasing milepost (Woff,dec), ft: | H63: 0 | J63: 0 | L63: 0 | M63: =M27+2 -> 10 | N63: 10 | P63: 0 | R63: 0 | T63: 0 | V63: 0 | X63: 0 | Z63: 0 | AB63: 0 | AD63: 0 | AF63: 0 | AH63: 0 | AJ63: 0 | AL63: 0 | AN63: 0 | AP63: 0 | AR63: 0 | AT63: 0
B64: Ramp Access Data
B65: Travel in Increasing Milepost Direction
B66: Entrance | C66: Ramp entrance in segment? (If yes, indicate type.): | H66: =G66 -> 0 | J66: =I66 -> 0 | L66: =K66 -> 0 | N66: =M66 -> 0 | P66: =O66 -> 0 | R66: =Q66 -> 0 | T66: =S66 -> 0 | V66: =U66 -> 0 | X66: =W66 -> 0 | Z66: =Y66 -> 0 | AB66: =AA66 -> 0 | AD66: =AC66 -> 0 | AF66: =AE66 -> 0 | AH66: =AG66 -> 0 | AJ66: =AI66 -> 0 | AL66: =AK66 -> 0 | AN66: =AM66 -> 0 | AP66: =AO66 -> 0 | AR66: =AQ66 -> 0 | AT66: =AS66 -> 0
B67: Ramp | C67: Distance from begin milepost to upstream entrance ramp gore (Xb,ent), mi: | H67: 0 | J67: 0 | L67: 0 | N67: 0 | P67: 0 | R67: 0 | T67: 0 | V67: 0 | X67: 0 | Z67: 0 | AB67: 0 | AD67: 0 | AF67: 0 | AH67: 0 | AJ67: 0 | AL67: 0 | AN67: 0 | AP67: 0 | AR67: 0 | AT67: 0
C68: Length of ramp entrance (Len,inc), mi: | H68: 0 | J68: 0 | L68: 0 | N68: 0 | P68: 0 | R68: 0 | T68: 0 | V68: 0 | X68: 0 | Z68: 0 | AB68: 0 | AD68: 0 | AF68: 0 | AH68: 0 | AJ68: 0 | AL68: 0 | AN68: 0 | AP68: 0 | AR68: 0 | AT68: 0
C69: Length of ramp entrance in segment (Len,seg,inc), mi: | H69: 0 | J69: 0 | L69: 0 | N69: 0 | P69: 0 | R69: 0 | T69: 0 | V69: 0 | X69: 0 | Z69: 0 | AB69: 0 | AD69: 0 | AF69: 0 | AH69: 0 | AJ69: 0 | AL69: 0 | AN69: 0 | AP69: 0 | AR69: 0 | AT69: 0
C70: Entrance side?: | H70: 0 | J70: 0 | L70: 0 | N70: 0 | P70: 0 | R70: 0 | T70: 0 | V70: 0 | X70: 0 | Z70: 0 | AB70: 0 | AD70: 0 | AF70: 0 | AH70: 0 | AJ70: 0 | AL70: 0 | AN70: 0 | AP70: 0 | AR70: 0 | AT70: 0
B71: Exit | C71: Ramp exit in segment? (If yes, indicate type.): | H71: 0 | J71: 0 | L71: 0 | N71: 0 | P71: 0 | R71: 0 | T71: 0 | V71: 0 | X71: 0 | Z71: 0 | AB71: 0 | AD71: 0 | AF71: 0 | AH71: 0 | AJ71: 0 | AL71: 0 | AN71: 0 | AP71: 0 | AR71: 0 | AT71: 0
B72: Ramp | C72: Distance from end milepost to downstream exit ramp gore (Xe,ext), mi: | H72: 0 | J72: 0 | L72: 0 | N72: 0 | P72: 0 | R72: 0 | T72: 0 | V72: 0 | X72: 0 | Z72: 0 | AB72: 0 | AD72: 0 | AF72: 0 | AH72: 0 | AJ72: 0 | AL72: 0 | AN72: 0 | AP72: 0 | AR72: 0 | AT72: 0
C73: Length of ramp exit (Lex,inc), mi: | H73: 0 | J73: 0 | L73: 0 | N73: 0 | P73: 0 | R73: 0 | T73: 0 | V73: 0 | X73: 0 | Z73: 0 | AB73: 0 | AD73: 0 | AF73: 0 | AH73: 0 | AJ73: 0 | AL73: 0 | AN73: 0 | AP73: 0 | AR73: 0 | AT73: 0
C74: Length of ramp exit in segment (Lex,seg,inc), mi: | H74: 0 | J74: 0 | L74: 0 | N74: 0 | P74: 0 | R74: 0 | T74: 0 | V74: 0 | X74: 0 | Z74: 0 | AB74: 0 | AD74: 0 | AF74: 0 | AH74: 0 | AJ74: 0 | AL74: 0 | AN74: 0 | AP74: 0 | AR74: 0 | AT74: 0
C75: Exit side?: | H75: 0 | J75: 0 | L75: 0 | N75: 0 | P75: 0 | R75: 0 | T75: 0 | V75: 0 | X75: 0 | Z75: 0 | AB75: 0 | AD75: 0 | AF75: 0 | AH75: 0 | AJ75: 0 | AL75: 0 | AN75: 0 | AP75: 0 | AR75: 0 | AT75: 0
B76: Weave | C76: Type B weave in segment?: | H76: 0 | J76: 0 | L76: 0 | N76: 0 | P76: 0 | R76: 0 | T76: 0 | V76: 0 | X76: 0 | Z76: 0 | AB76: 0 | AD76: 0 | AF76: 0 | AH76: 0 | AJ76: 0 | AL76: 0 | AN76: 0 | AP76: 0 | AR76: 0 | AT76: 0
C77: Length of weaving section (Lwev,inc), mi: | H77: 0 | J77: 0 | L77: 0 | N77: 0 | P77: 0 | R77: 0 | T77: 0 | V77: 0 | X77: 0 | Z77: 0 | AB77: 0 | AD77: 0 | AF77: 0 | AH77: 0 | AJ77: 0 | AL77: 0 | AN77: 0 | AP77: 0 | AR77: 0 | AT77: 0
C78: Length of weaving section in segment (Lwev,seg,inc), mi: | H78: 0 | J78: 0 | L78: 0 | N78: 0 | P78: 0 | R78: 0 | T78: 0 | V78: 0 | X78: 0 | Z78: 0 | AB78: 0 | AD78: 0 | AF78: 0 | AH78: 0 | AJ78: 0 | AL78: 0 | AN78: 0 | AP78: 0 | AR78: 0 | AT78: 0
B79: Travel in Decreasing Milepost Direction
B80: Entrance | C80: Ramp entrance in segment? (If yes, indicate type.): | H80: =G80 -> 0 | J80: =I80 -> 0 | L80: =K80 -> 0 | N80: =M80 -> 0 | P80: =O80 -> 0 | R80: =Q80 -> 0 | T80: =S80 -> 0 | V80: =U80 -> 0 | X80: =W80 -> 0 | Z80: =Y80 -> 0 | AB80: =AA80 -> 0 | AD80: =AC80 -> 0 | AF80: =AE80 -> 0 | AH80: =AG80 -> 0 | AJ80: =AI80 -> 0 | AL80: =AK80 -> 0 | AN80: =AM80 -> 0 | AP80: =AO80 -> 0 | AR80: =AQ80 -> 0 | AT80: =AS80 -> 0
B81: Ramp | C81: Distance from end milepost to upstream entrance ramp gore (Xe,ent), mi: | H81: 0 | J81: 0 | L81: 0 | N81: 0 | P81: 0 | R81: 0 | T81: 0 | V81: 0 | X81: 0 | Z81: 0 | AB81: 0 | AD81: 0 | AF81: 0 | AH81: 0 | AJ81: 0 | AL81: 0 | AN81: 0 | AP81: 0 | AR81: 0 | AT81: 0
C82: Length of ramp entrance (Len,dec), mi: | H82: 0 | J82: 0 | L82: 0 | N82: 0 | P82: 0 | R82: 0 | T82: 0 | V82: 0 | X82: 0 | Z82: 0 | AB82: 0 | AD82: 0 | AF82: 0 | AH82: 0 | AJ82: 0 | AL82: 0 | AN82: 0 | AP82: 0 | AR82: 0 | AT82: 0
C83: Length of ramp entrance in segment (Len,seg,dec), mi: | H83: 0 | J83: 0 | L83: 0 | N83: 0 | P83: 0 | R83: 0 | T83: 0 | V83: 0 | X83: 0 | Z83: 0 | AB83: 0 | AD83: 0 | AF83: 0 | AH83: 0 | AJ83: 0 | AL83: 0 | AN83: 0 | AP83: 0 | AR83: 0 | AT83: 0
C84: Entrance side?: | H84: 0 | J84: 0 | L84: 0 | N84: 0 | P84: 0 | R84: 0 | T84: 0 | V84: 0 | X84: 0 | Z84: 0 | AB84: 0 | AD84: 0 | AF84: 0 | AH84: 0 | AJ84: 0 | AL84: 0 | AN84: 0 | AP84: 0 | AR84: 0 | AT84: 0
B85: Exit | C85: Ramp exit in segment? (If yes, indicate type.): | H85: 0 | J85: 0 | L85: 0 | N85: 0 | P85: 0 | R85: 0 | T85: 0 | V85: 0 | X85: 0 | Z85: 0 | AB85: 0 | AD85: 0 | AF85: 0 | AH85: 0 | AJ85: 0 | AL85: 0 | AN85: 0 | AP85: 0 | AR85: 0 | AT85: 0
B86: Ramp | C86: Distance from begin milepost to downstream exit ramp gore (Xb,ext), mi: | H86: 0 | J86: 0 | L86: 0 | N86: 0 | P86: 0 | R86: 0 | T86: 0 | V86: 0 | X86: 0 | Z86: 0 | AB86: 0 | AD86: 0 | AF86: 0 | AH86: 0 | AJ86: 0 | AL86: 0 | AN86: 0 | AP86: 0 | AR86: 0 | AT86: 0
C87: Length of ramp exit (Lex,dec), mi: | H87: 0 | J87: 0 | L87: 0 | N87: 0 | P87: 0 | R87: 0 | T87: 0 | V87: 0 | X87: 0 | Z87: 0 | AB87: 0 | AD87: 0 | AF87: 0 | AH87: 0 | AJ87: 0 | AL87: 0 | AN87: 0 | AP87: 0 | AR87: 0 | AT87: 0
C88: Length of ramp exit in segment (Lex,seg,dec), mi: | H88: 0 | J88: 0 | L88: 0 | N88: 0 | P88: 0 | R88: 0 | T88: 0 | V88: 0 | X88: 0 | Z88: 0 | AB88: 0 | AD88: 0 | AF88: 0 | AH88: 0 | AJ88: 0 | AL88: 0 | AN88: 0 | AP88: 0 | AR88: 0 | AT88: 0
C89: Exit side?: | H89: 0 | J89: 0 | L89: 0 | N89: 0 | P89: 0 | R89: 0 | T89: 0 | V89: 0 | X89: 0 | Z89: 0 | AB89: 0 | AD89: 0 | AF89: 0 | AH89: 0 | AJ89: 0 | AL89: 0 | AN89: 0 | AP89: 0 | AR89: 0 | AT89: 0
B90: Weave | C90: Type B weave in segment?: | H90: 0 | J90: 0 | L90: 0 | N90: 0 | P90: 0 | R90: 0 | T90: 0 | V90: 0 | X90: 0 | Z90: 0 | AB90: 0 | AD90: 0 | AF90: 0 | AH90: 0 | AJ90: 0 | AL90: 0 | AN90: 0 | AP90: 0 | AR90: 0 | AT90: 0
C91: Length of weaving section (Lwev,dec), mi: | H91: 0 | J91: 0 | L91: 0 | N91: 0 | P91: 0 | R91: 0 | T91: 0 | V91: 0 | X91: 0 | Z91: 0 | AB91: 0 | AD91: 0 | AF91: 0 | AH91: 0 | AJ91: 0 | AL91: 0 | AN91: 0 | AP91: 0 | AR91: 0 | AT91: 0
C92: Length of weaving section in segment (Lwev,seg,dec), mi: | H92: 0 | J92: 0 | L92: 0 | N92: 0 | P92: 0 | R92: 0 | T92: 0 | V92: 0 | X92: 0 | Z92: 0 | AB92: 0 | AD92: 0 | AF92: 0 | AH92: 0 | AJ92: 0 | AL92: 0 | AN92: 0 | AP92: 0 | AR92: 0 | AT92: 0
B93: Traffic Data | F93: Year
B94: Proportion of AADT during high-volume hours (Phv):
B95: Freeway Segment Data | F95: =Main!AC5 -> 2010 | G95: 51000 | I95: 17000 | K95: 28000 | M95: 14000 | O95: 19000 | Q95: 19000 | S95: 27000 | U95: 8600 | W95: 11000 | Y95: 15000 | AA95: 4000 | AC95: 41000 | AE95: 18000 | AG95: 4000 | AI95: 37000 | AK95: 18000 | AM95: 17000 | AO95: 20000 | AQ95: 18000 | AS95: 19000
B96: Average daily traffic (AADTfs) by year, veh/d: | F96: =F95+1 -> 2011 | G96: 54000 | I96: 17000 | K96: 28000 | M96: 14000 | O96: 20000 | Q96: 19000 | S96: 26000 | U96: 8800 | W96: 13000 | Y96: 16000 | AA96: 3800 | AC96: 41000 | AE96: 19000 | AG96: 3800 | AI96: 38000 | AK96: 19000 | AM96: 18000 | AO96: 21000 | AQ96: 19000 | AS96: 20000
B97: (enter data only for those years for which | F97: =F96+1 -> 2012 | G97: 53000 | I97: 19000 | K97: 27000 | M97: 14000 | O97: 19000 | Q97: 20000 | S97: 29000 | U97: 8600 | W97: 15000 | Y97: 16000 | AA97: 4100 | AC97: 41000 | AE97: 19000 | AG97: 4400 | AI97: 37000 | AK97: 19000 | AM97: 19000 | AO97: 21000 | AQ97: 20000 | AS97: 21000
B98: it is available, leave other years blank) | F98: 2013 | G98: 53000 | I98: 19000 | K98: 27000 | M98: 14000 | O98: 19000 | Q98: 20000 | S98: 29000 | U98: 8600 | W98: 15000 | Y98: 16000 | AA98: 4100 | AC98: 41000 | AE98: 19000 | AG98: 4400 | AI98: 37000 | AK98: 19000 | AM98: 19000 | AO98: 21000 | AQ98: 20000 | AS98: 21000
F99: 2014 | G99: 53500 | I99: 19800 | K99: 26600 | M99: 14000 | O99: 18900 | Q99: 20400 | S99: 29900 | U99: 8580 | W99: 16400 | Y99: 16300 | AA99: 4160 | AC99: 41000 | AE99: 19700 | AG99: 4580 | AI99: 36900 | AK99: 19300 | AM99: 19700 | AO99: 21300 | AQ99: 20700 | AS99: 21700
F100: 2015 | G100: 54000 | I100: 20600 | K100: 26200 | M100: 14000 | O100: 18800 | Q100: 20800 | S100: 30800 | U100: 8560 | W100: 17800 | Y100: 16600 | AA100: 4220 | AC100: 41000 | AE100: 20400 | AG100: 4760 | AI100: 36800 | AK100: 19600 | AM100: 20400 | AO100: 21600 | AQ100: 21400 | AS100: 22400
F101: 2016
F102: 2017
F103: 2018
F104: 2019
F105: 2020
F106: 2021
F107: 2022
F108: 2023
F109: 2024
F110: 2025
F111: 2026
F112: 2027
F113: 2028
F114: 2029
F115: 2030
F116: 2031
F117: 2032
F118: 2033
B119: Entrance Ramp Data for Travel in Increasing Milepost Dir. | F119: Year
B120: Average daily traffic (AADTb,ent) by year, veh/d: | F120: =F95 -> 2010
B121: (enter data only for those years for which | F121: 2011
B122: it is available, leave other years blank) | F122: 2012
F123: 2013
F124: 2014
F125: 2015
F126: 2016
F127: 2017
F128: 2018
F129: 2019
F130: 2020
F131: 2021
F132: 2022
F133: 2023
F134: 2024
F135: 2025
F136: 2026
F137: 2027
F138: 2028
F139: 2029
F140: 2030
F141: 2031
F142: 2032
F143: 2033
B144: Exit Ramp Data for Travel in Increasing Milepost Direction | F144: =F119 -> Year
B145: Average daily traffic (AADTe,ext) by year, veh/d: | F145: 2010
B146: (enter data only for those years for which | F146: 2011
B147: it is available, leave other years blank) | F147: 2012
F148: 2013
F149: 2014
F150: 2015
F151: 2016
F152: 2017
F153: 2018
F154: 2019
F155: 2020
F156: 2021
F157: 2022
F158: 2023
F159: 2024
F160: 2025
F161: 2026
F162: 2027
F163: 2028
F164: 2029
F165: 2030
F166: 2031
F167: 2032
F168: 2033
B169: Entrance Ramp Data for Travel in Decreasing Milepost Dir. | F169: Year
B170: Average daily traffic (AADTe,ent) by year, veh/d: | F170: 2010
B171: (enter data only for those years for which | F171: 2011
B172: it is available, leave other years blank) | F172: 2012
F173: 2013
F174: 2014
F175: 2015
F176: 2016
F177: 2017
F178: 2018
F179: 2019
F180: 2020
F181: 2021
F182: 2022
F183: 2023
F184: 2024
F185: =F160 -> 2025
F186: 2026
F187: 2027
F188: 2028
F189: 2029
F190: 2030
F191: 2031
F192: 2032
F193: 2033
B194: Exit Ramp Data for Travel in Decreasing Milepost Direction | F194: Year
B195: Average daily traffic (AADTb,ext) by year, veh/d: | F195: 2010
B196: (enter data only for those years for which | F196: 2011
B197: it is available, leave other years blank) | F197: 2012
F198: 2013
F199: 2014
F200: 2015
F201: 2016
F202: 2017
... 71 more rows

Sheet Input Ramp Segments
E3: Input Worksheet for Ramp Segments
G4: ="Segment "& TEXT(INT((COLUMN()-5)/2),"0") -> Segment 1 | I4: ="Segment "& TEXT(INT((COLUMN()-5)/2),"0") -> Segment 2 | K4: ="Segment "& TEXT(INT((COLUMN()-5)/2),"0") -> Segment 3 | M4: ="Segment "& TEXT(INT((COLUMN()-5)/2),"0") -> Segment 4 | O4: ="Segment "& TEXT(INT((COLUMN()-5)/2),"0") -> Segment 5 | Q4: ="Segment "& TEXT(INT((COLUMN()-5)/2),"0") -> Segment 6 | S4: ="Segment "& TEXT(INT((COLUMN()-5)/2),"0") -> Segment 7 | U4: ="Segment "& TEXT(INT((COLUMN()-5)/2),"0") -> Segment 8 | W4: ="Segment "& TEXT(INT((COLUMN()-5)/2),"0") -> Segment 9 | Y4: ="Segment "& TEXT(INT((COLUMN()-5)/2),"0") -> Segment 10 | AA4: ="Segment "& TEXT(INT((COLUMN()-5)/2),"0") -> Segment 11 | AC4: ="Segment "& TEXT(INT((COLUMN()-5)/2),"0") -> Segment 12 | AE4: ="Segment "& TEXT(INT((COLUMN()-5)/2),"0") -> Segment 13 | AG4: ="Segment "& TEXT(INT((COLUMN()-5)/2),"0") -> Segment 14 | AI4: ="Segment "& TEXT(INT((COLUMN()-5)/2),"0") -> Segment 15 | AK4: ="Segment "& TEXT(INT((COLUMN()-5)/2),"0") -> Segment 16 | AM4: ="Segment "& TEXT(INT((COLUMN()-5)/2),"0") -> Segment 17 | AO4: ="Segment "& TEXT(INT((COLUMN()-5)/2),"0") -> Segment 18 | AQ4: ="Segment "& TEXT(INT((COLUMN()-5)/2),"0") -> Segment 19 | AS4: ="Segment "& TEXT(INT((COLUMN()-5)/2),"0") -> Segment 20 | AU4: ="Segment "& TEXT(INT((COLUMN()-5)/2),"0") -> Segment 21 | AW4: ="Segment "& TEXT(INT((COLUMN()-5)/2),"0") -> Segment 22 | AY4: ="Segment "& TEXT(INT((COLUMN()-5)/2),"0") -> Segment 23 | BA4: ="Segment "& TEXT(INT((COLUMN()-5)/2),"0") -> Segment 24 | BC4: ="Segment "& TEXT(INT((COLUMN()-5)/2),"0") -> Segment 25 | BE4: ="Segment "& TEXT(INT((COLUMN()-5)/2),"0") -> Segment 26 | BG4: ="Segment "& TEXT(INT((COLUMN()-5)/2),"0") -> Segment 27 | BI4: ="Segment "& TEXT(INT((COLUMN()-5)/2),"0") -> Segment 28 | BK4: ="Segment "& TEXT(INT((COLUMN()-5)/2),"0") -> Segment 29 | BM4: ="Segment "& TEXT(INT((COLUMN()-5)/2),"0") -> Segment 30 | BO4: ="Segment "& TEXT(INT((COLUMN()-5)/2),"0") -> Segment 31 | BQ4: ="Segment "& TEXT(INT((COLUMN()-5)/2),"0") -> Segment 32 | BS4: ="Segment "& TEXT(INT((COLUMN()-5)/2),"0") -> Segment 33 | BU4: ="Segment "& TEXT(INT((COLUMN()-5)/2),"0") -> Segment 34 | BW4: ="Segment "& TEXT(INT((COLUMN()-5)/2),"0") -> Segment 35 | BY4: ="Segment "& TEXT(INT((COLUMN()-5)/2),"0") -> Segment 36 | CA4: ="Segment "& TEXT(INT((COLUMN()-5)/2),"0") -> Segment 37 | CC4: ="Segment "& TEXT(INT((COLUMN()-5)/2),"0") -> Segment 38 | CE4: ="Segment "& TEXT(INT((COLUMN()-5)/2),"0") -> Segment 39 | CG4: ="Segment "& TEXT(INT((COLUMN()-5)/2),"0") -> Segment 40 | CJ4: =G4 -> Segment 1 | CL4: =I4 -> Segment 2 | CN4: =K4 -> Segment 3 | CP4: =M4 -> Segment 4 | CR4: =O4 -> Segment 5 | CT4: =Q4 -> Segment 6 | CV4: =S4 -> Segment 7 | CX4: =U4 -> Segment 8 | CZ4: =W4 -> Segment 9 | DB4: =Y4 -> Segment 10 | DD4: =AA4 -> Segment 11 | DF4: =AC4 -> Segment 12 | DH4: =AE4 -> Segment 13 | DJ4: =AG4 -> Segment 14 | DL4: =AI4 -> Segment 15 | DN4: =AK4 -> Segment 16 | DP4: =AM4 -> Segment 17 | DR4: =AO4 -> Segment 18 | DT4: =AQ4 -> Segment 19 | DV4: =AS4 -> Segment 20 | DX4: =AU4 -> Segment 21 | DZ4: =AW4 -> Segment 22 | EB4: =AY4 -> Segment 23 | ED4: =BA4 -> Segment 24 | EF4: =BC4 -> Segment 25 | EH4: =BE4 -> Segment 26 | EJ4: =BG4 -> Segment 27 | EL4: =BI4 -> Segment 28 | EN4: =BK4 -> Segment 29 | EP4: =BM4 -> Segment 30 | ER4: =BO4 -> Segment 31 | ET4: =BQ4 -> Segment 32 | EV4: =BS4 -> Segment 33 | EX4: =BU4 -> Segment 34 | EZ4: =BW4 -> Segment 35 | FB4: =BY4 -> Segment 36 | FD4: =CA4 -> Segment 37 | FF4: =CC4 -> Segment 38 | FH4: =CE4 -> Segment 39 | FJ4: =CG4 -> Segment 40
G5: =IF(Main!$AG$14=TRUE, "Crash Period", "Study Period") -> Study Period | H5: =IF(Main!$AG$14=TRUE, "Study Period", "") ->  | I5: =G5 -> Study Period | K5: Study Period | M5: Study Period | O5: Study Period | Q5: Study Period | S5: Study Period | U5: Study Period | W5: Study Period | Y5: Study Period | AA5: Study Period | AC5: Study Period | AE5: Study Period | AG5: Study Period | AI5: Study Period | AK5: Study Period | AM5: Study Period | AO5: =AM5 -> Study Period | AQ5: Study Period | AS5: Study Period | AU5: Study Period | AW5: Study Period | AY5: Study Period | BA5: Study Period | BC5: Study Period | BE5: Study Period | BG5: Study Period | BI5: Study Period | BK5: Study Period | BM5: Study Period | BO5: Study Period | BQ5: Study Period | BS5: Study Period | BU5: =BS5 -> Study Period | BW5: Study Period | BY5: Study Period | CA5: Study Period | CC5: Study Period | CE5: Study Period | CG5: Study Period | CJ5: =G5 -> Study Period | CK5: =H5 ->  | CL5: =I5 -> Study Period | CM5: =J5 ->  | CN5: =K5 -> Study Period | CO5: =L5 ->  | CP5: =M5 -> Study Period | CQ5: =N5 ->  | CR5: =O5 -> Study Period | CS5: =P5 ->  | CT5: =Q5 -> Study Period | CU5: =R5 ->  | CV5: =S5 -> Study Period | CW5: =T5 ->  | CX5: =U5 -> Study Period | CY5: =V5 ->  | CZ5: =W5 -> Study Period | DA5: =X5 ->  | DB5: =Y5 -> Study Period | DC5: =Z5 ->  | DD5: =AA5 -> Study Period | DE5: =AB5 ->  | DF5: =AC5 -> Study Period | DG5: =AD5 ->  | DH5: =AE5 -> Study Period | DI5: =AF5 ->  | DJ5: =AG5 -> Study Period | DK5: =AH5 ->  | DL5: =AI5 -> Study Period | DM5: =AJ5 ->  | DN5: =AK5 -> Study Period | DO5: =AL5 ->  | DP5: =AM5 -> Study Period | DQ5: =AN5 ->  | DR5: =AO5 -> Study Period | DS5: =AP5 ->  | DT5: =AQ5 -> Study Period | DU5: =AR5 ->  | DV5: =AS5 -> Study Period | DW5: =AT5 ->  | DX5: =AU5 -> Study Period | DY5: =AV5 ->  | DZ5: =AW5 -> Study Period | EA5: =AX5 ->  | EB5: =AY5 -> Study Period | EC5: =AZ5 ->  | ED5: =BA5 -> Study Period | EE5: =BB5 ->  | EF5: =BC5 -> Study Period | EG5: =BD5 ->  | EH5: =BE5 -> Study Period | EI5: =BF5 ->  | EJ5: =BG5 -> Study Period | EK5: =BH5 ->  | EL5: =BI5 -> Study Period | EM5: =BJ5 ->  | EN5: =BK5 -> Study Period | EO5: =BL5 ->  | EP5: =BM5 -> Study Period | EQ5: =BN5 ->  | ER5: =BO5 -> Study Period | ES5: =BP5 ->  | ET5: =BQ5 -> Study Period | EU5: =BR5 ->  | EV5: =BS5 -> Study Period | EW5: =BT5 ->  | EX5: =BU5 -> Study Period | EY5: =BV5 ->  | EZ5: =BW5 -> Study Period | FA5: =BX5 ->  | FB5: =BY5 -> Study Period | FC5: =BZ5 ->  | FD5: =CA5 -> Study Period | FE5: =CB5 ->  | FF5: =CC5 -> Study Period | FG5: =CD5 ->  | FH5: =CE5 -> Study Period | FI5: =CF5 ->  | FJ5: =CG5 -> Study Period | FK5: =CH5 -> 
C6: (View results in Column CJ) | D6: (View results in Advisory Messages)
B7: Basic Roadway Data
B8: Number of through lanes (n): | H8: =G8 -> 0 | J8: =I8 -> 0 | L8: =K8 -> 0 | N8: =M8 -> 0 | P8: =O8 -> 0 | R8: =Q8 -> 0 | T8: =S8 -> 0 | V8: =U8 -> 0 | X8: =W8 -> 0 | Z8: =Y8 -> 0 | AB8: =AA8 -> 0 | AD8: =AC8 -> 0 | AF8: =AE8 -> 0 | AH8: =AG8 -> 0 | AJ8: =AI8 -> 0 | AL8: =AK8 -> 0 | AN8: =AM8 -> 0 | AP8: =AO8 -> 0 | AR8: =AQ8 -> 0 | AT8: =AS8 -> 0 | AV8: =AU8 -> 0 | AX8: =AW8 -> 0 | AZ8: =AY8 -> 0 | BB8: =BA8 -> 0 | BD8: =BC8 -> 0 | BF8: =BE8 -> 0 | BH8: =BG8 -> 0 | BJ8: =BI8 -> 0 | BL8: =BK8 -> 0 | BN8: =BM8 -> 0 | BP8: =BO8 -> 0 | BR8: =BQ8 -> 0 | BT8: =BS8 -> 0 | BV8: =BU8 -> 0 | BX8: =BW8 -> 0 | BZ8: =BY8 -> 0 | CB8: =CA8 -> 0 | CD8: =CC8 -> 0 | CF8: =CE8 -> 0 | CH8: =CG8 -> 0
B9: Ramp segment description:
B10: Segment length (L), mi: | H10: =G10 -> 0 | J10: =I10 -> 0 | L10: =K10 -> 0 | N10: =M10 -> 0 | P10: =O10 -> 0 | R10: =Q10 -> 0 | T10: =S10 -> 0 | V10: =U10 -> 0 | X10: =W10 -> 0 | Z10: =Y10 -> 0 | AB10: =AA10 -> 0 | AD10: =AC10 -> 0 | AF10: =AE10 -> 0 | AH10: =AG10 -> 0 | AJ10: =AI10 -> 0 | AL10: =AK10 -> 0 | AN10: =AM10 -> 0 | AP10: =AO10 -> 0 | AR10: =AQ10 -> 0 | AT10: =AS10 -> 0 | AV10: =AU10 -> 0 | AX10: =AW10 -> 0 | AZ10: =AY10 -> 0 | BB10: =BA10 -> 0 | BD10: =BC10 -> 0 | BF10: =BE10 -> 0 | BH10: =BG10 -> 0 | BJ10: =BI10 -> 0 | BL10: =BK10 -> 0 | BN10: =BM10 -> 0 | BP10: =BO10 -> 0 | BR10: =BQ10 -> 0 | BT10: =BS10 -> 0 | BV10: =BU10 -> 0 | BX10: =BW10 -> 0 | BZ10: =BY10 -> 0 | CB10: =CA10 -> 0 | CD10: =CC10 -> 0 | CF10: =CE10 -> 0 | CH10: =CG10 -> 0
B11: Average traffic speed on the freeway (Vfrwy), mi/h: | H11: =G11 -> 0 | J11: =I11 -> 0 | L11: =K11 -> 0 | N11: =M11 -> 0 | P11: =O11 -> 0 | R11: =Q11 -> 0 | T11: =S11 -> 0 | V11: =U11 -> 0 | X11: =W11 -> 0 | Z11: =Y11 -> 0 | AB11: =AA11 -> 0 | AD11: =AC11 -> 0 | AF11: =AE11 -> 0 | AH11: =AG11 -> 0 | AJ11: =AI11 -> 0 | AL11: =AK11 -> 0 | AN11: =AM11 -> 0 | AP11: =AO11 -> 0 | AR11: =AQ11 -> 0 | AT11: =AS11 -> 0 | AV11: =AU11 -> 0 | AX11: =AW11 -> 0 | AZ11: =AY11 -> 0 | BB11: =BA11 -> 0 | BD11: =BC11 -> 0 | BF11: =BE11 -> 0 | BH11: =BG11 -> 0 | BJ11: =BI11 -> 0 | BL11: =BK11 -> 0 | BN11: =BM11 -> 0 | BP11: =BO11 -> 0 | BR11: =BQ11 -> 0 | BT11: =BS11 -> 0 | BV11: =BU11 -> 0 | BX11: =BW11 -> 0 | BZ11: =BY11 -> 0 | CB11: =CA11 -> 0 | CD11: =CC11 -> 0 | CF11: =CE11 -> 0 | CH11: =CG11 -> 0
B12: Segment type (ramp or collector-distributor road): | H12: =G12 -> 0 | J12: =I12 -> 0 | L12: =K12 -> 0 | N12: =M12 -> 0 | P12: =O12 -> 0 | R12: =Q12 -> 0 | T12: =S12 -> 0 | V12: =U12 -> 0 | X12: =W12 -> 0 | Z12: =Y12 -> 0 | AB12: =AA12 -> 0 | AD12: =AC12 -> 0 | AF12: =AE12 -> 0 | AH12: =AG12 -> 0 | AJ12: =AI12 -> 0 | AL12: =AK12 -> 0 | AN12: =AM12 -> 0 | AP12: =AO12 -> 0 | AR12: =AQ12 -> 0 | AT12: =AS12 -> 0 | AV12: =AU12 -> 0 | AX12: =AW12 -> 0 | AZ12: =AY12 -> 0 | BB12: =BA12 -> 0 | BD12: =BC12 -> 0 | BF12: =BE12 -> 0 | BH12: =BG12 -> 0 | BJ12: =BI12 -> 0 | BL12: =BK12 -> 0 | BN12: =BM12 -> 0 | BP12: =BO12 -> 0 | BR12: =BQ12 -> 0 | BT12: =BS12 -> 0 | BV12: =BU12 -> 0 | BX12: =BW12 -> 0 | BZ12: =BY12 -> 0 | CB12: =CA12 -> 0 | CD12: =CC12 -> 0 | CF12: =CE12 -> 0 | CH12: =CG12 -> 0
B13: Type of control at crossroad ramp terminal: | H13: =G13 -> 0 | J13: =I13 -> 0 | L13: =K13 -> 0 | N13: =M13 -> 0 | P13: =O13 -> 0 | R13: =Q13 -> 0 | T13: =S13 -> 0 | V13: =U13 -> 0 | X13: =W13 -> 0 | Z13: =Y13 -> 0 | AB13: =AA13 -> 0 | AD13: =AC13 -> 0 | AF13: =AE13 -> 0 | AH13: =AG13 -> 0 | AJ13: =AI13 -> 0 | AL13: =AK13 -> 0 | AN13: =AM13 -> 0 | AP13: =AO13 -> 0 | AR13: =AQ13 -> 0 | AT13: =AS13 -> 0 | AV13: =AU13 -> 0 | AX13: =AW13 -> 0 | AZ13: =AY13 -> 0 | BB13: =BA13 -> 0 | BD13: =BC13 -> 0 | BF13: =BE13 -> 0 | BH13: =BG13 -> 0 | BJ13: =BI13 -> 0 | BL13: =BK13 -> 0 | BN13: =BM13 -> 0 | BP13: =BO13 -> 0 | BR13: =BQ13 -> 0 | BT13: =BS13 -> 0 | BV13: =BU13 -> 0 | BX13: =BW13 -> 0 | BZ13: =BY13 -> 0 | CB13: =CA13 -> 0 | CD13: =CC13 -> 0 | CF13: =CE13 -> 0 | CH13: =CG13 -> 0
B14: Alignment Data
B15: Horizontal Curve Data | E15: See notes
B16: 1 | C16: Horizontal curve?: | H16: =G16 -> 0 | J16: =I16 -> 0 | L16: =K16 -> 0 | N16: =M16 -> 0 | P16: =O16 -> 0 | R16: =Q16 -> 0 | T16: =S16 -> 0 | V16: =U16 -> 0 | X16: =W16 -> 0 | Z16: =Y16 -> 0 | AB16: =AA16 -> 0 | AD16: =AC16 -> 0 | AF16: =AE16 -> 0 | AH16: =AG16 -> 0 | AJ16: =AI16 -> 0 | AL16: =AK16 -> 0 | AN16: =AM16 -> 0 | AP16: =AO16 -> 0 | AR16: =AQ16 -> 0 | AT16: =AS16 -> 0 | AV16: =AU16 -> 0 | AX16: =AW16 -> 0 | AZ16: =AY16 -> 0 | BB16: =BA16 -> 0 | BD16: =BC16 -> 0 | BF16: =BE16 -> 0 | BH16: =BG16 -> 0 | BJ16: =BI16 -> 0 | BL16: =BK16 -> 0 | BN16: =BM16 -> 0 | BP16: =BO16 -> 0 | BR16: =BQ16 -> 0 | BT16: =BS16 -> 0 | BV16: =BU16 -> 0 | BX16: =BW16 -> 0 | BZ16: =BY16 -> 0 | CB16: =CA16 -> 0 | CD16: =CC16 -> 0 | CF16: =CE16 -> 0 | CH16: =CG16 -> 0
C17: Curve radius (R1), ft: | H17: =G17 -> 0 | J17: =I17 -> 0 | L17: =K17 -> 0 | N17: =M17 -> 0 | P17: =O17 -> 0 | R17: =Q17 -> 0 | T17: =S17 -> 0 | V17: =U17 -> 0 | X17: =W17 -> 0 | Z17: =Y17 -> 0 | AB17: =AA17 -> 0 | AD17: =AC17 -> 0 | AF17: =AE17 -> 0 | AH17: =AG17 -> 0 | AJ17: =AI17 -> 0 | AL17: =AK17 -> 0 | AN17: =AM17 -> 0 | AP17: =AO17 -> 0 | AR17: =AQ17 -> 0 | AT17: =AS17 -> 0 | AV17: =AU17 -> 0 | AX17: =AW17 -> 0 | AZ17: =AY17 -> 0 | BB17: =BA17 -> 0 | BD17: =BC17 -> 0 | BF17: =BE17 -> 0 | BH17: =BG17 -> 0 | BJ17: =BI17 -> 0 | BL17: =BK17 -> 0 | BN17: =BM17 -> 0 | BP17: =BO17 -> 0 | BR17: =BQ17 -> 0 | BT17: =BS17 -> 0 | BV17: =BU17 -> 0 | BX17: =BW17 -> 0 | BZ17: =BY17 -> 0 | CB17: =CA17 -> 0 | CD17: =CC17 -> 0 | CF17: =CE17 -> 0 | CH17: =CG17 -> 0
C18: Length of curve (Lc1), mi: | H18: =G18 -> 0 | J18: =I18 -> 0 | L18: =K18 -> 0 | N18: =M18 -> 0 | P18: =O18 -> 0 | R18: =Q18 -> 0 | T18: =S18 -> 0 | V18: =U18 -> 0 | X18: =W18 -> 0 | Z18: =Y18 -> 0 | AB18: =AA18 -> 0 | AD18: =AC18 -> 0 | AF18: =AE18 -> 0 | AH18: =AG18 -> 0 | AJ18: =AI18 -> 0 | AL18: =AK18 -> 0 | AN18: =AM18 -> 0 | AP18: =AO18 -> 0 | AR18: =AQ18 -> 0 | AT18: =AS18 -> 0 | AV18: =AU18 -> 0 | AX18: =AW18 -> 0 | AZ18: =AY18 -> 0 | BB18: =BA18 -> 0 | BD18: =BC18 -> 0 | BF18: =BE18 -> 0 | BH18: =BG18 -> 0 | BJ18: =BI18 -> 0 | BL18: =BK18 -> 0 | BN18: =BM18 -> 0 | BP18: =BO18 -> 0 | BR18: =BQ18 -> 0 | BT18: =BS18 -> 0 | BV18: =BU18 -> 0 | BX18: =BW18 -> 0 | BZ18: =BY18 -> 0 | CB18: =CA18 -> 0 | CD18: =CC18 -> 0 | CF18: =CE18 -> 0 | CH18: =CG18 -> 0
C19: Length of curve in segment (Lc1,seg), mi: | H19: =G19 -> 0 | J19: =I19 -> 0 | L19: =K19 -> 0 | N19: =M19 -> 0 | P19: =O19 -> 0 | R19: =Q19 -> 0 | T19: =S19 -> 0 | V19: =U19 -> 0 | X19: =W19 -> 0 | Z19: =Y19 -> 0 | AB19: =AA19 -> 0 | AD19: =AC19 -> 0 | AF19: =AE19 -> 0 | AH19: =AG19 -> 0 | AJ19: =AI19 -> 0 | AL19: =AK19 -> 0 | AN19: =AM19 -> 0 | AP19: =AO19 -> 0 | AR19: =AQ19 -> 0 | AT19: =AS19 -> 0 | AV19: =AU19 -> 0 | AX19: =AW19 -> 0 | AZ19: =AY19 -> 0 | BB19: =BA19 -> 0 | BD19: =BC19 -> 0 | BF19: =BE19 -> 0 | BH19: =BG19 -> 0 | BJ19: =BI19 -> 0 | BL19: =BK19 -> 0 | BN19: =BM19 -> 0 | BP19: =BO19 -> 0 | BR19: =BQ19 -> 0 | BT19: =BS19 -> 0 | BV19: =BU19 -> 0 | BX19: =BW19 -> 0 | BZ19: =BY19 -> 0 | CB19: =CA19 -> 0 | CD19: =CC19 -> 0 | CF19: =CE19 -> 0 | CH19: =CG19 -> 0
C20: Ramp-mile of beginning of curve in direction of travel (X1), mi: | H20: =G20 -> 0 | J20: =I20 -> 0 | L20: =K20 -> 0 | N20: =M20 -> 0 | P20: =O20 -> 0 | R20: =Q20 -> 0 | T20: =S20 -> 0 | V20: =U20 -> 0 | X20: =W20 -> 0 | Z20: =Y20 -> 0 | AB20: =AA20 -> 0 | AD20: =AC20 -> 0 | AF20: =AE20 -> 0 | AH20: =AG20 -> 0 | AJ20: =AI20 -> 0 | AL20: =AK20 -> 0 | AN20: =AM20 -> 0 | AP20: =AO20 -> 0 | AR20: =AQ20 -> 0 | AT20: =AS20 -> 0 | AV20: =AU20 -> 0 | AX20: =AW20 -> 0 | AZ20: =AY20 -> 0 | BB20: =BA20 -> 0 | BD20: =BC20 -> 0 | BF20: =BE20 -> 0 | BH20: =BG20 -> 0 | BJ20: =BI20 -> 0 | BL20: =BK20 -> 0 | BN20: =BM20 -> 0 | BP20: =BO20 -> 0 | BR20: =BQ20 -> 0 | BT20: =BS20 -> 0 | BV20: =BU20 -> 0 | BX20: =BW20 -> 0 | BZ20: =BY20 -> 0 | CB20: =CA20 -> 0 | CD20: =CC20 -> 0 | CF20: =CE20 -> 0 | CH20: =CG20 -> 0
B21: 2 | C21: Horizontal curve?: | H21: =G21 -> 0 | J21: =I21 -> 0 | L21: =K21 -> 0 | N21: =M21 -> 0 | P21: =O21 -> 0 | R21: =Q21 -> 0 | T21: =S21 -> 0 | V21: =U21 -> 0 | X21: =W21 -> 0 | Z21: =Y21 -> 0 | AB21: =AA21 -> 0 | AD21: =AC21 -> 0 | AF21: =AE21 -> 0 | AH21: =AG21 -> 0 | AJ21: =AI21 -> 0 | AL21: =AK21 -> 0 | AN21: =AM21 -> 0 | AP21: =AO21 -> 0 | AR21: =AQ21 -> 0 | AT21: =AS21 -> 0 | AV21: =AU21 -> 0 | AX21: =AW21 -> 0 | AZ21: =AY21 -> 0 | BB21: =BA21 -> 0 | BD21: =BC21 -> 0 | BF21: =BE21 -> 0 | BH21: =BG21 -> 0 | BJ21: =BI21 -> 0 | BL21: =BK21 -> 0 | BN21: =BM21 -> 0 | BP21: =BO21 -> 0 | BR21: =BQ21 -> 0 | BT21: =BS21 -> 0 | BV21: =BU21 -> 0 | BX21: =BW21 -> 0 | BZ21: =BY21 -> 0 | CB21: =CA21 -> 0 | CD21: =CC21 -> 0 | CF21: =CE21 -> 0 | CH21: =CG21 -> 0
C22: Curve radius (R2), ft: | H22: =G22 -> 0 | J22: =I22 -> 0 | L22: =K22 -> 0 | N22: =M22 -> 0 | P22: =O22 -> 0 | R22: =Q22 -> 0 | T22: =S22 -> 0 | V22: =U22 -> 0 | X22: =W22 -> 0 | Z22: =Y22 -> 0 | AB22: =AA22 -> 0 | AD22: =AC22 -> 0 | AF22: =AE22 -> 0 | AH22: =AG22 -> 0 | AJ22: =AI22 -> 0 | AL22: =AK22 -> 0 | AN22: =AM22 -> 0 | AP22: =AO22 -> 0 | AR22: =AQ22 -> 0 | AT22: =AS22 -> 0 | AV22: =AU22 -> 0 | AX22: =AW22 -> 0 | AZ22: =AY22 -> 0 | BB22: =BA22 -> 0 | BD22: =BC22 -> 0 | BF22: =BE22 -> 0 | BH22: =BG22 -> 0 | BJ22: =BI22 -> 0 | BL22: =BK22 -> 0 | BN22: =BM22 -> 0 | BP22: =BO22 -> 0 | BR22: =BQ22 -> 0 | BT22: =BS22 -> 0 | BV22: =BU22 -> 0 | BX22: =BW22 -> 0 | BZ22: =BY22 -> 0 | CB22: =CA22 -> 0 | CD22: =CC22 -> 0 | CF22: =CE22 -> 0 | CH22: =CG22 -> 0
C23: Length of curve (Lc2), mi: | H23: =G23 -> 0 | J23: =I23 -> 0 | L23: =K23 -> 0 | N23: =M23 -> 0 | P23: =O23 -> 0 | R23: =Q23 -> 0 | T23: =S23 -> 0 | V23: =U23 -> 0 | X23: =W23 -> 0 | Z23: =Y23 -> 0 | AB23: =AA23 -> 0 | AD23: =AC23 -> 0 | AF23: =AE23 -> 0 | AH23: =AG23 -> 0 | AJ23: =AI23 -> 0 | AL23: =AK23 -> 0 | AN23: =AM23 -> 0 | AP23: =AO23 -> 0 | AR23: =AQ23 -> 0 | AT23: =AS23 -> 0 | AV23: =AU23 -> 0 | AX23: =AW23 -> 0 | AZ23: =AY23 -> 0 | BB23: =BA23 -> 0 | BD23: =BC23 -> 0 | BF23: =BE23 -> 0 | BH23: =BG23 -> 0 | BJ23: =BI23 -> 0 | BL23: =BK23 -> 0 | BN23: =BM23 -> 0 | BP23: =BO23 -> 0 | BR23: =BQ23 -> 0 | BT23: =BS23 -> 0 | BV23: =BU23 -> 0 | BX23: =BW23 -> 0 | BZ23: =BY23 -> 0 | CB23: =CA23 -> 0 | CD23: =CC23 -> 0 | CF23: =CE23 -> 0 | CH23: =CG23 -> 0
C24: Length of curve in segment (Lc2,seg), mi: | H24: =G24 -> 0 | J24: =I24 -> 0 | L24: =K24 -> 0 | N24: =M24 -> 0 | P24: =O24 -> 0 | R24: =Q24 -> 0 | T24: =S24 -> 0 | V24: =U24 -> 0 | X24: =W24 -> 0 | Z24: =Y24 -> 0 | AB24: =AA24 -> 0 | AD24: =AC24 -> 0 | AF24: =AE24 -> 0 | AH24: =AG24 -> 0 | AJ24: =AI24 -> 0 | AL24: =AK24 -> 0 | AN24: =AM24 -> 0 | AP24: =AO24 -> 0 | AR24: =AQ24 -> 0 | AT24: =AS24 -> 0 | AV24: =AU24 -> 0 | AX24: =AW24 -> 0 | AZ24: =AY24 -> 0 | BB24: =BA24 -> 0 | BD24: =BC24 -> 0 | BF24: =BE24 -> 0 | BH24: =BG24 -> 0 | BJ24: =BI24 -> 0 | BL24: =BK24 -> 0 | BN24: =BM24 -> 0 | BP24: =BO24 -> 0 | BR24: =BQ24 -> 0 | BT24: =BS24 -> 0 | BV24: =BU24 -> 0 | BX24: =BW24 -> 0 | BZ24: =BY24 -> 0 | CB24: =CA24 -> 0 | CD24: =CC24 -> 0 | CF24: =CE24 -> 0 | CH24: =CG24 -> 0
C25: Ramp-mile of beginning of curve in direction of travel (X2), mi: | H25: =G25 -> 0 | J25: =I25 -> 0 | L25: =K25 -> 0 | N25: =M25 -> 0 | P25: =O25 -> 0 | R25: =Q25 -> 0 | T25: =S25 -> 0 | V25: =U25 -> 0 | X25: =W25 -> 0 | Z25: =Y25 -> 0 | AB25: =AA25 -> 0 | AD25: =AC25 -> 0 | AF25: =AE25 -> 0 | AH25: =AG25 -> 0 | AJ25: =AI25 -> 0 | AL25: =AK25 -> 0 | AN25: =AM25 -> 0 | AP25: =AO25 -> 0 | AR25: =AQ25 -> 0 | AT25: =AS25 -> 0 | AV25: =AU25 -> 0 | AX25: =AW25 -> 0 | AZ25: =AY25 -> 0 | BB25: =BA25 -> 0 | BD25: =BC25 -> 0 | BF25: =BE25 -> 0 | BH25: =BG25 -> 0 | BJ25: =BI25 -> 0 | BL25: =BK25 -> 0 | BN25: =BM25 -> 0 | BP25: =BO25 -> 0 | BR25: =BQ25 -> 0 | BT25: =BS25 -> 0 | BV25: =BU25 -> 0 | BX25: =BW25 -> 0 | BZ25: =BY25 -> 0 | CB25: =CA25 -> 0 | CD25: =CC25 -> 0 | CF25: =CE25 -> 0 | CH25: =CG25 -> 0
B26: 3 | C26: Horizontal curve?: | H26: =G26 -> 0 | J26: =I26 -> 0 | L26: =K26 -> 0 | N26: =M26 -> 0 | P26: =O26 -> 0 | R26: =Q26 -> 0 | T26: =S26 -> 0 | V26: =U26 -> 0 | X26: =W26 -> 0 | Z26: =Y26 -> 0 | AB26: =AA26 -> 0 | AD26: =AC26 -> 0 | AF26: =AE26 -> 0 | AH26: =AG26 -> 0 | AJ26: =AI26 -> 0 | AL26: =AK26 -> 0 | AN26: =AM26 -> 0 | AP26: =AO26 -> 0 | AR26: =AQ26 -> 0 | AT26: =AS26 -> 0 | AV26: =AU26 -> 0 | AX26: =AW26 -> 0 | AZ26: =AY26 -> 0 | BB26: =BA26 -> 0 | BD26: =BC26 -> 0 | BF26: =BE26 -> 0 | BH26: =BG26 -> 0 | BJ26: =BI26 -> 0 | BL26: =BK26 -> 0 | BN26: =BM26 -> 0 | BP26: =BO26 -> 0 | BR26: =BQ26 -> 0 | BT26: =BS26 -> 0 | BV26: =BU26 -> 0 | BX26: =BW26 -> 0 | BZ26: =BY26 -> 0 | CB26: =CA26 -> 0 | CD26: =CC26 -> 0 | CF26: =CE26 -> 0 | CH26: =CG26 -> 0
C27: Curve radius (R3), ft: | H27: =G27 -> 0 | J27: =I27 -> 0 | L27: =K27 -> 0 | N27: =M27 -> 0 | P27: =O27 -> 0 | R27: =Q27 -> 0 | T27: =S27 -> 0 | V27: =U27 -> 0 | X27: =W27 -> 0 | Z27: =Y27 -> 0 | AB27: =AA27 -> 0 | AD27: =AC27 -> 0 | AF27: =AE27 -> 0 | AH27: =AG27 -> 0 | AJ27: =AI27 -> 0 | AL27: =AK27 -> 0 | AN27: =AM27 -> 0 | AP27: =AO27 -> 0 | AR27: =AQ27 -> 0 | AT27: =AS27 -> 0 | AV27: =AU27 -> 0 | AX27: =AW27 -> 0 | AZ27: =AY27 -> 0 | BB27: =BA27 -> 0 | BD27: =BC27 -> 0 | BF27: =BE27 -> 0 | BH27: =BG27 -> 0 | BJ27: =BI27 -> 0 | BL27: =BK27 -> 0 | BN27: =BM27 -> 0 | BP27: =BO27 -> 0 | BR27: =BQ27 -> 0 | BT27: =BS27 -> 0 | BV27: =BU27 -> 0 | BX27: =BW27 -> 0 | BZ27: =BY27 -> 0 | CB27: =CA27 -> 0 | CD27: =CC27 -> 0 | CF27: =CE27 -> 0 | CH27: =CG27 -> 0
C28: Length of curve (Lc3), mi: | H28: =G28 -> 0 | J28: =I28 -> 0 | L28: =K28 -> 0 | N28: =M28 -> 0 | P28: =O28 -> 0 | R28: =Q28 -> 0 | T28: =S28 -> 0 | V28: =U28 -> 0 | X28: =W28 -> 0 | Z28: =Y28 -> 0 | AB28: =AA28 -> 0 | AD28: =AC28 -> 0 | AF28: =AE28 -> 0 | AH28: =AG28 -> 0 | AJ28: =AI28 -> 0 | AL28: =AK28 -> 0 | AN28: =AM28 -> 0 | AP28: =AO28 -> 0 | AR28: =AQ28 -> 0 | AT28: =AS28 -> 0 | AV28: =AU28 -> 0 | AX28: =AW28 -> 0 | AZ28: =AY28 -> 0 | BB28: =BA28 -> 0 | BD28: =BC28 -> 0 | BF28: =BE28 -> 0 | BH28: =BG28 -> 0 | BJ28: =BI28 -> 0 | BL28: =BK28 -> 0 | BN28: =BM28 -> 0 | BP28: =BO28 -> 0 | BR28: =BQ28 -> 0 | BT28: =BS28 -> 0 | BV28: =BU28 -> 0 | BX28: =BW28 -> 0 | BZ28: =BY28 -> 0 | CB28: =CA28 -> 0 | CD28: =CC28 -> 0 | CF28: =CE28 -> 0 | CH28: =CG28 -> 0
C29: Length of curve in segment (Lc3,seg), mi: | H29: =G29 -> 0 | J29: =I29 -> 0 | L29: =K29 -> 0 | N29: =M29 -> 0 | P29: =O29 -> 0 | R29: =Q29 -> 0 | T29: =S29 -> 0 | V29: =U29 -> 0 | X29: =W29 -> 0 | Z29: =Y29 -> 0 | AB29: =AA29 -> 0 | AD29: =AC29 -> 0 | AF29: =AE29 -> 0 | AH29: =AG29 -> 0 | AJ29: =AI29 -> 0 | AL29: =AK29 -> 0 | AN29: =AM29 -> 0 | AP29: =AO29 -> 0 | AR29: =AQ29 -> 0 | AT29: =AS29 -> 0 | AV29: =AU29 -> 0 | AX29: =AW29 -> 0 | AZ29: =AY29 -> 0 | BB29: =BA29 -> 0 | BD29: =BC29 -> 0 | BF29: =BE29 -> 0 | BH29: =BG29 -> 0 | BJ29: =BI29 -> 0 | BL29: =BK29 -> 0 | BN29: =BM29 -> 0 | BP29: =BO29 -> 0 | BR29: =BQ29 -> 0 | BT29: =BS29 -> 0 | BV29: =BU29 -> 0 | BX29: =BW29 -> 0 | BZ29: =BY29 -> 0 | CB29: =CA29 -> 0 | CD29: =CC29 -> 0 | CF29: =CE29 -> 0 | CH29: =CG29 -> 0
C30: Ramp-mile of beginning of curve in direction of travel (X3), mi: | H30: =G30 -> 0 | J30: =I30 -> 0 | L30: =K30 -> 0 | N30: =M30 -> 0 | P30: =O30 -> 0 | R30: =Q30 -> 0 | T30: =S30 -> 0 | V30: =U30 -> 0 | X30: =W30 -> 0 | Z30: =Y30 -> 0 | AB30: =AA30 -> 0 | AD30: =AC30 -> 0 | AF30: =AE30 -> 0 | AH30: =AG30 -> 0 | AJ30: =AI30 -> 0 | AL30: =AK30 -> 0 | AN30: =AM30 -> 0 | AP30: =AO30 -> 0 | AR30: =AQ30 -> 0 | AT30: =AS30 -> 0 | AV30: =AU30 -> 0 | AX30: =AW30 -> 0 | AZ30: =AY30 -> 0 | BB30: =BA30 -> 0 | BD30: =BC30 -> 0 | BF30: =BE30 -> 0 | BH30: =BG30 -> 0 | BJ30: =BI30 -> 0 | BL30: =BK30 -> 0 | BN30: =BM30 -> 0 | BP30: =BO30 -> 0 | BR30: =BQ30 -> 0 | BT30: =BS30 -> 0 | BV30: =BU30 -> 0 | BX30: =BW30 -> 0 | BZ30: =BY30 -> 0 | CB30: =CA30 -> 0 | CD30: =CC30 -> 0 | CF30: =CE30 -> 0 | CH30: =CG30 -> 0
B31: 4 | C31: Horizontal curve?: | H31: =G31 -> 0 | J31: =I31 -> 0 | L31: =K31 -> 0 | N31: =M31 -> 0 | P31: =O31 -> 0 | R31: =Q31 -> 0 | T31: =S31 -> 0 | V31: =U31 -> 0 | X31: =W31 -> 0 | Z31: =Y31 -> 0 | AB31: =AA31 -> 0 | AD31: =AC31 -> 0 | AF31: =AE31 -> 0 | AH31: =AG31 -> 0 | AJ31: =AI31 -> 0 | AL31: =AK31 -> 0 | AN31: =AM31 -> 0 | AP31: =AO31 -> 0 | AR31: =AQ31 -> 0 | AT31: =AS31 -> 0 | AV31: =AU31 -> 0 | AX31: =AW31 -> 0 | AZ31: =AY31 -> 0 | BB31: =BA31 -> 0 | BD31: =BC31 -> 0 | BF31: =BE31 -> 0 | BH31: =BG31 -> 0 | BJ31: =BI31 -> 0 | BL31: =BK31 -> 0 | BN31: =BM31 -> 0 | BP31: =BO31 -> 0 | BR31: =BQ31 -> 0 | BT31: =BS31 -> 0 | BV31: =BU31 -> 0 | BX31: =BW31 -> 0 | BZ31: =BY31 -> 0 | CB31: =CA31 -> 0 | CD31: =CC31 -> 0 | CF31: =CE31 -> 0 | CH31: =CG31 -> 0
C32: Curve radius (R4), ft: | H32: =G32 -> 0 | J32: =I32 -> 0 | L32: =K32 -> 0 | N32: =M32 -> 0 | P32: =O32 -> 0 | R32: =Q32 -> 0 | T32: =S32 -> 0 | V32: =U32 -> 0 | X32: =W32 -> 0 | Z32: =Y32 -> 0 | AB32: =AA32 -> 0 | AD32: =AC32 -> 0 | AF32: =AE32 -> 0 | AH32: =AG32 -> 0 | AJ32: =AI32 -> 0 | AL32: =AK32 -> 0 | AN32: =AM32 -> 0 | AP32: =AO32 -> 0 | AR32: =AQ32 -> 0 | AT32: =AS32 -> 0 | AV32: =AU32 -> 0 | AX32: =AW32 -> 0 | AZ32: =AY32 -> 0 | BB32: =BA32 -> 0 | BD32: =BC32 -> 0 | BF32: =BE32 -> 0 | BH32: =BG32 -> 0 | BJ32: =BI32 -> 0 | BL32: =BK32 -> 0 | BN32: =BM32 -> 0 | BP32: =BO32 -> 0 | BR32: =BQ32 -> 0 | BT32: =BS32 -> 0 | BV32: =BU32 -> 0 | BX32: =BW32 -> 0 | BZ32: =BY32 -> 0 | CB32: =CA32 -> 0 | CD32: =CC32 -> 0 | CF32: =CE32 -> 0 | CH32: =CG32 -> 0
C33: Length of curve (Lc4), mi: | H33: =G33 -> 0 | J33: =I33 -> 0 | L33: =K33 -> 0 | N33: =M33 -> 0 | P33: =O33 -> 0 | R33: =Q33 -> 0 | T33: =S33 -> 0 | V33: =U33 -> 0 | X33: =W33 -> 0 | Z33: =Y33 -> 0 | AB33: =AA33 -> 0 | AD33: =AC33 -> 0 | AF33: =AE33 -> 0 | AH33: =AG33 -> 0 | AJ33: =AI33 -> 0 | AL33: =AK33 -> 0 | AN33: =AM33 -> 0 | AP33: =AO33 -> 0 | AR33: =AQ33 -> 0 | AT33: =AS33 -> 0 | AV33: =AU33 -> 0 | AX33: =AW33 -> 0 | AZ33: =AY33 -> 0 | BB33: =BA33 -> 0 | BD33: =BC33 -> 0 | BF33: =BE33 -> 0 | BH33: =BG33 -> 0 | BJ33: =BI33 -> 0 | BL33: =BK33 -> 0 | BN33: =BM33 -> 0 | BP33: =BO33 -> 0 | BR33: =BQ33 -> 0 | BT33: =BS33 -> 0 | BV33: =BU33 -> 0 | BX33: =BW33 -> 0 | BZ33: =BY33 -> 0 | CB33: =CA33 -> 0 | CD33: =CC33 -> 0 | CF33: =CE33 -> 0 | CH33: =CG33 -> 0
C34: Length of curve in segment (Lc4,seg), mi: | H34: =G34 -> 0 | J34: =I34 -> 0 | L34: =K34 -> 0 | N34: =M34 -> 0 | P34: =O34 -> 0 | R34: =Q34 -> 0 | T34: =S34 -> 0 | V34: =U34 -> 0 | X34: =W34 -> 0 | Z34: =Y34 -> 0 | AB34: =AA34 -> 0 | AD34: =AC34 -> 0 | AF34: =AE34 -> 0 | AH34: =AG34 -> 0 | AJ34: =AI34 -> 0 | AL34: =AK34 -> 0 | AN34: =AM34 -> 0 | AP34: =AO34 -> 0 | AR34: =AQ34 -> 0 | AT34: =AS34 -> 0 | AV34: =AU34 -> 0 | AX34: =AW34 -> 0 | AZ34: =AY34 -> 0 | BB34: =BA34 -> 0 | BD34: =BC34 -> 0 | BF34: =BE34 -> 0 | BH34: =BG34 -> 0 | BJ34: =BI34 -> 0 | BL34: =BK34 -> 0 | BN34: =BM34 -> 0 | BP34: =BO34 -> 0 | BR34: =BQ34 -> 0 | BT34: =BS34 -> 0 | BV34: =BU34 -> 0 | BX34: =BW34 -> 0 | BZ34: =BY34 -> 0 | CB34: =CA34 -> 0 | CD34: =CC34 -> 0 | CF34: =CE34 -> 0 | CH34: =CG34 -> 0
C35: Ramp-mile of beginning of curve in direction of travel (X4), mi: | H35: =G35 -> 0 | J35: =I35 -> 0 | L35: =K35 -> 0 | N35: =M35 -> 0 | P35: =O35 -> 0 | R35: =Q35 -> 0 | T35: =S35 -> 0 | V35: =U35 -> 0 | X35: =W35 -> 0 | Z35: =Y35 -> 0 | AB35: =AA35 -> 0 | AD35: =AC35 -> 0 | AF35: =AE35 -> 0 | AH35: =AG35 -> 0 | AJ35: =AI35 -> 0 | AL35: =AK35 -> 0 | AN35: =AM35 -> 0 | AP35: =AO35 -> 0 | AR35: =AQ35 -> 0 | AT35: =AS35 -> 0 | AV35: =AU35 -> 0 | AX35: =AW35 -> 0 | AZ35: =AY35 -> 0 | BB35: =BA35 -> 0 | BD35: =BC35 -> 0 | BF35: =BE35 -> 0 | BH35: =BG35 -> 0 | BJ35: =BI35 -> 0 | BL35: =BK35 -> 0 | BN35: =BM35 -> 0 | BP35: =BO35 -> 0 | BR35: =BQ35 -> 0 | BT35: =BS35 -> 0 | BV35: =BU35 -> 0 | BX35: =BW35 -> 0 | BZ35: =BY35 -> 0 | CB35: =CA35 -> 0 | CD35: =CC35 -> 0 | CF35: =CE35 -> 0 | CH35: =CG35 -> 0
B36: 5 | C36: Horizontal curve?: | H36: =G36 -> 0 | J36: =I36 -> 0 | L36: =K36 -> 0 | N36: =M36 -> 0 | P36: =O36 -> 0 | R36: =Q36 -> 0 | T36: =S36 -> 0 | V36: =U36 -> 0 | X36: =W36 -> 0 | Z36: =Y36 -> 0 | AB36: =AA36 -> 0 | AD36: =AC36 -> 0 | AF36: =AE36 -> 0 | AH36: =AG36 -> 0 | AJ36: =AI36 -> 0 | AL36: =AK36 -> 0 | AN36: =AM36 -> 0 | AP36: =AO36 -> 0 | AR36: =AQ36 -> 0 | AT36: =AS36 -> 0 | AV36: =AU36 -> 0 | AX36: =AW36 -> 0 | AZ36: =AY36 -> 0 | BB36: =BA36 -> 0 | BD36: =BC36 -> 0 | BF36: =BE36 -> 0 | BH36: =BG36 -> 0 | BJ36: =BI36 -> 0 | BL36: =BK36 -> 0 | BN36: =BM36 -> 0 | BP36: =BO36 -> 0 | BR36: =BQ36 -> 0 | BT36: =BS36 -> 0 | BV36: =BU36 -> 0 | BX36: =BW36 -> 0 | BZ36: =BY36 -> 0 | CB36: =CA36 -> 0 | CD36: =CC36 -> 0 | CF36: =CE36 -> 0 | CH36: =CG36 -> 0
C37: Curve radius (R5), ft: | H37: =G37 -> 0 | J37: =I37 -> 0 | L37: =K37 -> 0 | N37: =M37 -> 0 | P37: =O37 -> 0 | R37: =Q37 -> 0 | T37: =S37 -> 0 | V37: =U37 -> 0 | X37: =W37 -> 0 | Z37: =Y37 -> 0 | AB37: =AA37 -> 0 | AD37: =AC37 -> 0 | AF37: =AE37 -> 0 | AH37: =AG37 -> 0 | AJ37: =AI37 -> 0 | AL37: =AK37 -> 0 | AN37: =AM37 -> 0 | AP37: =AO37 -> 0 | AR37: =AQ37 -> 0 | AT37: =AS37 -> 0 | AV37: =AU37 -> 0 | AX37: =AW37 -> 0 | AZ37: =AY37 -> 0 | BB37: =BA37 -> 0 | BD37: =BC37 -> 0 | BF37: =BE37 -> 0 | BH37: =BG37 -> 0 | BJ37: =BI37 -> 0 | BL37: =BK37 -> 0 | BN37: =BM37 -> 0 | BP37: =BO37 -> 0 | BR37: =BQ37 -> 0 | BT37: =BS37 -> 0 | BV37: =BU37 -> 0 | BX37: =BW37 -> 0 | BZ37: =BY37 -> 0 | CB37: =CA37 -> 0 | CD37: =CC37 -> 0 | CF37: =CE37 -> 0 | CH37: =CG37 -> 0
C38: Length of curve (Lc5), mi: | H38: =G38 -> 0 | J38: =I38 -> 0 | L38: =K38 -> 0 | N38: =M38 -> 0 | P38: =O38 -> 0 | R38: =Q38 -> 0 | T38: =S38 -> 0 | V38: =U38 -> 0 | X38: =W38 -> 0 | Z38: =Y38 -> 0 | AB38: =AA38 -> 0 | AD38: =AC38 -> 0 | AF38: =AE38 -> 0 | AH38: =AG38 -> 0 | AJ38: =AI38 -> 0 | AL38: =AK38 -> 0 | AN38: =AM38 -> 0 | AP38: =AO38 -> 0 | AR38: =AQ38 -> 0 | AT38: =AS38 -> 0 | AV38: =AU38 -> 0 | AX38: =AW38 -> 0 | AZ38: =AY38 -> 0 | BB38: =BA38 -> 0 | BD38: =BC38 -> 0 | BF38: =BE38 -> 0 | BH38: =BG38 -> 0 | BJ38: =BI38 -> 0 | BL38: =BK38 -> 0 | BN38: =BM38 -> 0 | BP38: =BO38 -> 0 | BR38: =BQ38 -> 0 | BT38: =BS38 -> 0 | BV38: =BU38 -> 0 | BX38: =BW38 -> 0 | BZ38: =BY38 -> 0 | CB38: =CA38 -> 0 | CD38: =CC38 -> 0 | CF38: =CE38 -> 0 | CH38: =CG38 -> 0
C39: Length of curve in segment (Lc5,seg), mi: | H39: =G39 -> 0 | J39: =I39 -> 0 | L39: =K39 -> 0 | N39: =M39 -> 0 | P39: =O39 -> 0 | R39: =Q39 -> 0 | T39: =S39 -> 0 | V39: =U39 -> 0 | X39: =W39 -> 0 | Z39: =Y39 -> 0 | AB39: =AA39 -> 0 | AD39: =AC39 -> 0 | AF39: =AE39 -> 0 | AH39: =AG39 -> 0 | AJ39: =AI39 -> 0 | AL39: =AK39 -> 0 | AN39: =AM39 -> 0 | AP39: =AO39 -> 0 | AR39: =AQ39 -> 0 | AT39: =AS39 -> 0 | AV39: =AU39 -> 0 | AX39: =AW39 -> 0 | AZ39: =AY39 -> 0 | BB39: =BA39 -> 0 | BD39: =BC39 -> 0 | BF39: =BE39 -> 0 | BH39: =BG39 -> 0 | BJ39: =BI39 -> 0 | BL39: =BK39 -> 0 | BN39: =BM39 -> 0 | BP39: =BO39 -> 0 | BR39: =BQ39 -> 0 | BT39: =BS39 -> 0 | BV39: =BU39 -> 0 | BX39: =BW39 -> 0 | BZ39: =BY39 -> 0 | CB39: =CA39 -> 0 | CD39: =CC39 -> 0 | CF39: =CE39 -> 0 | CH39: =CG39 -> 0
C40: Ramp-mile of beginning of curve in direction of travel (X5), mi: | H40: =G40 -> 0 | J40: =I40 -> 0 | L40: =K40 -> 0 | N40: =M40 -> 0 | P40: =O40 -> 0 | R40: =Q40 -> 0 | T40: =S40 -> 0 | V40: =U40 -> 0 | X40: =W40 -> 0 | Z40: =Y40 -> 0 | AB40: =AA40 -> 0 | AD40: =AC40 -> 0 | AF40: =AE40 -> 0 | AH40: =AG40 -> 0 | AJ40: =AI40 -> 0 | AL40: =AK40 -> 0 | AN40: =AM40 -> 0 | AP40: =AO40 -> 0 | AR40: =AQ40 -> 0 | AT40: =AS40 -> 0 | AV40: =AU40 -> 0 | AX40: =AW40 -> 0 | AZ40: =AY40 -> 0 | BB40: =BA40 -> 0 | BD40: =BC40 -> 0 | BF40: =BE40 -> 0 | BH40: =BG40 -> 0 | BJ40: =BI40 -> 0 | BL40: =BK40 -> 0 | BN40: =BM40 -> 0 | BP40: =BO40 -> 0 | BR40: =BQ40 -> 0 | BT40: =BS40 -> 0 | BV40: =BU40 -> 0 | BX40: =BW40 -> 0 | BZ40: =BY40 -> 0 | CB40: =CA40 -> 0 | CD40: =CC40 -> 0 | CF40: =CE40 -> 0 | CH40: =CG40 -> 0
B41: Cross Section Data
B42: Lane width (Wl), ft: | H42: =G42 -> 0 | J42: =I42 -> 0 | L42: =K42 -> 0 | N42: =M42 -> 0 | P42: =O42 -> 0 | R42: =Q42 -> 0 | T42: =S42 -> 0 | V42: =U42 -> 0 | X42: =W42 -> 0 | Z42: =Y42 -> 0 | AB42: =AA42 -> 0 | AD42: =AC42 -> 0 | AF42: =AE42 -> 0 | AH42: =AG42 -> 0 | AJ42: =AI42 -> 0 | AL42: =AK42 -> 0 | AN42: =AM42 -> 0 | AP42: =AO42 -> 0 | AR42: =AQ42 -> 0 | AT42: =AS42 -> 0 | AV42: =AU42 -> 0 | AX42: =AW42 -> 0 | AZ42: =AY42 -> 0 | BB42: =BA42 -> 0 | BD42: =BC42 -> 0 | BF42: =BE42 -> 0 | BH42: =BG42 -> 0 | BJ42: =BI42 -> 0 | BL42: =BK42 -> 0 | BN42: =BM42 -> 0 | BP42: =BO42 -> 0 | BR42: =BQ42 -> 0 | BT42: =BS42 -> 0 | BV42: =BU42 -> 0 | BX42: =BW42 -> 0 | BZ42: =BY42 -> 0 | CB42: =CA42 -> 0 | CD42: =CC42 -> 0 | CF42: =CE42 -> 0 | CH42: =CG42 -> 0
B43: Right shoulder width (Wrs), ft: | H43: =G43 -> 0 | J43: =I43 -> 0 | L43: =K43 -> 0 | N43: =M43 -> 0 | P43: =O43 -> 0 | R43: =Q43 -> 0 | T43: =S43 -> 0 | V43: =U43 -> 0 | X43: =W43 -> 0 | Z43: =Y43 -> 0 | AB43: =AA43 -> 0 | AD43: =AC43 -> 0 | AF43: =AE43 -> 0 | AH43: =AG43 -> 0 | AJ43: =AI43 -> 0 | AL43: =AK43 -> 0 | AN43: =AM43 -> 0 | AP43: =AO43 -> 0 | AR43: =AQ43 -> 0 | AT43: =AS43 -> 0 | AV43: =AU43 -> 0 | AX43: =AW43 -> 0 | AZ43: =AY43 -> 0 | BB43: =BA43 -> 0 | BD43: =BC43 -> 0 | BF43: =BE43 -> 0 | BH43: =BG43 -> 0 | BJ43: =BI43 -> 0 | BL43: =BK43 -> 0 | BN43: =BM43 -> 0 | BP43: =BO43 -> 0 | BR43: =BQ43 -> 0 | BT43: =BS43 -> 0 | BV43: =BU43 -> 0 | BX43: =BW43 -> 0 | BZ43: =BY43 -> 0 | CB43: =CA43 -> 0 | CD43: =CC43 -> 0 | CF43: =CE43 -> 0 | CH43: =CG43 -> 0
B44: Left shoulder width (Wls), ft: | H44: =G44 -> 0 | J44: =I44 -> 0 | L44: =K44 -> 0 | N44: =M44 -> 0 | P44: =O44 -> 0 | R44: =Q44 -> 0 | T44: =S44 -> 0 | V44: =U44 -> 0 | X44: =W44 -> 0 | Z44: =Y44 -> 0 | AB44: =AA44 -> 0 | AD44: =AC44 -> 0 | AF44: =AE44 -> 0 | AH44: =AG44 -> 0 | AJ44: =AI44 -> 0 | AL44: =AK44 -> 0 | AN44: =AM44 -> 0 | AP44: =AO44 -> 0 | AR44: =AQ44 -> 0 | AT44: =AS44 -> 0 | AV44: =AU44 -> 0 | AX44: =AW44 -> 0 | AZ44: =AY44 -> 0 | BB44: =BA44 -> 0 | BD44: =BC44 -> 0 | BF44: =BE44 -> 0 | BH44: =BG44 -> 0 | BJ44: =BI44 -> 0 | BL44: =BK44 -> 0 | BN44: =BM44 -> 0 | BP44: =BO44 -> 0 | BR44: =BQ44 -> 0 | BT44: =BS44 -> 0 | BV44: =BU44 -> 0 | BX44: =BW44 -> 0 | BZ44: =BY44 -> 0 | CB44: =CA44 -> 0 | CD44: =CC44 -> 0 | CF44: =CE44 -> 0 | CH44: =CG44 -> 0
B45: Presence of lane add or lane drop by taper: | H45: =G45 -> 0 | J45: =I45 -> 0 | L45: =K45 -> 0 | N45: =M45 -> 0 | P45: =O45 -> 0 | R45: =Q45 -> 0 | T45: =S45 -> 0 | V45: =U45 -> 0 | X45: =W45 -> 0 | Z45: =Y45 -> 0 | AB45: =AA45 -> 0 | AD45: =AC45 -> 0 | AF45: =AE45 -> 0 | AH45: =AG45 -> 0 | AJ45: =AI45 -> 0 | AL45: =AK45 -> 0 | AN45: =AM45 -> 0 | AP45: =AO45 -> 0 | AR45: =AQ45 -> 0 | AT45: =AS45 -> 0 | AV45: =AU45 -> 0 | AX45: =AW45 -> 0 | AZ45: =AY45 -> 0 | BB45: =BA45 -> 0 | BD45: =BC45 -> 0 | BF45: =BE45 -> 0 | BH45: =BG45 -> 0 | BJ45: =BI45 -> 0 | BL45: =BK45 -> 0 | BN45: =BM45 -> 0 | BP45: =BO45 -> 0 | BR45: =BQ45 -> 0 | BT45: =BS45 -> 0 | BV45: =BU45 -> 0 | BX45: =BW45 -> 0 | BZ45: =BY45 -> 0 | CB45: =CA45 -> 0 | CD45: =CC45 -> 0 | CF45: =CE45 -> 0 | CH45: =CG45 -> 0
C46: Length of taper in segment (Ladd,seg or Ldrop,seg), mi: | H46: =G46 -> 0 | J46: =I46 -> 0 | L46: =K46 -> 0 | N46: =M46 -> 0 | P46: =O46 -> 0 | R46: =Q46 -> 0 | T46: =S46 -> 0 | V46: =U46 -> 0 | X46: =W46 -> 0 | Z46: =Y46 -> 0 | AB46: =AA46 -> 0 | AD46: =AC46 -> 0 | AF46: =AE46 -> 0 | AH46: =AG46 -> 0 | AJ46: =AI46 -> 0 | AL46: =AK46 -> 0 | AN46: =AM46 -> 0 | AP46: =AO46 -> 0 | AR46: =AQ46 -> 0 | AT46: =AS46 -> 0 | AV46: =AU46 -> 0 | AX46: =AW46 -> 0 | AZ46: =AY46 -> 0 | BB46: =BA46 -> 0 | BD46: =BC46 -> 0 | BF46: =BE46 -> 0 | BH46: =BG46 -> 0 | BJ46: =BI46 -> 0 | BL46: =BK46 -> 0 | BN46: =BM46 -> 0 | BP46: =BO46 -> 0 | BR46: =BQ46 -> 0 | BT46: =BS46 -> 0 | BV46: =BU46 -> 0 | BX46: =BW46 -> 0 | BZ46: =BY46 -> 0 | CB46: =CA46 -> 0 | CD46: =CC46 -> 0 | CF46: =CE46 -> 0 | CH46: =CG46 -> 0
B47: Roadside Data
B48: Presence of barrier on right side of roadway: | H48: =G48 -> 0 | J48: =I48 -> 0 | L48: =K48 -> 0 | N48: =M48 -> 0 | P48: =O48 -> 0 | R48: =Q48 -> 0 | T48: =S48 -> 0 | V48: =U48 -> 0 | X48: =W48 -> 0 | Z48: =Y48 -> 0 | AB48: =AA48 -> 0 | AD48: =AC48 -> 0 | AF48: =AE48 -> 0 | AH48: =AG48 -> 0 | AJ48: =AI48 -> 0 | AL48: =AK48 -> 0 | AN48: =AM48 -> 0 | AP48: =AO48 -> 0 | AR48: =AQ48 -> 0 | AT48: =AS48 -> 0 | AV48: =AU48 -> 0 | AX48: =AW48 -> 0 | AZ48: =AY48 -> 0 | BB48: =BA48 -> 0 | BD48: =BC48 -> 0 | BF48: =BE48 -> 0 | BH48: =BG48 -> 0 | BJ48: =BI48 -> 0 | BL48: =BK48 -> 0 | BN48: =BM48 -> 0 | BP48: =BO48 -> 0 | BR48: =BQ48 -> 0 | BT48: =BS48 -> 0 | BV48: =BU48 -> 0 | BX48: =BW48 -> 0 | BZ48: =BY48 -> 0 | CB48: =CA48 -> 0 | CD48: =CC48 -> 0 | CF48: =CE48 -> 0 | CH48: =CG48 -> 0
B49: 1 | C49: Length of barrier (Lrb,1), mi: | H49: =G49 -> 0 | J49: =I49 -> 0 | L49: =K49 -> 0 | N49: =M49 -> 0 | P49: =O49 -> 0 | R49: =Q49 -> 0 | T49: =S49 -> 0 | V49: =U49 -> 0 | X49: =W49 -> 0 | Z49: =Y49 -> 0 | AB49: =AA49 -> 0 | AD49: =AC49 -> 0 | AF49: =AE49 -> 0 | AH49: =AG49 -> 0 | AJ49: =AI49 -> 0 | AL49: =AK49 -> 0 | AN49: =AM49 -> 0 | AP49: =AO49 -> 0 | AR49: =AQ49 -> 0 | AT49: =AS49 -> 0 | AV49: =AU49 -> 0 | AX49: =AW49 -> 0 | AZ49: =AY49 -> 0 | BB49: =BA49 -> 0 | BD49: =BC49 -> 0 | BF49: =BE49 -> 0 | BH49: =BG49 -> 0 | BJ49: =BI49 -> 0 | BL49: =BK49 -> 0 | BN49: =BM49 -> 0 | BP49: =BO49 -> 0 | BR49: =BQ49 -> 0 | BT49: =BS49 -> 0 | BV49: =BU49 -> 0 | BX49: =BW49 -> 0 | BZ49: =BY49 -> 0 | CB49: =CA49 -> 0 | CD49: =CC49 -> 0 | CF49: =CE49 -> 0 | CH49: =CG49 -> 0
C50: Distance from edge of traveled way to barrier face (Woff,r,1), ft: | H50: =G50 -> 0 | J50: =I50 -> 0 | L50: =K50 -> 0 | N50: =M50 -> 0 | P50: =O50 -> 0 | R50: =Q50 -> 0 | T50: =S50 -> 0 | V50: =U50 -> 0 | X50: =W50 -> 0 | Z50: =Y50 -> 0 | AB50: =AA50 -> 0 | AD50: =AC50 -> 0 | AF50: =AE50 -> 0 | AH50: =AG50 -> 0 | AJ50: =AI50 -> 0 | AL50: =AK50 -> 0 | AN50: =AM50 -> 0 | AP50: =AO50 -> 0 | AR50: =AQ50 -> 0 | AT50: =AS50 -> 0 | AV50: =AU50 -> 0 | AX50: =AW50 -> 0 | AZ50: =AY50 -> 0 | BB50: =BA50 -> 0 | BD50: =BC50 -> 0 | BF50: =BE50 -> 0 | BH50: =BG50 -> 0 | BJ50: =BI50 -> 0 | BL50: =BK50 -> 0 | BN50: =BM50 -> 0 | BP50: =BO50 -> 0 | BR50: =BQ50 -> 0 | BT50: =BS50 -> 0 | BV50: =BU50 -> 0 | BX50: =BW50 -> 0 | BZ50: =BY50 -> 0 | CB50: =CA50 -> 0 | CD50: =CC50 -> 0 | CF50: =CE50 -> 0 | CH50: =CG50 -> 0
B51: 2 | C51: Length of barrier (Lrb,2), mi: | H51: =G51 -> 0 | J51: =I51 -> 0 | L51: =K51 -> 0 | N51: =M51 -> 0 | P51: =O51 -> 0 | R51: =Q51 -> 0 | T51: =S51 -> 0 | V51: =U51 -> 0 | X51: =W51 -> 0 | Z51: =Y51 -> 0 | AB51: =AA51 -> 0 | AD51: =AC51 -> 0 | AF51: =AE51 -> 0 | AH51: =AG51 -> 0 | AJ51: =AI51 -> 0 | AL51: =AK51 -> 0 | AN51: =AM51 -> 0 | AP51: =AO51 -> 0 | AR51: =AQ51 -> 0 | AT51: =AS51 -> 0 | AV51: =AU51 -> 0 | AX51: =AW51 -> 0 | AZ51: =AY51 -> 0 | BB51: =BA51 -> 0 | BD51: =BC51 -> 0 | BF51: =BE51 -> 0 | BH51: =BG51 -> 0 | BJ51: =BI51 -> 0 | BL51: =BK51 -> 0 | BN51: =BM51 -> 0 | BP51: =BO51 -> 0 | BR51: =BQ51 -> 0 | BT51: =BS51 -> 0 | BV51: =BU51 -> 0 | BX51: =BW51 -> 0 | BZ51: =BY51 -> 0 | CB51: =CA51 -> 0 | CD51: =CC51 -> 0 | CF51: =CE51 -> 0 | CH51: =CG51 -> 0
C52: Distance from edge of traveled way to barrier face (Woff,r,2), ft: | H52: =G52 -> 0 | J52: =I52 -> 0 | L52: =K52 -> 0 | N52: =M52 -> 0 | P52: =O52 -> 0 | R52: =Q52 -> 0 | T52: =S52 -> 0 | V52: =U52 -> 0 | X52: =W52 -> 0 | Z52: =Y52 -> 0 | AB52: =AA52 -> 0 | AD52: =AC52 -> 0 | AF52: =AE52 -> 0 | AH52: =AG52 -> 0 | AJ52: =AI52 -> 0 | AL52: =AK52 -> 0 | AN52: =AM52 -> 0 | AP52: =AO52 -> 0 | AR52: =AQ52 -> 0 | AT52: =AS52 -> 0 | AV52: =AU52 -> 0 | AX52: =AW52 -> 0 | AZ52: =AY52 -> 0 | BB52: =BA52 -> 0 | BD52: =BC52 -> 0 | BF52: =BE52 -> 0 | BH52: =BG52 -> 0 | BJ52: =BI52 -> 0 | BL52: =BK52 -> 0 | BN52: =BM52 -> 0 | BP52: =BO52 -> 0 | BR52: =BQ52 -> 0 | BT52: =BS52 -> 0 | BV52: =BU52 -> 0 | BX52: =BW52 -> 0 | BZ52: =BY52 -> 0 | CB52: =CA52 -> 0 | CD52: =CC52 -> 0 | CF52: =CE52 -> 0 | CH52: =CG52 -> 0
B53: 3 | C53: Length of barrier (Lrb,3), mi: | H53: =G53 -> 0 | J53: =I53 -> 0 | L53: =K53 -> 0 | N53: =M53 -> 0 | P53: =O53 -> 0 | R53: =Q53 -> 0 | T53: =S53 -> 0 | V53: =U53 -> 0 | X53: =W53 -> 0 | Z53: =Y53 -> 0 | AB53: =AA53 -> 0 | AD53: =AC53 -> 0 | AF53: =AE53 -> 0 | AH53: =AG53 -> 0 | AJ53: =AI53 -> 0 | AL53: =AK53 -> 0 | AN53: =AM53 -> 0 | AP53: =AO53 -> 0 | AR53: =AQ53 -> 0 | AT53: =AS53 -> 0 | AV53: =AU53 -> 0 | AX53: =AW53 -> 0 | AZ53: =AY53 -> 0 | BB53: =BA53 -> 0 | BD53: =BC53 -> 0 | BF53: =BE53 -> 0 | BH53: =BG53 -> 0 | BJ53: =BI53 -> 0 | BL53: =BK53 -> 0 | BN53: =BM53 -> 0 | BP53: =BO53 -> 0 | BR53: =BQ53 -> 0 | BT53: =BS53 -> 0 | BV53: =BU53 -> 0 | BX53: =BW53 -> 0 | BZ53: =BY53 -> 0 | CB53: =CA53 -> 0 | CD53: =CC53 -> 0 | CF53: =CE53 -> 0 | CH53: =CG53 -> 0
C54: Distance from edge of traveled way to barrier face (Woff,r,3), ft: | H54: =G54 -> 0 | J54: =I54 -> 0 | L54: =K54 -> 0 | N54: =M54 -> 0 | P54: =O54 -> 0 | R54: =Q54 -> 0 | T54: =S54 -> 0 | V54: =U54 -> 0 | X54: =W54 -> 0 | Z54: =Y54 -> 0 | AB54: =AA54 -> 0 | AD54: =AC54 -> 0 | AF54: =AE54 -> 0 | AH54: =AG54 -> 0 | AJ54: =AI54 -> 0 | AL54: =AK54 -> 0 | AN54: =AM54 -> 0 | AP54: =AO54 -> 0 | AR54: =AQ54 -> 0 | AT54: =AS54 -> 0 | AV54: =AU54 -> 0 | AX54: =AW54 -> 0 | AZ54: =AY54 -> 0 | BB54: =BA54 -> 0 | BD54: =BC54 -> 0 | BF54: =BE54 -> 0 | BH54: =BG54 -> 0 | BJ54: =BI54 -> 0 | BL54: =BK54 -> 0 | BN54: =BM54 -> 0 | BP54: =BO54 -> 0 | BR54: =BQ54 -> 0 | BT54: =BS54 -> 0 | BV54: =BU54 -> 0 | BX54: =BW54 -> 0 | BZ54: =BY54 -> 0 | CB54: =CA54 -> 0 | CD54: =CC54 -> 0 | CF54: =CE54 -> 0 | CH54: =CG54 -> 0
B55: 4 | C55: Length of barrier (Lrb,4), mi: | H55: =G55 -> 0 | J55: =I55 -> 0 | L55: =K55 -> 0 | N55: =M55 -> 0 | P55: =O55 -> 0 | R55: =Q55 -> 0 | T55: =S55 -> 0 | V55: =U55 -> 0 | X55: =W55 -> 0 | Z55: =Y55 -> 0 | AB55: =AA55 -> 0 | AD55: =AC55 -> 0 | AF55: =AE55 -> 0 | AH55: =AG55 -> 0 | AJ55: =AI55 -> 0 | AL55: =AK55 -> 0 | AN55: =AM55 -> 0 | AP55: =AO55 -> 0 | AR55: =AQ55 -> 0 | AT55: =AS55 -> 0 | AV55: =AU55 -> 0 | AX55: =AW55 -> 0 | AZ55: =AY55 -> 0 | BB55: =BA55 -> 0 | BD55: =BC55 -> 0 | BF55: =BE55 -> 0 | BH55: =BG55 -> 0 | BJ55: =BI55 -> 0 | BL55: =BK55 -> 0 | BN55: =BM55 -> 0 | BP55: =BO55 -> 0 | BR55: =BQ55 -> 0 | BT55: =BS55 -> 0 | BV55: =BU55 -> 0 | BX55: =BW55 -> 0 | BZ55: =BY55 -> 0 | CB55: =CA55 -> 0 | CD55: =CC55 -> 0 | CF55: =CE55 -> 0 | CH55: =CG55 -> 0
C56: Distance from edge of traveled way to barrier face (Woff,r,4), ft: | H56: =G56 -> 0 | J56: =I56 -> 0 | L56: =K56 -> 0 | N56: =M56 -> 0 | P56: =O56 -> 0 | R56: =Q56 -> 0 | T56: =S56 -> 0 | V56: =U56 -> 0 | X56: =W56 -> 0 | Z56: =Y56 -> 0 | AB56: =AA56 -> 0 | AD56: =AC56 -> 0 | AF56: =AE56 -> 0 | AH56: =AG56 -> 0 | AJ56: =AI56 -> 0 | AL56: =AK56 -> 0 | AN56: =AM56 -> 0 | AP56: =AO56 -> 0 | AR56: =AQ56 -> 0 | AT56: =AS56 -> 0 | AV56: =AU56 -> 0 | AX56: =AW56 -> 0 | AZ56: =AY56 -> 0 | BB56: =BA56 -> 0 | BD56: =BC56 -> 0 | BF56: =BE56 -> 0 | BH56: =BG56 -> 0 | BJ56: =BI56 -> 0 | BL56: =BK56 -> 0 | BN56: =BM56 -> 0 | BP56: =BO56 -> 0 | BR56: =BQ56 -> 0 | BT56: =BS56 -> 0 | BV56: =BU56 -> 0 | BX56: =BW56 -> 0 | BZ56: =BY56 -> 0 | CB56: =CA56 -> 0 | CD56: =CC56 -> 0 | CF56: =CE56 -> 0 | CH56: =CG56 -> 0
B57: 5 | C57: Length of barrier (Lrb,5), mi: | H57: =G57 -> 0 | J57: =I57 -> 0 | L57: =K57 -> 0 | N57: =M57 -> 0 | P57: =O57 -> 0 | R57: =Q57 -> 0 | T57: =S57 -> 0 | V57: =U57 -> 0 | X57: =W57 -> 0 | Z57: =Y57 -> 0 | AB57: =AA57 -> 0 | AD57: =AC57 -> 0 | AF57: =AE57 -> 0 | AH57: =AG57 -> 0 | AJ57: =AI57 -> 0 | AL57: =AK57 -> 0 | AN57: =AM57 -> 0 | AP57: =AO57 -> 0 | AR57: =AQ57 -> 0 | AT57: =AS57 -> 0 | AV57: =AU57 -> 0 | AX57: =AW57 -> 0 | AZ57: =AY57 -> 0 | BB57: =BA57 -> 0 | BD57: =BC57 -> 0 | BF57: =BE57 -> 0 | BH57: =BG57 -> 0 | BJ57: =BI57 -> 0 | BL57: =BK57 -> 0 | BN57: =BM57 -> 0 | BP57: =BO57 -> 0 | BR57: =BQ57 -> 0 | BT57: =BS57 -> 0 | BV57: =BU57 -> 0 | BX57: =BW57 -> 0 | BZ57: =BY57 -> 0 | CB57: =CA57 -> 0 | CD57: =CC57 -> 0 | CF57: =CE57 -> 0 | CH57: =CG57 -> 0
C58: Distance from edge of traveled way to barrier face (Woff,r,5), ft: | H58: =G58 -> 0 | J58: =I58 -> 0 | L58: =K58 -> 0 | N58: =M58 -> 0 | P58: =O58 -> 0 | R58: =Q58 -> 0 | T58: =S58 -> 0 | V58: =U58 -> 0 | X58: =W58 -> 0 | Z58: =Y58 -> 0 | AB58: =AA58 -> 0 | AD58: =AC58 -> 0 | AF58: =AE58 -> 0 | AH58: =AG58 -> 0 | AJ58: =AI58 -> 0 | AL58: =AK58 -> 0 | AN58: =AM58 -> 0 | AP58: =AO58 -> 0 | AR58: =AQ58 -> 0 | AT58: =AS58 -> 0 | AV58: =AU58 -> 0 | AX58: =AW58 -> 0 | AZ58: =AY58 -> 0 | BB58: =BA58 -> 0 | BD58: =BC58 -> 0 | BF58: =BE58 -> 0 | BH58: =BG58 -> 0 | BJ58: =BI58 -> 0 | BL58: =BK58 -> 0 | BN58: =BM58 -> 0 | BP58: =BO58 -> 0 | BR58: =BQ58 -> 0 | BT58: =BS58 -> 0 | BV58: =BU58 -> 0 | BX58: =BW58 -> 0 | BZ58: =BY58 -> 0 | CB58: =CA58 -> 0 | CD58: =CC58 -> 0 | CF58: =CE58 -> 0 | CH58: =CG58 -> 0
B59: Presence of barrier on left side of roadway: | H59: =G59 -> 0 | J59: =I59 -> 0 | L59: =K59 -> 0 | N59: =M59 -> 0 | P59: =O59 -> 0 | R59: =Q59 -> 0 | T59: =S59 -> 0 | V59: =U59 -> 0 | X59: =W59 -> 0 | Z59: =Y59 -> 0 | AB59: =AA59 -> 0 | AD59: =AC59 -> 0 | AF59: =AE59 -> 0 | AH59: =AG59 -> 0 | AJ59: =AI59 -> 0 | AL59: =AK59 -> 0 | AN59: =AM59 -> 0 | AP59: =AO59 -> 0 | AR59: =AQ59 -> 0 | AT59: =AS59 -> 0 | AV59: =AU59 -> 0 | AX59: =AW59 -> 0 | AZ59: =AY59 -> 0 | BB59: =BA59 -> 0 | BD59: =BC59 -> 0 | BF59: =BE59 -> 0 | BH59: =BG59 -> 0 | BJ59: =BI59 -> 0 | BL59: =BK59 -> 0 | BN59: =BM59 -> 0 | BP59: =BO59 -> 0 | BR59: =BQ59 -> 0 | BT59: =BS59 -> 0 | BV59: =BU59 -> 0 | BX59: =BW59 -> 0 | BZ59: =BY59 -> 0 | CB59: =CA59 -> 0 | CD59: =CC59 -> 0 | CF59: =CE59 -> 0 | CH59: =CG59 -> 0
B60: 1 | C60: Length of barrier (Llb,1), mi: | H60: =G60 -> 0 | J60: =I60 -> 0 | L60: =K60 -> 0 | N60: =M60 -> 0 | P60: =O60 -> 0 | R60: =Q60 -> 0 | T60: =S60 -> 0 | V60: =U60 -> 0 | X60: =W60 -> 0 | Z60: =Y60 -> 0 | AB60: =AA60 -> 0 | AD60: =AC60 -> 0 | AF60: =AE60 -> 0 | AH60: =AG60 -> 0 | AJ60: =AI60 -> 0 | AL60: =AK60 -> 0 | AN60: =AM60 -> 0 | AP60: =AO60 -> 0 | AR60: =AQ60 -> 0 | AT60: =AS60 -> 0 | AV60: =AU60 -> 0 | AX60: =AW60 -> 0 | AZ60: =AY60 -> 0 | BB60: =BA60 -> 0 | BD60: =BC60 -> 0 | BF60: =BE60 -> 0 | BH60: =BG60 -> 0 | BJ60: =BI60 -> 0 | BL60: =BK60 -> 0 | BN60: =BM60 -> 0 | BP60: =BO60 -> 0 | BR60: =BQ60 -> 0 | BT60: =BS60 -> 0 | BV60: =BU60 -> 0 | BX60: =BW60 -> 0 | BZ60: =BY60 -> 0 | CB60: =CA60 -> 0 | CD60: =CC60 -> 0 | CF60: =CE60 -> 0 | CH60: =CG60 -> 0
C61: Distance from edge of traveled way to barrier face (Woff,l,1), ft: | H61: =G61 -> 0 | J61: =I61 -> 0 | L61: =K61 -> 0 | N61: =M61 -> 0 | P61: =O61 -> 0 | R61: =Q61 -> 0 | T61: =S61 -> 0 | V61: =U61 -> 0 | X61: =W61 -> 0 | Z61: =Y61 -> 0 | AB61: =AA61 -> 0 | AD61: =AC61 -> 0 | AF61: =AE61 -> 0 | AH61: =AG61 -> 0 | AJ61: =AI61 -> 0 | AL61: =AK61 -> 0 | AN61: =AM61 -> 0 | AP61: =AO61 -> 0 | AR61: =AQ61 -> 0 | AT61: =AS61 -> 0 | AV61: =AU61 -> 0 | AX61: =AW61 -> 0 | AZ61: =AY61 -> 0 | BB61: =BA61 -> 0 | BD61: =BC61 -> 0 | BF61: =BE61 -> 0 | BH61: =BG61 -> 0 | BJ61: =BI61 -> 0 | BL61: =BK61 -> 0 | BN61: =BM61 -> 0 | BP61: =BO61 -> 0 | BR61: =BQ61 -> 0 | BT61: =BS61 -> 0 | BV61: =BU61 -> 0 | BX61: =BW61 -> 0 | BZ61: =BY61 -> 0 | CB61: =CA61 -> 0 | CD61: =CC61 -> 0 | CF61: =CE61 -> 0 | CH61: =CG61 -> 0
B62: 2 | C62: Length of barrier (Llb,2), mi: | H62: =G62 -> 0 | J62: =I62 -> 0 | L62: =K62 -> 0 | N62: =M62 -> 0 | P62: =O62 -> 0 | R62: =Q62 -> 0 | T62: =S62 -> 0 | V62: =U62 -> 0 | X62: =W62 -> 0 | Z62: =Y62 -> 0 | AB62: =AA62 -> 0 | AD62: =AC62 -> 0 | AF62: =AE62 -> 0 | AH62: =AG62 -> 0 | AJ62: =AI62 -> 0 | AL62: =AK62 -> 0 | AN62: =AM62 -> 0 | AP62: =AO62 -> 0 | AR62: =AQ62 -> 0 | AT62: =AS62 -> 0 | AV62: =AU62 -> 0 | AX62: =AW62 -> 0 | AZ62: =AY62 -> 0 | BB62: =BA62 -> 0 | BD62: =BC62 -> 0 | BF62: =BE62 -> 0 | BH62: =BG62 -> 0 | BJ62: =BI62 -> 0 | BL62: =BK62 -> 0 | BN62: =BM62 -> 0 | BP62: =BO62 -> 0 | BR62: =BQ62 -> 0 | BT62: =BS62 -> 0 | BV62: =BU62 -> 0 | BX62: =BW62 -> 0 | BZ62: =BY62 -> 0 | CB62: =CA62 -> 0 | CD62: =CC62 -> 0 | CF62: =CE62 -> 0 | CH62: =CG62 -> 0
C63: Distance from edge of traveled way to barrier face (Woff,l,2), ft: | H63: =G63 -> 0 | J63: =I63 -> 0 | L63: =K63 -> 0 | N63: =M63 -> 0 | P63: =O63 -> 0 | R63: =Q63 -> 0 | T63: =S63 -> 0 | V63: =U63 -> 0 | X63: =W63 -> 0 | Z63: =Y63 -> 0 | AB63: =AA63 -> 0 | AD63: =AC63 -> 0 | AF63: =AE63 -> 0 | AH63: =AG63 -> 0 | AJ63: =AI63 -> 0 | AL63: =AK63 -> 0 | AN63: =AM63 -> 0 | AP63: =AO63 -> 0 | AR63: =AQ63 -> 0 | AT63: =AS63 -> 0 | AV63: =AU63 -> 0 | AX63: =AW63 -> 0 | AZ63: =AY63 -> 0 | BB63: =BA63 -> 0 | BD63: =BC63 -> 0 | BF63: =BE63 -> 0 | BH63: =BG63 -> 0 | BJ63: =BI63 -> 0 | BL63: =BK63 -> 0 | BN63: =BM63 -> 0 | BP63: =BO63 -> 0 | BR63: =BQ63 -> 0 | BT63: =BS63 -> 0 | BV63: =BU63 -> 0 | BX63: =BW63 -> 0 | BZ63: =BY63 -> 0 | CB63: =CA63 -> 0 | CD63: =CC63 -> 0 | CF63: =CE63 -> 0 | CH63: =CG63 -> 0
B64: 3 | C64: Length of barrier (Llb,3), mi: | H64: =G64 -> 0 | J64: =I64 -> 0 | L64: =K64 -> 0 | N64: =M64 -> 0 | P64: =O64 -> 0 | R64: =Q64 -> 0 | T64: =S64 -> 0 | V64: =U64 -> 0 | X64: =W64 -> 0 | Z64: =Y64 -> 0 | AB64: =AA64 -> 0 | AD64: =AC64 -> 0 | AF64: =AE64 -> 0 | AH64: =AG64 -> 0 | AJ64: =AI64 -> 0 | AL64: =AK64 -> 0 | AN64: =AM64 -> 0 | AP64: =AO64 -> 0 | AR64: =AQ64 -> 0 | AT64: =AS64 -> 0 | AV64: =AU64 -> 0 | AX64: =AW64 -> 0 | AZ64: =AY64 -> 0 | BB64: =BA64 -> 0 | BD64: =BC64 -> 0 | BF64: =BE64 -> 0 | BH64: =BG64 -> 0 | BJ64: =BI64 -> 0 | BL64: =BK64 -> 0 | BN64: =BM64 -> 0 | BP64: =BO64 -> 0 | BR64: =BQ64 -> 0 | BT64: =BS64 -> 0 | BV64: =BU64 -> 0 | BX64: =BW64 -> 0 | BZ64: =BY64 -> 0 | CB64: =CA64 -> 0 | CD64: =CC64 -> 0 | CF64: =CE64 -> 0 | CH64: =CG64 -> 0
C65: Distance from edge of traveled way to barrier face (Woff,l,3), ft: | H65: =G65 -> 0 | J65: =I65 -> 0 | L65: =K65 -> 0 | N65: =M65 -> 0 | P65: =O65 -> 0 | R65: =Q65 -> 0 | T65: =S65 -> 0 | V65: =U65 -> 0 | X65: =W65 -> 0 | Z65: =Y65 -> 0 | AB65: =AA65 -> 0 | AD65: =AC65 -> 0 | AF65: =AE65 -> 0 | AH65: =AG65 -> 0 | AJ65: =AI65 -> 0 | AL65: =AK65 -> 0 | AN65: =AM65 -> 0 | AP65: =AO65 -> 0 | AR65: =AQ65 -> 0 | AT65: =AS65 -> 0 | AV65: =AU65 -> 0 | AX65: =AW65 -> 0 | AZ65: =AY65 -> 0 | BB65: =BA65 -> 0 | BD65: =BC65 -> 0 | BF65: =BE65 -> 0 | BH65: =BG65 -> 0 | BJ65: =BI65 -> 0 | BL65: =BK65 -> 0 | BN65: =BM65 -> 0 | BP65: =BO65 -> 0 | BR65: =BQ65 -> 0 | BT65: =BS65 -> 0 | BV65: =BU65 -> 0 | BX65: =BW65 -> 0 | BZ65: =BY65 -> 0 | CB65: =CA65 -> 0 | CD65: =CC65 -> 0 | CF65: =CE65 -> 0 | CH65: =CG65 -> 0
B66: 4 | C66: Length of barrier (Llb,4), mi: | H66: =G66 -> 0 | J66: =I66 -> 0 | L66: =K66 -> 0 | N66: =M66 -> 0 | P66: =O66 -> 0 | R66: =Q66 -> 0 | T66: =S66 -> 0 | V66: =U66 -> 0 | X66: =W66 -> 0 | Z66: =Y66 -> 0 | AB66: =AA66 -> 0 | AD66: =AC66 -> 0 | AF66: =AE66 -> 0 | AH66: =AG66 -> 0 | AJ66: =AI66 -> 0 | AL66: =AK66 -> 0 | AN66: =AM66 -> 0 | AP66: =AO66 -> 0 | AR66: =AQ66 -> 0 | AT66: =AS66 -> 0 | AV66: =AU66 -> 0 | AX66: =AW66 -> 0 | AZ66: =AY66 -> 0 | BB66: =BA66 -> 0 | BD66: =BC66 -> 0 | BF66: =BE66 -> 0 | BH66: =BG66 -> 0 | BJ66: =BI66 -> 0 | BL66: =BK66 -> 0 | BN66: =BM66 -> 0 | BP66: =BO66 -> 0 | BR66: =BQ66 -> 0 | BT66: =BS66 -> 0 | BV66: =BU66 -> 0 | BX66: =BW66 -> 0 | BZ66: =BY66 -> 0 | CB66: =CA66 -> 0 | CD66: =CC66 -> 0 | CF66: =CE66 -> 0 | CH66: =CG66 -> 0
C67: Distance from edge of traveled way to barrier face (Woff,l,4), ft: | H67: =G67 -> 0 | J67: =I67 -> 0 | L67: =K67 -> 0 | N67: =M67 -> 0 | P67: =O67 -> 0 | R67: =Q67 -> 0 | T67: =S67 -> 0 | V67: =U67 -> 0 | X67: =W67 -> 0 | Z67: =Y67 -> 0 | AB67: =AA67 -> 0 | AD67: =AC67 -> 0 | AF67: =AE67 -> 0 | AH67: =AG67 -> 0 | AJ67: =AI67 -> 0 | AL67: =AK67 -> 0 | AN67: =AM67 -> 0 | AP67: =AO67 -> 0 | AR67: =AQ67 -> 0 | AT67: =AS67 -> 0 | AV67: =AU67 -> 0 | AX67: =AW67 -> 0 | AZ67: =AY67 -> 0 | BB67: =BA67 -> 0 | BD67: =BC67 -> 0 | BF67: =BE67 -> 0 | BH67: =BG67 -> 0 | BJ67: =BI67 -> 0 | BL67: =BK67 -> 0 | BN67: =BM67 -> 0 | BP67: =BO67 -> 0 | BR67: =BQ67 -> 0 | BT67: =BS67 -> 0 | BV67: =BU67 -> 0 | BX67: =BW67 -> 0 | BZ67: =BY67 -> 0 | CB67: =CA67 -> 0 | CD67: =CC67 -> 0 | CF67: =CE67 -> 0 | CH67: =CG67 -> 0
B68: 5 | C68: Length of barrier (Llb,5), mi: | H68: =G68 -> 0 | J68: =I68 -> 0 | L68: =K68 -> 0 | N68: =M68 -> 0 | P68: =O68 -> 0 | R68: =Q68 -> 0 | T68: =S68 -> 0 | V68: =U68 -> 0 | X68: =W68 -> 0 | Z68: =Y68 -> 0 | AB68: =AA68 -> 0 | AD68: =AC68 -> 0 | AF68: =AE68 -> 0 | AH68: =AG68 -> 0 | AJ68: =AI68 -> 0 | AL68: =AK68 -> 0 | AN68: =AM68 -> 0 | AP68: =AO68 -> 0 | AR68: =AQ68 -> 0 | AT68: =AS68 -> 0 | AV68: =AU68 -> 0 | AX68: =AW68 -> 0 | AZ68: =AY68 -> 0 | BB68: =BA68 -> 0 | BD68: =BC68 -> 0 | BF68: =BE68 -> 0 | BH68: =BG68 -> 0 | BJ68: =BI68 -> 0 | BL68: =BK68 -> 0 | BN68: =BM68 -> 0 | BP68: =BO68 -> 0 | BR68: =BQ68 -> 0 | BT68: =BS68 -> 0 | BV68: =BU68 -> 0 | BX68: =BW68 -> 0 | BZ68: =BY68 -> 0 | CB68: =CA68 -> 0 | CD68: =CC68 -> 0 | CF68: =CE68 -> 0 | CH68: =CG68 -> 0
C69: Distance from edge of traveled way to barrier face (Woff,l,5), ft: | H69: =G69 -> 0 | J69: =I69 -> 0 | L69: =K69 -> 0 | N69: =M69 -> 0 | P69: =O69 -> 0 | R69: =Q69 -> 0 | T69: =S69 -> 0 | V69: =U69 -> 0 | X69: =W69 -> 0 | Z69: =Y69 -> 0 | AB69: =AA69 -> 0 | AD69: =AC69 -> 0 | AF69: =AE69 -> 0 | AH69: =AG69 -> 0 | AJ69: =AI69 -> 0 | AL69: =AK69 -> 0 | AN69: =AM69 -> 0 | AP69: =AO69 -> 0 | AR69: =AQ69 -> 0 | AT69: =AS69 -> 0 | AV69: =AU69 -> 0 | AX69: =AW69 -> 0 | AZ69: =AY69 -> 0 | BB69: =BA69 -> 0 | BD69: =BC69 -> 0 | BF69: =BE69 -> 0 | BH69: =BG69 -> 0 | BJ69: =BI69 -> 0 | BL69: =BK69 -> 0 | BN69: =BM69 -> 0 | BP69: =BO69 -> 0 | BR69: =BQ69 -> 0 | BT69: =BS69 -> 0 | BV69: =BU69 -> 0 | BX69: =BW69 -> 0 | BZ69: =BY69 -> 0 | CB69: =CA69 -> 0 | CD69: =CC69 -> 0 | CF69: =CE69 -> 0 | CH69: =CG69 -> 0
B70: Ramp Access Data | E70: See note
B71: Ramp | C71: Ramp entrance in segment? (If yes, indicate type.): | H71: =G71 -> 0 | J71: =I71 -> 0 | L71: =K71 -> 0 | N71: =M71 -> 0 | P71: =O71 -> 0 | R71: =Q71 -> 0 | T71: =S71 -> 0 | V71: =U71 -> 0 | X71: =W71 -> 0 | Z71: =Y71 -> 0 | AB71: =AA71 -> 0 | AD71: =AC71 -> 0 | AF71: =AE71 -> 0 | AH71: =AG71 -> 0 | AJ71: =AI71 -> 0 | AL71: =AK71 -> 0 | AN71: =AM71 -> 0 | AP71: =AO71 -> 0 | AR71: =AQ71 -> 0 | AT71: =AS71 -> 0 | AV71: =AU71 -> 0 | AX71: =AW71 -> 0 | AZ71: =AY71 -> 0 | BB71: =BA71 -> 0 | BD71: =BC71 -> 0 | BF71: =BE71 -> 0 | BH71: =BG71 -> 0 | BJ71: =BI71 -> 0 | BL71: =BK71 -> 0 | BN71: =BM71 -> 0 | BP71: =BO71 -> 0 | BR71: =BQ71 -> 0 | BT71: =BS71 -> 0 | BV71: =BU71 -> 0 | BX71: =BW71 -> 0 | BZ71: =BY71 -> 0 | CB71: =CA71 -> 0 | CD71: =CC71 -> 0 | CF71: =CE71 -> 0 | CH71: =CG71 -> 0
B72: Entrance | C72: Length of entrance s-c lane in segment (Len,seg), mi: | H72: =G72 -> 0 | J72: =I72 -> 0 | L72: =K72 -> 0 | N72: =M72 -> 0 | P72: =O72 -> 0 | R72: =Q72 -> 0 | T72: =S72 -> 0 | V72: =U72 -> 0 | X72: =W72 -> 0 | Z72: =Y72 -> 0 | AB72: =AA72 -> 0 | AD72: =AC72 -> 0 | AF72: =AE72 -> 0 | AH72: =AG72 -> 0 | AJ72: =AI72 -> 0 | AL72: =AK72 -> 0 | AN72: =AM72 -> 0 | AP72: =AO72 -> 0 | AR72: =AQ72 -> 0 | AT72: =AS72 -> 0 | AV72: =AU72 -> 0 | AX72: =AW72 -> 0 | AZ72: =AY72 -> 0 | BB72: =BA72 -> 0 | BD72: =BC72 -> 0 | BF72: =BE72 -> 0 | BH72: =BG72 -> 0 | BJ72: =BI72 -> 0 | BL72: =BK72 -> 0 | BN72: =BM72 -> 0 | BP72: =BO72 -> 0 | BR72: =BQ72 -> 0 | BT72: =BS72 -> 0 | BV72: =BU72 -> 0 | BX72: =BW72 -> 0 | BZ72: =BY72 -> 0 | CB72: =CA72 -> 0 | CD72: =CC72 -> 0 | CF72: =CE72 -> 0 | CH72: =CG72 -> 0
B73: Ramp | C73: Ramp exit in segment? (If yes, indicate type.): | H73: =G73 -> 0 | J73: =I73 -> 0 | L73: =K73 -> 0 | N73: =M73 -> 0 | P73: =O73 -> 0 | R73: =Q73 -> 0 | T73: =S73 -> 0 | V73: =U73 -> 0 | X73: =W73 -> 0 | Z73: =Y73 -> 0 | AB73: =AA73 -> 0 | AD73: =AC73 -> 0 | AF73: =AE73 -> 0 | AH73: =AG73 -> 0 | AJ73: =AI73 -> 0 | AL73: =AK73 -> 0 | AN73: =AM73 -> 0 | AP73: =AO73 -> 0 | AR73: =AQ73 -> 0 | AT73: =AS73 -> 0 | AV73: =AU73 -> 0 | AX73: =AW73 -> 0 | AZ73: =AY73 -> 0 | BB73: =BA73 -> 0 | BD73: =BC73 -> 0 | BF73: =BE73 -> 0 | BH73: =BG73 -> 0 | BJ73: =BI73 -> 0 | BL73: =BK73 -> 0 | BN73: =BM73 -> 0 | BP73: =BO73 -> 0 | BR73: =BQ73 -> 0 | BT73: =BS73 -> 0 | BV73: =BU73 -> 0 | BX73: =BW73 -> 0 | BZ73: =BY73 -> 0 | CB73: =CA73 -> 0 | CD73: =CC73 -> 0 | CF73: =CE73 -> 0 | CH73: =CG73 -> 0
B74: Exit | C74: Length of exit s-c lane in segment (Lex,seg), mi: | H74: =G74 -> 0 | J74: =I74 -> 0 | L74: =K74 -> 0 | N74: =M74 -> 0 | P74: =O74 -> 0 | R74: =Q74 -> 0 | T74: =S74 -> 0 | V74: =U74 -> 0 | X74: =W74 -> 0 | Z74: =Y74 -> 0 | AB74: =AA74 -> 0 | AD74: =AC74 -> 0 | AF74: =AE74 -> 0 | AH74: =AG74 -> 0 | AJ74: =AI74 -> 0 | AL74: =AK74 -> 0 | AN74: =AM74 -> 0 | AP74: =AO74 -> 0 | AR74: =AQ74 -> 0 | AT74: =AS74 -> 0 | AV74: =AU74 -> 0 | AX74: =AW74 -> 0 | AZ74: =AY74 -> 0 | BB74: =BA74 -> 0 | BD74: =BC74 -> 0 | BF74: =BE74 -> 0 | BH74: =BG74 -> 0 | BJ74: =BI74 -> 0 | BL74: =BK74 -> 0 | BN74: =BM74 -> 0 | BP74: =BO74 -> 0 | BR74: =BQ74 -> 0 | BT74: =BS74 -> 0 | BV74: =BU74 -> 0 | BX74: =BW74 -> 0 | BZ74: =BY74 -> 0 | CB74: =CA74 -> 0 | CD74: =CC74 -> 0 | CF74: =CE74 -> 0 | CH74: =CG74 -> 0
B75: Weaving | C75: Weave section in collector-distributor road segment?: | H75: =G75 -> 0 | J75: =I75 -> 0 | L75: =K75 -> 0 | N75: =M75 -> 0 | P75: =O75 -> 0 | R75: =Q75 -> 0 | T75: =S75 -> 0 | V75: =U75 -> 0 | X75: =W75 -> 0 | Z75: =Y75 -> 0 | AB75: =AA75 -> 0 | AD75: =AC75 -> 0 | AF75: =AE75 -> 0 | AH75: =AG75 -> 0 | AJ75: =AI75 -> 0 | AL75: =AK75 -> 0 | AN75: =AM75 -> 0 | AP75: =AO75 -> 0 | AR75: =AQ75 -> 0 | AT75: =AS75 -> 0 | AV75: =AU75 -> 0 | AX75: =AW75 -> 0 | AZ75: =AY75 -> 0 | BB75: =BA75 -> 0 | BD75: =BC75 -> 0 | BF75: =BE75 -> 0 | BH75: =BG75 -> 0 | BJ75: =BI75 -> 0 | BL75: =BK75 -> 0 | BN75: =BM75 -> 0 | BP75: =BO75 -> 0 | BR75: =BQ75 -> 0 | BT75: =BS75 -> 0 | BV75: =BU75 -> 0 | BX75: =BW75 -> 0 | BZ75: =BY75 -> 0 | CB75: =CA75 -> 0 | CD75: =CC75 -> 0 | CF75: =CE75 -> 0 | CH75: =CG75 -> 0
B76: Section | C76: Length of weaving section (Lwev), mi: | H76: =G76 -> 0 | J76: =I76 -> 0 | L76: =K76 -> 0 | N76: =M76 -> 0 | P76: =O76 -> 0 | R76: =Q76 -> 0 | T76: =S76 -> 0 | V76: =U76 -> 0 | X76: =W76 -> 0 | Z76: =Y76 -> 0 | AB76: =AA76 -> 0 | AD76: =AC76 -> 0 | AF76: =AE76 -> 0 | AH76: =AG76 -> 0 | AJ76: =AI76 -> 0 | AL76: =AK76 -> 0 | AN76: =AM76 -> 0 | AP76: =AO76 -> 0 | AR76: =AQ76 -> 0 | AT76: =AS76 -> 0 | AV76: =AU76 -> 0 | AX76: =AW76 -> 0 | AZ76: =AY76 -> 0 | BB76: =BA76 -> 0 | BD76: =BC76 -> 0 | BF76: =BE76 -> 0 | BH76: =BG76 -> 0 | BJ76: =BI76 -> 0 | BL76: =BK76 -> 0 | BN76: =BM76 -> 0 | BP76: =BO76 -> 0 | BR76: =BQ76 -> 0 | BT76: =BS76 -> 0 | BV76: =BU76 -> 0 | BX76: =BW76 -> 0 | BZ76: =BY76 -> 0 | CB76: =CA76 -> 0 | CD76: =CC76 -> 0 | CF76: =CE76 -> 0 | CH76: =CG76 -> 0
C77: Length of weaving section in segment (Lwev,seg), mi: | H77: =G77 -> 0 | J77: =I77 -> 0 | L77: =K77 -> 0 | N77: =M77 -> 0 | P77: =O77 -> 0 | R77: =Q77 -> 0 | T77: =S77 -> 0 | V77: =U77 -> 0 | X77: =W77 -> 0 | Z77: =Y77 -> 0 | AB77: =AA77 -> 0 | AD77: =AC77 -> 0 | AF77: =AE77 -> 0 | AH77: =AG77 -> 0 | AJ77: =AI77 -> 0 | AL77: =AK77 -> 0 | AN77: =AM77 -> 0 | AP77: =AO77 -> 0 | AR77: =AQ77 -> 0 | AT77: =AS77 -> 0 | AV77: =AU77 -> 0 | AX77: =AW77 -> 0 | AZ77: =AY77 -> 0 | BB77: =BA77 -> 0 | BD77: =BC77 -> 0 | BF77: =BE77 -> 0 | BH77: =BG77 -> 0 | BJ77: =BI77 -> 0 | BL77: =BK77 -> 0 | BN77: =BM77 -> 0 | BP77: =BO77 -> 0 | BR77: =BQ77 -> 0 | BT77: =BS77 -> 0 | BV77: =BU77 -> 0 | BX77: =BW77 -> 0 | BZ77: =BY77 -> 0 | CB77: =CA77 -> 0 | CD77: =CC77 -> 0 | CF77: =CE77 -> 0 | CH77: =CG77 -> 0
B78: Traffic Data | F78: Year
B79: Average daily traffic (AADTr or AADTc) by year, veh/d: | F79: =Main!AG5 -> 2010
B80: (enter data only for those years for which | F80: =F79+1 -> 2011
B81: it is available, leave other years blank) | F81: =F80+1 -> 2012
F82: 2013
F83: 2014
F84: 2015
F85: 2016
F86: 2017
F87: 2018
F88: 2019
F89: 2020
F90: 2021
F91: 2022
F92: 2023
F93: 2024
F94: 2025
F95: 2026
F96: 2027
F97: 2028
F98: 2029
F99: 2030
F100: 2031
F101: 2032
F102: 2033
B103: Crash Data | E103: Year | F103: =IF(Main!$AG$15=TRUE, "Project Crashes", "") ->  | G103: Segment Crashes -->
B104: Count of Fatal-and-Injury (FI) Crashes by Year
C105: Multiple-vehicle crashes | E105: =Main!AG7 -> 2010
C106: (No,w,n,mv,fi) | E106: =E105+1 -> 2011
E107: =E106+1 -> 2012
E108: =E107+1 -> 2013
E109: =E108+1 -> 2014
C110: Single-vehicle crashes | E110: =E105 -> 2010
C111: (No,w,n,sv,fi) | E111: =E106 -> 2011
E112: =E107 -> 2012
E113: =E108 -> 2013
E114: =E109 -> 2014
B115: Count of Property-Damage-Only (PDO) Crashes by Year
C116: Multiple-vehicle crashes | E116: =E110 -> 2010
C117: (No,w,n,mv,pdo) | E117: =E111 -> 2011
E118: =E112 -> 2012
E119: =E113 -> 2013
E120: =E114 -> 2014
C121: Single-vehicle crashes | E121: =E116 -> 2010
C122: (No,w,n,sv,pdo) | E122: =E117 -> 2011
E123: =E118 -> 2012
E124: =E119 -> 2013
E125: =E120 -> 2014
B127: Advisory Messages
B172: Variable Limits
B173: =B8 -> Number of through lanes (n): | G173: =IF(Main!$K$6="Urban", 2,1) -> 1 | H173: =IF(Main!$K$6="Urban", 2,1) -> 1 | I173: =IF(Main!$K$6="Urban", 2,1) -> 1 | J173: =IF(Main!$K$6="Urban", 2,1) -> 1 | K173: =IF(Main!$K$6="Urban", 2,1) -> 1 | L173: =IF(Main!$K$6="Urban", 2,1) -> 1 | M173: =IF(Main!$K$6="Urban", 2,1) -> 1 | N173: =IF(Main!$K$6="Urban", 2,1) -> 1 | O173: =IF(Main!$K$6="Urban", 2,1) -> 1 | P173: =IF(Main!$K$6="Urban", 2,1) -> 1 | Q173: =IF(Main!$K$6="Urban", 2,1) -> 1 | R173: =IF(Main!$K$6="Urban", 2,1) -> 1 | S173: =IF(Main!$K$6="Urban", 2,1) -> 1 | T173: =IF(Main!$K$6="Urban", 2,1) -> 1 | U173: =IF(Main!$K$6="Urban", 2,1) -> 1 | V173: =IF(Main!$K$6="Urban", 2,1) -> 1 | W173: =IF(Main!$K$6="Urban", 2,1) -> 1 | X173: =IF(Main!$K$6="Urban", 2,1) -> 1 | Y173: =IF(Main!$K$6="Urban", 2,1) -> 1 | Z173: =IF(Main!$K$6="Urban", 2,1) -> 1 | AA173: =IF(Main!$K$6="Urban", 2,1) -> 1 | AB173: =IF(Main!$K$6="Urban", 2,1) -> 1 | AC173: =IF(Main!$K$6="Urban", 2,1) -> 1 | AD173: =IF(Main!$K$6="Urban", 2,1) -> 1 | AE173: =IF(Main!$K$6="Urban", 2,1) -> 1 | AF173: =IF(Main!$K$6="Urban", 2,1) -> 1 | AG173: =IF(Main!$K$6="Urban", 2,1) -> 1 | AH173: =IF(Main!$K$6="Urban", 2,1) -> 1 | AI173: =IF(Main!$K$6="Urban", 2,1) -> 1 | AJ173: =IF(Main!$K$6="Urban", 2,1) -> 1 | AK173: =IF(Main!$K$6="Urban", 2,1) -> 1 | AL173: =IF(Main!$K$6="Urban", 2,1) -> 1 | AM173: =IF(Main!$K$6="Urban", 2,1) -> 1 | AN173: =IF(Main!$K$6="Urban", 2,1) -> 1 | AO173: =IF(Main!$K$6="Urban", 2,1) -> 1 | AP173: =IF(Main!$K$6="Urban", 2,1) -> 1 | AQ173: =IF(Main!$K$6="Urban", 2,1) -> 1 | AR173: =IF(Main!$K$6="Urban", 2,1) -> 1 | AS173: =IF(Main!$K$6="Urban", 2,1) -> 1 | AT173: =IF(Main!$K$6="Urban", 2,1) -> 1 | AU173: =IF(Main!$K$6="Urban", 2,1) -> 1 | AV173: =IF(Main!$K$6="Urban", 2,1) -> 1 | AW173: =IF(Main!$K$6="Urban", 2,1) -> 1 | AX173: =IF(Main!$K$6="Urban", 2,1) -> 1 | AY173: =IF(Main!$K$6="Urban", 2,1) -> 1 | AZ173: =IF(Main!$K$6="Urban", 2,1) -> 1 | BA173: =IF(Main!$K$6="Urban", 2,1) -> 1 | BB173: =IF(Main!$K$6="Urban", 2,1) -> 1 | BC173: =IF(Main!$K$6="Urban", 2,1) -> 1 | BD173: =IF(Main!$K$6="Urban", 2,1) -> 1 | BE173: =IF(Main!$K$6="Urban", 2,1) -> 1 | BF173: =IF(Main!$K$6="Urban", 2,1) -> 1 | BG173: =IF(Main!$K$6="Urban", 2,1) -> 1 | BH173: =IF(Main!$K$6="Urban", 2,1) -> 1 | BI173: =IF(Main!$K$6="Urban", 2,1) -> 1 | BJ173: =IF(Main!$K$6="Urban", 2,1) -> 1 | BK173: =IF(Main!$K$6="Urban", 2,1) -> 1 | BL173: =IF(Main!$K$6="Urban", 2,1) -> 1 | BM173: =IF(Main!$K$6="Urban", 2,1) -> 1 | BN173: =IF(Main!$K$6="Urban", 2,1) -> 1 | BO173: =IF(Main!$K$6="Urban", 2,1) -> 1 | BP173: =IF(Main!$K$6="Urban", 2,1) -> 1 | BQ173: =IF(Main!$K$6="Urban", 2,1) -> 1 | BR173: =IF(Main!$K$6="Urban", 2,1) -> 1 | BS173: =IF(Main!$K$6="Urban", 2,1) -> 1 | BT173: =IF(Main!$K$6="Urban", 2,1) -> 1 | BU173: =IF(Main!$K$6="Urban", 2,1) -> 1 | BV173: =IF(Main!$K$6="Urban", 2,1) -> 1 | BW173: =IF(Main!$K$6="Urban", 2,1) -> 1 | BX173: =IF(Main!$K$6="Urban", 2,1) -> 1 | BY173: =IF(Main!$K$6="Urban", 2,1) -> 1 | BZ173: =IF(Main!$K$6="Urban", 2,1) -> 1 | CA173: =IF(Main!$K$6="Urban", 2,1) -> 1 | CB173: =IF(Main!$K$6="Urban", 2,1) -> 1 | CC173: =IF(Main!$K$6="Urban", 2,1) -> 1 | CD173: =IF(Main!$K$6="Urban", 2,1) -> 1 | CE173: =IF(Main!$K$6="Urban", 2,1) -> 1 | CF173: =IF(Main!$K$6="Urban", 2,1) -> 1 | CG173: =IF(Main!$K$6="Urban", 2,1) -> 1 | CH173: =IF(Main!$K$6="Urban", 2,1) -> 1
B174: =C19 -> Length of curve in segment (Lc1,seg), mi: | G174: =MIN(G$10,G18) -> 0 | H174: =MIN(H$10,H18) -> 0 | I174: 0 | J174: 0 | K174: 0 | L174: 0 | M174: 0 | N174: 0 | O174: 0 | P174: 0 | Q174: 0 | R174: 0 | S174: 0 | T174: 0 | U174: 0 | V174: 0 | W174: 0 | X174: 0 | Y174: 0 | Z174: 0 | AA174: 0 | AB174: 0 | AC174: 0 | AD174: 0 | AE174: 0 | AF174: 0 | AG174: 0 | AH174: 0 | AI174: 0 | AJ174: 0 | AK174: 0 | AL174: 0 | AM174: 0 | AN174: 0 | AO174: 0 | AP174: 0 | AQ174: 0 | AR174: 0 | AS174: 0 | AT174: 0 | AU174: 0 | AV174: 0 | AW174: 0 | AX174: 0 | AY174: 0 | AZ174: 0 | BA174: 0 | BB174: 0 | BC174: 0 | BD174: 0 | BE174: 0 | BF174: 0 | BG174: 0 | BH174: 0 | BI174: 0 | BJ174: 0 | BK174: 0 | BL174: 0 | BM174: 0 | BN174: 0 | BO174: 0 | BP174: 0 | BQ174: 0 | BR174: 0 | BS174: 0 | BT174: =MIN(BT$10,BT18) -> 0 | BU174: 0 | BV174: 0 | BW174: 0 | BX174: 0 | BY174: 0 | BZ174: 0 | CA174: 0 | CB174: 0 | CC174: 0 | CD174: 0 | CE174: 0 | CF174: 0 | CG174: 0 | CH174: 0
B175: =C24 -> Length of curve in segment (Lc2,seg), mi: | G175: =MIN(G$10,G23) -> 0 | H175: =MIN(H$10,H23) -> 0 | I175: 0 | J175: 0 | K175: 0 | L175: 0 | M175: 0 | N175: 0 | O175: 0 | P175: 0 | Q175: 0 | R175: 0 | S175: 0 | T175: 0 | U175: 0 | V175: 0 | W175: 0 | X175: 0 | Y175: 0 | Z175: 0 | AA175: 0 | AB175: 0 | AC175: 0 | AD175: 0 | AE175: 0 | AF175: 0 | AG175: 0 | AH175: 0 | AI175: 0 | AJ175: 0 | AK175: 0 | AL175: 0 | AM175: 0 | AN175: 0 | AO175: 0 | AP175: 0 | AQ175: 0 | AR175: 0 | AS175: 0 | AT175: 0 | AU175: 0 | AV175: 0 | AW175: 0 | AX175: 0 | AY175: 0 | AZ175: 0 | BA175: 0 | BB175: 0 | BC175: 0 | BD175: 0 | BE175: 0 | BF175: 0 | BG175: 0 | BH175: 0 | BI175: 0 | BJ175: 0 | BK175: 0 | BL175: 0 | BM175: 0 | BN175: 0 | BO175: 0 | BP175: 0 | BQ175: 0 | BR175: 0 | BS175: 0 | BT175: =MIN(BT$10,BT23) -> 0 | BU175: 0 | BV175: 0 | BW175: 0 | BX175: 0 | BY175: 0 | BZ175: 0 | CA175: 0 | CB175: 0 | CC175: 0 | CD175: 0 | CE175: 0 | CF175: 0 | CG175: 0 | CH175: 0
B176: =C29 -> Length of curve in segment (Lc3,seg), mi: | G176: =MIN(G$10,G28) -> 0 | H176: =MIN(H$10,H28) -> 0 | I176: 0 | J176: 0 | K176: 0 | L176: 0 | M176: 0 | N176: 0 | O176: 0 | P176: 0 | Q176: 0 | R176: 0 | S176: 0 | T176: 0 | U176: 0 | V176: 0 | W176: 0 | X176: 0 | Y176: 0 | Z176: 0 | AA176: 0 | AB176: 0 | AC176: 0 | AD176: 0 | AE176: 0 | AF176: 0 | AG176: 0 | AH176: 0 | AI176: 0 | AJ176: 0 | AK176: 0 | AL176: 0 | AM176: 0 | AN176: 0 | AO176: 0 | AP176: 0 | AQ176: 0 | AR176: 0 | AS176: 0 | AT176: 0 | AU176: 0 | AV176: 0 | AW176: 0 | AX176: 0 | AY176: 0 | AZ176: 0 | BA176: 0 | BB176: 0 | BC176: 0 | BD176: 0 | BE176: 0 | BF176: 0 | BG176: 0 | BH176: 0 | BI176: 0 | BJ176: 0 | BK176: 0 | BL176: 0 | BM176: 0 | BN176: 0 | BO176: 0 | BP176: 0 | BQ176: 0 | BR176: 0 | BS176: 0 | BT176: =MIN(BT$10,BT28) -> 0 | BU176: 0 | BV176: 0 | BW176: 0 | BX176: 0 | BY176: 0 | BZ176: 0 | CA176: 0 | CB176: 0 | CC176: 0 | CD176: 0 | CE176: 0 | CF176: 0 | CG176: 0 | CH176: 0
B177: =C34 -> Length of curve in segment (Lc4,seg), mi: | G177: =MIN(G$10,G33) -> 0 | H177: =MIN(H$10,H33) -> 0 | I177: 0 | J177: 0 | K177: 0 | L177: 0 | M177: 0 | N177: 0 | O177: 0 | P177: 0 | Q177: 0 | R177: 0 | S177: 0 | T177: 0 | U177: 0 | V177: 0 | W177: 0 | X177: 0 | Y177: 0 | Z177: 0 | AA177: 0 | AB177: 0 | AC177: 0 | AD177: 0 | AE177: 0 | AF177: 0 | AG177: 0 | AH177: 0 | AI177: 0 | AJ177: 0 | AK177: 0 | AL177: 0 | AM177: 0 | AN177: 0 | AO177: 0 | AP177: 0 | AQ177: 0 | AR177: 0 | AS177: 0 | AT177: 0 | AU177: 0 | AV177: 0 | AW177: 0 | AX177: 0 | AY177: 0 | AZ177: 0 | BA177: 0 | BB177: 0 | BC177: 0 | BD177: 0 | BE177: 0 | BF177: 0 | BG177: 0 | BH177: 0 | BI177: 0 | BJ177: 0 | BK177: 0 | BL177: 0 | BM177: 0 | BN177: 0 | BO177: 0 | BP177: 0 | BQ177: 0 | BR177: 0 | BS177: 0 | BT177: =MIN(BT$10,BT33) -> 0 | BU177: 0 | BV177: 0 | BW177: 0 | BX177: 0 | BY177: 0 | BZ177: 0 | CA177: 0 | CB177: 0 | CC177: 0 | CD177: 0 | CE177: 0 | CF177: 0 | CG177: 0 | CH177: 0
B178: =C39 -> Length of curve in segment (Lc5,seg), mi: | G178: =MIN(G$10,G38) -> 0 | H178: =MIN(H$10,H38) -> 0 | I178: 0 | J178: 0 | K178: 0 | L178: 0 | M178: 0 | N178: 0 | O178: 0 | P178: 0 | Q178: 0 | R178: 0 | S178: 0 | T178: 0 | U178: 0 | V178: 0 | W178: 0 | X178: 0 | Y178: 0 | Z178: 0 | AA178: 0 | AB178: 0 | AC178: 0 | AD178: 0 | AE178: 0 | AF178: 0 | AG178: 0 | AH178: 0 | AI178: 0 | AJ178: 0 | AK178: 0 | AL178: 0 | AM178: 0 | AN178: 0 | AO178: 0 | AP178: 0 | AQ178: 0 | AR178: 0 | AS178: 0 | AT178: 0 | AU178: 0 | AV178: 0 | AW178: 0 | AX178: 0 | AY178: 0 | AZ178: 0 | BA178: 0 | BB178: 0 | BC178: 0 | BD178: 0 | BE178: 0 | BF178: 0 | BG178: 0 | BH178: 0 | BI178: 0 | BJ178: 0 | BK178: 0 | BL178: 0 | BM178: 0 | BN178: 0 | BO178: 0 | BP178: 0 | BQ178: 0 | BR178: 0 | BS178: 0 | BT178: =MIN(BT$10,BT38) -> 0 | BU178: 0 | BV178: 0 | BW178: 0 | BX178: 0 | BY178: 0 | BZ178: 0 | CA178: 0 | CB178: 0 | CC178: 0 | CD178: 0 | CE178: 0 | CF178: 0 | CG178: 0 | CH178: 0
B179: =C46 -> Length of taper in segment (Ladd,seg or Ldrop,seg), mi: | G179: =MIN(G$10,0.3) -> 0.3 | H179: 0 | I179: 0.3 | J179: 0 | K179: 0.3 | L179: 0 | M179: 0.3 | N179: 0 | O179: 0.3 | P179: 0 | Q179: 0.3 | R179: 0 | S179: 0.3 | T179: 0 | U179: 0.3 | V179: 0 | W179: 0.3 | X179: 0 | Y179: 0.3 | Z179: 0 | AA179: 0.3 | AB179: 0 | AC179: 0.3 | AD179: 0 | AE179: 0.3 | AF179: 0 | AG179: 0.3 | AH179: 0 | AI179: 0.3 | AJ179: 0 | AK179: 0.3 | AL179: 0 | AM179: =MIN(AM$10,0.3) -> 0.3 | AN179: 0 | AO179: 0.3 | AP179: 0 | AQ179: 0.3 | AR179: 0 | AS179: 0.3 | AT179: 0 | AU179: 0.3 | AV179: 0 | AW179: 0.3 | AX179: 0 | AY179: 0.3 | AZ179: 0 | BA179: 0.3 | BB179: 0 | BC179: 0.3 | BD179: 0 | BE179: 0.3 | BF179: 0 | BG179: 0.3 | BH179: 0 | BI179: 0.3 | BJ179: 0 | BK179: 0.3 | BL179: 0 | BM179: 0.3 | BN179: 0 | BO179: 0.3 | BP179: 0 | BQ179: 0.3 | BR179: 0 | BS179: =MIN(BS$10,0.3) -> 0.3 | BT179: 0 | BU179: 0.3 | BV179: 0 | BW179: 0.3 | BX179: 0 | BY179: 0.3 | BZ179: 0 | CA179: 0.3 | CB179: 0 | CC179: 0.3 | CD179: 0 | CE179: 0.3 | CF179: 0 | CG179: 0.3 | CH179: 0
B180: =C72 -> Length of entrance s-c lane in segment (Len,seg), mi: | G180: =MIN(G$10,0.19) -> 0.19 | H180: =MIN(H$10,0.19) -> 0 | I180: 0.19 | J180: 0 | K180: 0.19 | L180: 0 | M180: 0.19 | N180: 0 | O180: 0.19 | P180: 0 | Q180: 0.19 | R180: 0 | S180: 0.19 | T180: 0 | U180: 0.19 | V180: 0 | W180: 0.19 | X180: 0 | Y180: 0.19 | Z180: 0 | AA180: 0.19 | AB180: 0 | AC180: 0.19 | AD180: 0 | AE180: 0.19 | AF180: 0 | AG180: 0.19 | AH180: 0 | AI180: 0.19 | AJ180: 0 | AK180: 0.19 | AL180: 0 | AM180: 0.19 | AN180: 0 | AO180: 0.19 | AP180: 0 | AQ180: 0.19 | AR180: 0 | AS180: 0.19 | AT180: 0 | AU180: 0.19 | AV180: 0 | AW180: 0.19 | AX180: 0 | AY180: 0.19 | AZ180: 0 | BA180: 0.19 | BB180: 0 | BC180: 0.19 | BD180: 0 | BE180: 0.19 | BF180: 0 | BG180: 0.19 | BH180: 0 | BI180: 0.19 | BJ180: 0 | BK180: 0.19 | BL180: 0 | BM180: 0.19 | BN180: 0 | BO180: 0.19 | BP180: 0 | BQ180: 0.19 | BR180: 0 | BS180: 0.19 | BT180: =MIN(BT$10,0.19) -> 0 | BU180: 0.19 | BV180: 0 | BW180: 0.19 | BX180: 0 | BY180: 0.19 | BZ180: 0 | CA180: 0.19 | CB180: 0 | CC180: 0.19 | CD180: 0 | CE180: 0.19 | CF180: 0 | CG180: 0.19 | CH180: 0
B181: =C74 -> Length of exit s-c lane in segment (Lex,seg), mi: | G181: =MIN(G$10,0.19) -> 0.19 | H181: =MIN(H$10,0.19) -> 0 | I181: 0.19 | J181: 0 | K181: 0.19 | L181: 0 | M181: 0.19 | N181: 0 | O181: 0.19 | P181: 0 | Q181: 0.19 | R181: 0 | S181: 0.19 | T181: 0 | U181: 0.19 | V181: 0 | W181: 0.19 | X181: 0 | Y181: 0.19 | Z181: 0 | AA181: 0.19 | AB181: 0 | AC181: 0.19 | AD181: 0 | AE181: 0.19 | AF181: 0 | AG181: 0.19 | AH181: 0 | AI181: 0.19 | AJ181: 0 | AK181: 0.19 | AL181: 0 | AM181: 0.19 | AN181: 0 | AO181: 0.19 | AP181: 0 | AQ181: 0.19 | AR181: 0 | AS181: 0.19 | AT181: 0 | AU181: 0.19 | AV181: 0 | AW181: 0.19 | AX181: 0 | AY181: 0.19 | AZ181: 0 | BA181: 0.19 | BB181: 0 | BC181: 0.19 | BD181: 0 | BE181: 0.19 | BF181: 0 | BG181: 0.19 | BH181: 0 | BI181: 0.19 | BJ181: 0 | BK181: 0.19 | BL181: 0 | BM181: 0.19 | BN181: 0 | BO181: 0.19 | BP181: 0 | BQ181: 0.19 | BR181: 0 | BS181: 0.19 | BT181: =MIN(BT$10,0.19) -> 0 | BU181: 0.19 | BV181: 0 | BW181: 0.19 | BX181: 0 | BY181: 0.19 | BZ181: 0 | CA181: 0.19 | CB181: 0 | CC181: 0.19 | CD181: 0 | CE181: 0.19 | CF181: 0 | CG181: 0.19 | CH181: 0
B182: =C77 -> Length of weaving section in segment (Lwev,seg), mi: | G182: =MIN(G$10,G76,0.3) -> 0.3 | H182: =MIN(H$10,H76,0.3) -> 0 | I182: 0.3 | J182: 0 | K182: 0.3 | L182: 0 | M182: 0.3 | N182: 0 | O182: 0.3 | P182: 0 | Q182: 0.3 | R182: 0 | S182: 0.3 | T182: 0 | U182: 0.3 | V182: 0 | W182: 0.3 | X182: 0 | Y182: 0.3 | Z182: 0 | AA182: 0.3 | AB182: 0 | AC182: 0.3 | AD182: 0 | AE182: 0.3 | AF182: 0 | AG182: 0.3 | AH182: 0 | AI182: 0.3 | AJ182: 0 | AK182: 0.3 | AL182: 0 | AM182: 0.3 | AN182: 0 | AO182: 0.3 | AP182: 0 | AQ182: 0.3 | AR182: 0 | AS182: 0.3 | AT182: 0 | AU182: 0.3 | AV182: 0 | AW182: 0.3 | AX182: 0 | AY182: 0.3 | AZ182: 0 | BA182: 0.3 | BB182: 0 | BC182: 0.3 | BD182: 0 | BE182: 0.3 | BF182: 0 | BG182: 0.3 | BH182: 0 | BI182: 0.3 | BJ182: 0 | BK182: 0.3 | BL182: 0 | BM182: 0.3 | BN182: 0 | BO182: 0.3 | BP182: 0 | BQ182: 0.3 | BR182: 0 | BS182: 0.3 | BT182: =MIN(BT$10,BT76,0.3) -> 0 | BU182: 0.3 | BV182: 0 | BW182: 0.3 | BX182: 0 | BY182: 0.3 | BZ182: 0 | CA182: 0.3 | CB182: 0 | CC182: 0.3 | CD182: 0 | CE182: 0.3 | CF182: 0 | CG182: 0.3 | CH182: 0

Sheet Input Ramp Terminals
E3: Input Worksheet for Crossroad Ramp Terminals
G4: ="Terminal "& TEXT(INT((COLUMN()-5)/2),"0") -> Terminal 1 | I4: ="Terminal "& TEXT(INT((COLUMN()-5)/2),"0") -> Terminal 2 | K4: ="Terminal "& TEXT(INT((COLUMN()-5)/2),"0") -> Terminal 3 | M4: ="Terminal "& TEXT(INT((COLUMN()-5)/2),"0") -> Terminal 4 | O4: ="Terminal "& TEXT(INT((COLUMN()-5)/2),"0") -> Terminal 5 | Q4: ="Terminal "& TEXT(INT((COLUMN()-5)/2),"0") -> Terminal 6 | T4: =G4 -> Terminal 1 | V4: =I4 -> Terminal 2 | X4: =K4 -> Terminal 3 | Z4: =M4 -> Terminal 4 | AB4: =O4 -> Terminal 5 | AD4: =Q4 -> Terminal 6
G5: =IF(Main!$AK$14=TRUE, "Crash Period", "Study Period") -> Study Period | H5: =IF(Main!$AK$14=TRUE, "Study Period", "") ->  | I5: =G5 -> Study Period | K5: Study Period | M5: Study Period | O5: Study Period | Q5: Study Period | T5: =G5 -> Study Period | U5: =H5 ->  | V5: =I5 -> Study Period | W5: =J5 ->  | X5: =K5 -> Study Period | Y5: =L5 ->  | Z5: =M5 -> Study Period | AA5: =N5 ->  | AB5: =O5 -> Study Period | AC5: =P5 ->  | AD5: =Q5 -> Study Period | AE5: =R5 -> 
C6: (View results in Column T) | D6: (View results in Advisory Messages)
B7: Basic Intersection Data
B8: Ramp terminal configuration: | H8: =G8 -> 0 | J8: =I8 -> 0 | L8: =K8 -> 0 | N8: =M8 -> 0 | P8: =O8 -> 0 | R8: =Q8 -> 0
B9: Ramp terminal description:
B10: Ramp terminal traffic control type: | H10: =G10 -> 0 | J10: =I10 -> 0 | L10: =K10 -> 0 | N10: =M10 -> 0 | P10: =O10 -> 0 | R10: =Q10 -> 0
B11: Is a non-ramp public street leg present at the terminal (Ips)?: | H11: =G11 -> 0 | J11: =I11 -> 0 | L11: =K11 -> 0 | N11: =M11 -> 0 | P11: =O11 -> 0 | R11: =Q11 -> 0
B12: Alignment Data
B13: Exit ramp skew angle (Isk), degrees: | H13: =G13 -> 0 | J13: =I13 -> 0 | L13: =K13 -> 0 | N13: =M13 -> 0 | P13: =O13 -> 0 | R13: =Q13 -> 0
B14: Distance to the next public street intersection on the outside crossroad leg (Lstr), mi: | H14: =G14 -> 0 | J14: =I14 -> 0 | L14: =K14 -> 0 | N14: =M14 -> 0 | P14: =O14 -> 0 | R14: =Q14 -> 0
B15: Distance to the adjacent ramp terminal (Lrmp), mi: | H15: =G15 -> 0 | J15: =I15 -> 0 | L15: =K15 -> 0 | N15: =M15 -> 0 | P15: =O15 -> 0 | R15: =Q15 -> 0
B16: Traffic Control
B17: Left-Turn Operational Mode
B18: Crossroad | C18: Inside approach | D18: Protected-only mode (Ip,lt,in)?: | H18: =G18 -> 0 | J18: =I18 -> 0 | L18: =K18 -> 0 | N18: =M18 -> 0 | P18: =O18 -> 0 | R18: =Q18 -> 0
C19: Outside approach | D19: Protected-only mode (Ip,lt,out)?: | H19: =G19 -> 0 | J19: =I19 -> 0 | L19: =K19 -> 0 | N19: =M19 -> 0 | P19: =O19 -> 0 | R19: =Q19 -> 0
B20: Right-Turn Control Type
B21: Ramp | C21: Exit ramp approach | D21: Right-turn control type: | H21: =G21 -> 0 | J21: =I21 -> 0 | L21: =K21 -> 0 | N21: =M21 -> 0 | P21: =O21 -> 0 | R21: =Q21 -> 0
B22: Cross Section Data
B23: Crossroad median width (Wm), ft: | H23: =G23 -> 0 | J23: =I23 -> 0 | L23: =K23 -> 0 | N23: =M23 -> 0 | P23: =O23 -> 0 | R23: =Q23 -> 0
B24: Number of Lanes
B25: Crossroad | C25: Both approaches | D25: Lanes serving through vehicles (nth): | H25: =G25 -> 0 | J25: =I25 -> 0 | L25: =K25 -> 0 | N25: =M25 -> 0 | P25: =O25 -> 0 | R25: =Q25 -> 0
C26: Inside approach | D26: Lanes serving through vehicles (nth,in): | H26: =G26 -> 0 | J26: =I26 -> 0 | L26: =K26 -> 0 | N26: =M26 -> 0 | P26: =O26 -> 0 | R26: =Q26 -> 0
C27: Outside approach | D27: Lanes serving through vehicles (nth,out): | G27: =G25-G26 -> 0 | H27: =H25-H26 -> 0 | I27: =I25-I26 -> 0 | J27: 0 | K27: 0 | L27: 0 | M27: 0 | N27: 0 | O27: 0 | P27: 0 | Q27: 0 | R27: 0
B28: Ramp | C28: Exit ramp approach | D28: All lanes (nex): | H28: =G28 -> 0 | J28: =I28 -> 0 | L28: =K28 -> 0 | N28: =M28 -> 0 | P28: =O28 -> 0 | R28: =Q28 -> 0
B29: Right-Turn Channelization | E29: see note:
B30: Crossroad | C30: Inside approach | D30: Channelization present (Ich,in)?: | H30: =G30 -> 0 | J30: =I30 -> 0 | L30: =K30 -> 0 | N30: =M30 -> 0 | P30: =O30 -> 0 | R30: =Q30 -> 0
C31: Outside approach | D31: Channelization present (Ich,out)?: | H31: =G31 -> 0 | J31: =I31 -> 0 | L31: =K31 -> 0 | N31: =M31 -> 0 | P31: =O31 -> 0 | R31: =Q31 -> 0
B32: Ramp | C32: Exit ramp approach | D32: Channelization present (Ich,ex)?: | H32: =G32 -> 0 | J32: =I32 -> 0 | L32: =K32 -> 0 | N32: =M32 -> 0 | P32: =O32 -> 0 | R32: =Q32 -> 0
B33: Left-Turn Lane or Bay
B34: Crossroad | C34: Inside approach | D34: Lane or bay present (Ibay,lt,in)?: | H34: =G34 -> 0 | J34: =I34 -> 0 | L34: =K34 -> 0 | N34: =M34 -> 0 | P34: =O34 -> 0 | R34: =Q34 -> 0
D35: Width of lane or bay (Wb,in), ft: | H35: =G35 -> 0 | J35: =I35 -> 0 | L35: =K35 -> 0 | N35: =M35 -> 0 | P35: =O35 -> 0 | R35: =Q35 -> 0
C36: Outside approach | D36: Lane or bay present (Ibay,lt,out)?: | H36: =G36 -> 0 | J36: =I36 -> 0 | L36: =K36 -> 0 | N36: =M36 -> 0 | P36: =O36 -> 0 | R36: =Q36 -> 0
D37: Width of lane or bay (Wb,out), ft: | H37: =G37 -> 0 | J37: =I37 -> 0 | L37: =K37 -> 0 | N37: =M37 -> 0 | P37: =O37 -> 0 | R37: =Q37 -> 0
B38: Right-Turn Lane or Bay
B39: Crossroad | C39: Inside approach | D39: Lane or bay present (Ibay,rt,in)?: | H39: =G39 -> 0 | J39: =I39 -> 0 | L39: =K39 -> 0 | N39: =M39 -> 0 | P39: =O39 -> 0 | R39: =Q39 -> 0
C40: Outside approach | D40: Lane or bay present (Ibay,rt,out)?: | H40: =G40 -> 0 | J40: =I40 -> 0 | L40: =K40 -> 0 | N40: =M40 -> 0 | P40: =O40 -> 0 | R40: =Q40 -> 0
B41: Access Data
B42: Number of driveways on the outside crossroad leg (ndw): | H42: =G42 -> 0 | J42: =I42 -> 0 | L42: =K42 -> 0 | N42: =M42 -> 0 | P42: =O42 -> 0 | R42: =Q42 -> 0
B43: Number of public street approaches on the outside crossroad leg (nps): | H43: =G43 -> 0 | J43: =I43 -> 0 | L43: =K43 -> 0 | N43: =M43 -> 0 | P43: =O43 -> 0 | R43: =Q43 -> 0
B44: Traffic Data | F44: Year
B45: Inside Crossroad Leg Data | F45: =Main!AK5 -> 2010
B46: Average daily traffic (AADTin) by year, veh/d: | F46: =F45+1 -> 2011
B47: (enter data only for those years for which | F47: =F46+1 -> 2012
B48: it is available, leave other years blank) | F48: 2013
F49: 2014
F50: 2015
F51: 2016
F52: 2017
F53: 2018
F54: 2019
F55: 2020
F56: 2021
F57: 2022
F58: 2023
F59: 2024
F60: 2025
F61: 2026
F62: 2027
F63: 2028
F64: 2029
F65: 2030
F66: 2031
F67: 2032
F68: 2033
B69: Outside Crossroad Leg Data | F69: =F45 -> 2010
B70: Average daily traffic (AADTout) by year, veh/d: | F70: =F69+1 -> 2011
B71: (enter data only for those years for which | F71: =F70+1 -> 2012
B72: it is available, leave other years blank) | F72: 2013
F73: 2014
F74: 2015
F75: 2016
F76: 2017
F77: 2018
F78: 2019
F79: 2020
F80: 2021
F81: 2022
F82: 2023
F83: 2024
F84: 2025
F85: 2026
F86: 2027
F87: 2028
F88: 2029
F89: 2030
F90: 2031
F91: 2032
F92: 2033
B93: Exit Ramp Data | F93: =F69 -> 2010
B94: Average daily traffic (AADTex) by year, veh/d: | F94: =F93+1 -> 2011
B95: (enter data only for those years for which | F95: =F94+1 -> 2012
B96: it is available, leave other years blank) | F96: 2013
F97: 2014
B98: For a B4 terminal configuration, enter the AADT for the | F98: 2015
B99: diagonal exit ramp (not the loop exit ramp). | F99: 2016
F100: 2017
F101: 2018
F102: 2019
F103: 2020
F104: 2021
F105: 2022
F106: 2023
F107: 2024
F108: 2025
F109: 2026
F110: 2027
F111: 2028
F112: 2029
F113: 2030
F114: 2031
F115: 2032
F116: 2033
B117: Entrance Ramp Data | F117: =F93 -> 2010
B118: Average daily traffic (AADTen) by year, veh/d: | F118: =F117+1 -> 2011
B119: (enter data only for those years for which | F119: =F118+1 -> 2012
B120: it is available, leave other years blank) | F120: 2013
F121: 2014
B122: For an A4 terminal configuration, enter the AADT for the | F122: 2015
B123: diagonal entrance ramp (not the loop entrance ramp). | F123: 2016
F124: 2017
F125: 2018
F126: 2019
F127: 2020
F128: 2021
F129: 2022
F130: 2023
F131: 2024
F132: 2025
F133: 2026
F134: 2027
F135: 2028
F136: 2029
F137: 2030
F138: 2031
F139: 2032
F140: 2033
B141: Crash Data | E141: Year | F141: =IF(Main!$AK$15=TRUE, "Project Crashes", "") ->  | G141: Ramp Terminal Crashes -->
B142: Count of Fatal-and-Injury (FI) Crashes by Year
C143: (No,w,ac,at,fi) | E143: =Main!AK7 -> 2010
E144: =E143+1 -> 2011
E145: =E144+1 -> 2012
E146: =E145+1 -> 2013
E147: =E146+1 -> 2014
B148: Count of Property-Damage-Only (PDO) Crashes by Year
C149: (No,w,ac,at,pdo) | E149: =E143 -> 2010
E150: =E144 -> 2011
E151: =E145 -> 2012
E152: =E146 -> 2013
E153: =E147 -> 2014
B155: Advisory Messages
B180: Variable Limits
B181: =B24 -> Number of Lanes
C182: =C25 -> Both approaches | G182: =IF(AND(Main!$K$6= "Urban", G$10="Signal"),6, 4) -> 4 | H182: =IF(AND(Main!$K$6= "Urban", H$10="Signal"),6, 4) -> 4 | I182: =IF(AND(Main!$K$6= "Urban", I$10="Signal"),6, 4) -> 4 | J182: =IF(AND(Main!$K$6= "Urban", J$10="Signal"),6, 4) -> 4 | K182: =IF(AND(Main!$K$6= "Urban", K$10="Signal"),6, 4) -> 4 | L182: =IF(AND(Main!$K$6= "Urban", L$10="Signal"),6, 4) -> 4 | M182: =IF(AND(Main!$K$6= "Urban", M$10="Signal"),6, 4) -> 4 | N182: =IF(AND(Main!$K$6= "Urban", N$10="Signal"),6, 4) -> 4 | O182: =IF(AND(Main!$K$6= "Urban", O$10="Signal"),6, 4) -> 4 | P182: =IF(AND(Main!$K$6= "Urban", P$10="Signal"),6, 4) -> 4 | Q182: =IF(AND(Main!$K$6= "Urban", Q$10="Signal"),6, 4) -> 4 | R182: =IF(AND(Main!$K$6= "Urban", R$10="Signal"),6, 4) -> 4
C183: =B28 -> Ramp | G183: =IF(G$10="Signal",4, 2) -> 2 | H183: 2 | I183: 2 | J183: 2 | K183: 2 | L183: 2 | M183: 2 | N183: 2 | O183: 2 | P183: 2 | Q183: 2 | R183: 2

Sheet Output Summary
B3: Output Summary | N3: Evaluation Site Summary
B4: General Information | N4: General Information
B5: Project description: | D5: =Main!D5 -> Rural 4 Lane Freeway | N5: Project description: | P5: =D5 -> Rural 4 Lane Freeway
B6: Analyst: | D6: =Main!D6 -> KS | F6: Date: | G6: =Main!G6 -> 2016-10-29T23:04:08.490 | I6: Area type: | K6: =Main!K6 -> Rural | N6: Analyst: | P6: =D6 -> KS | R6: Date: | S6: =G6 -> 2016-10-29T23:04:08.490 | U6: Area type: | W6: =K6 -> Rural
B7: First year of analysis: | D7: =Main!D7 -> 2010 | N7: First year of analysis: | P7: =D7 -> 2010 | Q7: Total length of freeway segments for Study Period (mi): | V7: =SUM(P13:P32) -> 26.777
B8: Last year of analysis: | D8: =Main!D8 -> 2015 | N8: Last year of analysis: | P8: =D8 -> 2015
B9: Crash Data Description | N9: Site Description
B10: Freeway segments | D10: Segment crash data available? | H10: No | I10: First year of crash data: | N10: Freeway Segments
D11: Project-level crash data available? | H11: No | I11: Last year of crash data: | N11: Number | O11: Lanes | P11: Study Period | Q11: =IF(Main!$AC$14=TRUE, "Crash Period Description", "Study Period Description") -> Study Period Description | U11: =IF(Main!$AC$14=TRUE, "Study Period Description", "") -> 
B12: Ramp segments | D12: Segment crash data available? | H12: No | I12: First year of crash data: | P12: Length (mi)
D13: Project-level crash data available? | H13: No | I13: Last year of crash data: | N13: 1 | O13: ='Input Freeway Segments'!$G$8 -> 4 | P13: =IF(Main!$AC$14=FALSE, 'Input Freeway Segments'!$G$10, 'Input Freeway Segments'!$H$10) -> 0.525 | Q13: ='Input Freeway Segments'!$G$9 -> 0 | U13: =IF(Main!$AC$14=TRUE, 'Input Freeway Segments'!$H$9,"") -> 
B14: Ramp terminals | D14: Segment crash data available? | H14: No | I14: First year of crash data: | N14: =N13+1 -> 2 | O14: ='Input Freeway Segments'!$I$8 -> 4 | P14: =IF(Main!$AC$14=FALSE, 'Input Freeway Segments'!$I$10, 'Input Freeway Segments'!$J$10) -> 1.16 | Q14: ='Input Freeway Segments'!$I$9 -> 0 | U14: =IF(Main!$AC$14=TRUE, 'Input Freeway Segments'!$J$9, "") -> 
D15: Project-level crash data available? | H15: No | I15: Last year of crash data: | N15: =N14+1 -> 3 | O15: ='Input Freeway Segments'!$K$8 -> 4 | P15: =IF(Main!$AC$14=FALSE, 'Input Freeway Segments'!$K$10, 'Input Freeway Segments'!$L$10) -> 1.413 | Q15: ='Input Freeway Segments'!$K$9 -> 0 | U15: =IF(Main!$AC$14=TRUE, 'Input Freeway Segments'!$L$9, "") -> 
B16: Estimated Crash Statistics | N16: 4 | O16: ='Input Freeway Segments'!$M$8 -> 4 | P16: =IF(Main!$AC$14=FALSE, 'Input Freeway Segments'!$M$10, 'Input Freeway Segments'!$N$10) -> 0.103 | Q16: ='Input Freeway Segments'!$M$9 -> 0 | U16: =IF(Main!$AC$14=TRUE, 'Input Freeway Segments'!$N$9, "") -> 
B17: Crashes for Entire Facility | G17: Total | H17: K | I17: A | J17: B | K17: C | L17: PDO | N17: 5 | O17: ='Input Freeway Segments'!$O$8 -> 4 | P17: =IF(Main!$AC$14=FALSE, 'Input Freeway Segments'!$O$10, 'Input Freeway Segments'!$P$10) -> 1.045 | Q17: ='Input Freeway Segments'!$O$9 -> 0 | U17: =IF(Main!$AC$14=TRUE, 'Input Freeway Segments'!$P$9, "") -> 
B18: Estimated number of crashes during Study Period, crashes: | G18: 549.7056885 | H18: 8.233453751 | I18: 16.76635742 | J18: 72.64476013 | K18: 88.92527771 | L18: 363.1358032 | N18: 6 | O18: ='Input Freeway Segments'!$Q$8 -> 4 | P18: =IF(Main!$AC$14=FALSE, 'Input Freeway Segments'!$Q$10, 'Input Freeway Segments'!$R$10) -> 0.68 | Q18: ='Input Freeway Segments'!$Q$9 -> 0 | U18: =IF(Main!$AC$14=TRUE, 'Input Freeway Segments'!$R$9, "") -> 
B19: Estimated average crash freq. during Study Period, crashes/yr: | G19: 91.61761475 | H19: 1.372242332 | I19: 2.794392824 | J19: 12.10746002 | K19: 14.82087994 | L19: 60.5226326 | N19: 7 | O19: ='Input Freeway Segments'!$S$8 -> 4 | P19: =IF(Main!$AC$14=FALSE, 'Input Freeway Segments'!$S$10, 'Input Freeway Segments'!$T$10) -> 1.46 | Q19: ='Input Freeway Segments'!$S$9 -> 0 | U19: =IF(Main!$AC$14=TRUE, 'Input Freeway Segments'!$T$9, "") -> 
B20: Crashes by Facility Component | F20: Nbr. Sites | G20: Total | H20: K | I20: A | J20: B | K20: C | L20: PDO | N20: 8 | O20: ='Input Freeway Segments'!$U$8 -> 4 | P20: =IF(Main!$AC$14=FALSE, 'Input Freeway Segments'!$U$10, 'Input Freeway Segments'!$V$10) -> 1.091 | Q20: ='Input Freeway Segments'!$U$9 -> 0 | U20: =IF(Main!$AC$14=TRUE, 'Input Freeway Segments'!$V$9, "") -> 
B21: Freeway segments, crashes: | F21: 20 | G21: 549.7056885 | H21: 8.233453751 | I21: 16.76635742 | J21: 72.64476013 | K21: 88.92527771 | L21: 363.1358032 | N21: 9 | O21: ='Input Freeway Segments'!$W$8 -> 4 | P21: =IF(Main!$AC$14=FALSE, 'Input Freeway Segments'!$W$10, 'Input Freeway Segments'!$X$10) -> 1.956 | Q21: ='Input Freeway Segments'!$W$9 -> 0 | U21: =IF(Main!$AC$14=TRUE, 'Input Freeway Segments'!$X$9, "") -> 
B22: Ramp segments, crashes: | F22: 0 | G22: 0 | H22: 0 | I22: 0 | J22: 0 | K22: 0 | L22: 0 | N22: 10 | O22: ='Input Freeway Segments'!$Y$8 -> 4 | P22: =IF(Main!$AC$14=FALSE, 'Input Freeway Segments'!$Y$10, 'Input Freeway Segments'!$Z$10) -> 1.636 | Q22: ='Input Freeway Segments'!$Y$9 -> 0 | U22: =IF(Main!$AC$14=TRUE, 'Input Freeway Segments'!$Z$9, "") -> 
B23: Crossroad ramp terminals, crashes: | F23: 0 | G23: 0 | H23: 0 | I23: 0 | J23: 0 | K23: 0 | L23: 0 | N23: 11 | O23: ='Input Freeway Segments'!$AA$8 -> 4 | P23: =IF(Main!$AC$14=FALSE, 'Input Freeway Segments'!$AA$10, 'Input Freeway Segments'!$AB$10) -> 1.47 | Q23: ='Input Freeway Segments'!$AA$9 -> 0 | U23: =IF(Main!$AC$14=TRUE, 'Input Freeway Segments'!$AB$9, "") -> 
B24: Crashes for Entire Facility by Year | F24: Year | G24: Total | H24: K | I24: A | J24: B | K24: C | L24: PDO | N24: 12 | O24: ='Input Freeway Segments'!$AC$8 -> 4 | P24: =IF(Main!$AC$14=FALSE, 'Input Freeway Segments'!$AC$10, 'Input Freeway Segments'!$AD$10) -> 1.513 | Q24: ='Input Freeway Segments'!$AC$9 -> 0 | U24: =IF(Main!$AC$14=TRUE, 'Input Freeway Segments'!$AD$9, "") -> 
B25: Estimated number of crashes during | F25: =Main!D7 -> 2010 | G25: 86.56660461 | H25: 1.304646492 | I25: 2.656742573 | J25: 11.51105404 | K25: 14.09080982 | L25: 57.0033493 | N25: 13 | O25: ='Input Freeway Segments'!$AE$8 -> 4 | P25: =IF(Main!$AC$14=FALSE, 'Input Freeway Segments'!$AE$10, 'Input Freeway Segments'!$AF$10) -> 1.236 | Q25: ='Input Freeway Segments'!$AE$9 -> 0 | U25: =IF(Main!$AC$14=TRUE, 'Input Freeway Segments'!$AF$9, "") -> 
B26: the Study Period, crashes: | F26: =F25+1 -> 2011 | G26: 89.64807129 | H26: 1.34454298 | I26: 2.737986803 | J26: 11.86306572 | K26: 14.52171326 | L26: 59.18076324 | N26: 14 | O26: ='Input Freeway Segments'!$AG$8 -> 4 | P26: =IF(Main!$AC$14=FALSE, 'Input Freeway Segments'!$AG$10, 'Input Freeway Segments'!$AH$10) -> 1.674 | Q26: ='Input Freeway Segments'!$AG$9 -> 0 | U26: =IF(Main!$AC$14=TRUE, 'Input Freeway Segments'!$AH$9, "") -> 
F27: =F26+1 -> 2012 | G27: 91.92621613 | H27: 1.376864314 | I27: 2.803804636 | J27: 12.14823914 | K27: 14.87079906 | L27: 60.72650909 | N27: 15 | O27: ='Input Freeway Segments'!$AI$8 -> 4 | P27: =IF(Main!$AC$14=FALSE, 'Input Freeway Segments'!$AI$10, 'Input Freeway Segments'!$AJ$10) -> 1.459 | Q27: ='Input Freeway Segments'!$AI$9 -> 0 | U27: =IF(Main!$AC$14=TRUE, 'Input Freeway Segments'!$AJ$9, "") -> 
F28: 2013 | G28: 91.92621613 | H28: 1.376864314 | I28: 2.803804636 | J28: 12.14823914 | K28: 14.87079906 | L28: 60.72650909 | N28: 16 | O28: ='Input Freeway Segments'!$AK$8 -> 4 | P28: =IF(Main!$AC$14=FALSE, 'Input Freeway Segments'!$AK$10, 'Input Freeway Segments'!$AL$10) -> 1.84 | Q28: ='Input Freeway Segments'!$AK$9 -> 0 | U28: =IF(Main!$AC$14=TRUE, 'Input Freeway Segments'!$AL$9, "") -> 
F29: 2014 | G29: 93.85169983 | H29: 1.402494431 | I29: 2.855997324 | J29: 12.37437725 | K29: 15.14761734 | L29: 62.07121277 | N29: 17 | O29: ='Input Freeway Segments'!$AM$8 -> 4 | P29: =IF(Main!$AC$14=FALSE, 'Input Freeway Segments'!$AM$10, 'Input Freeway Segments'!$AN$10) -> 2.315 | Q29: ='Input Freeway Segments'!$AM$9 -> 0 | U29: =IF(Main!$AC$14=TRUE, 'Input Freeway Segments'!$AN$9, "") -> 
F30: 2015 | G30: 95.78688812 | H30: 1.428041816 | I30: 2.908021212 | J30: 12.5997858 | K30: 15.42354107 | L30: 63.42749786 | N30: 18 | O30: ='Input Freeway Segments'!$AO$8 -> 4 | P30: =IF(Main!$AC$14=FALSE, 'Input Freeway Segments'!$AO$10, 'Input Freeway Segments'!$AP$10) -> 1.229 | Q30: ='Input Freeway Segments'!$AO$9 -> 0 | U30: =IF(Main!$AC$14=TRUE, 'Input Freeway Segments'!$AP$9, "") -> 
F31: 2016 | N31: 19 | O31: ='Input Freeway Segments'!$AQ$8 -> 4 | P31: =IF(Main!$AC$14=FALSE, 'Input Freeway Segments'!$AQ$10, 'Input Freeway Segments'!$AR$10) -> 1.205 | Q31: ='Input Freeway Segments'!$AQ$9 -> 0 | U31: =IF(Main!$AC$14=TRUE, 'Input Freeway Segments'!$AR$9, "") -> 
F32: 2017 | N32: 20 | O32: ='Input Freeway Segments'!$AS$8 -> 4 | P32: =IF(Main!$AC$14=FALSE, 'Input Freeway Segments'!$AS$10, 'Input Freeway Segments'!$AT$10) -> 1.767 | Q32: ='Input Freeway Segments'!$AS$9 -> 0 | U32: =IF(Main!$AC$14=TRUE, 'Input Freeway Segments'!$AT$9, "") -> 
F33: 2018 | N33: Ramp Segments
F34: 2019 | N34: Number | O34: =IF(Main!$AG$14=TRUE, "Crash Period", "Study Period") -> Study Period | Q34: =IF(Main!$AG$14=TRUE, "Study Period", "") ->  | S34: Number | T34: =IF(Main!$AG$14=TRUE, "Crash Period", "Study Period") -> Study Period | V34: =IF(Main!$AG$14=TRUE, "Study Period", "") -> 
F35: 2020 | O35: Description | Q35: =IF(Main!$AG$14=TRUE, "Description", "") ->  | T35: Description | V35: =IF(Main!$AG$14=TRUE, "Description", "") -> 
F36: 2021 | N36: 1 | O36: ='Input Ramp Segments'!$G$9 -> 0 | Q36: =IF(Main!$AG$14=TRUE,'Input Ramp Segments'!$H$9,"") ->  | S36: 21 | T36: ='Input Ramp Segments'!$AU$9 -> 0 | V36: =IF(Main!$AG$14=TRUE, 'Input Ramp Segments'!$AV$9, "") -> 
F37: 2022 | N37: =N36+1 -> 2 | O37: ='Input Ramp Segments'!$I$9 -> 0 | Q37: =IF(Main!$AG$14=TRUE, 'Input Ramp Segments'!$J$9,"") ->  | S37: =S36+1 -> 22 | T37: ='Input Ramp Segments'!$AW$9 -> 0 | V37: =IF(Main!$AG$14=TRUE, 'Input Ramp Segments'!$AX$9, "") -> 
F38: 2023 | N38: =N37+1 -> 3 | O38: ='Input Ramp Segments'!$K$9 -> 0 | Q38: =IF(Main!$AG$14=TRUE, 'Input Ramp Segments'!$L$9,"") ->  | S38: =S37+1 -> 23 | T38: ='Input Ramp Segments'!$AY$9 -> 0 | V38: =IF(Main!$AG$14=TRUE, 'Input Ramp Segments'!$AZ$9, "") -> 
F39: 2024 | N39: 4 | O39: ='Input Ramp Segments'!$M$9 -> 0 | Q39: =IF(Main!$AG$14=TRUE, 'Input Ramp Segments'!$N$9,"") ->  | S39: 24 | T39: ='Input Ramp Segments'!$BA$9 -> 0 | V39: =IF(Main!$AG$14=TRUE, 'Input Ramp Segments'!$BB$9, "") -> 
F40: 2025 | N40: 5 | O40: ='Input Ramp Segments'!$O$9 -> 0 | Q40: =IF(Main!$AG$14=TRUE, 'Input Ramp Segments'!$P$9,"") ->  | S40: 25 | T40: ='Input Ramp Segments'!$BC$9 -> 0 | V40: =IF(Main!$AG$14=TRUE, 'Input Ramp Segments'!$BD$9, "") -> 
F41: 2026 | N41: 6 | O41: ='Input Ramp Segments'!$Q$9 -> 0 | Q41: =IF(Main!$AG$14=TRUE, 'Input Ramp Segments'!$R$9, "") ->  | S41: 26 | T41: ='Input Ramp Segments'!$BE$9 -> 0 | V41: =IF(Main!$AG$14=TRUE, 'Input Ramp Segments'!$BF$9, "") -> 
F42: 2027 | N42: 7 | O42: ='Input Ramp Segments'!$S$9 -> 0 | Q42: =IF(Main!$AG$14=TRUE, 'Input Ramp Segments'!$T$9, "") ->  | S42: 27 | T42: ='Input Ramp Segments'!$BG$9 -> 0 | V42: =IF(Main!$AG$14=TRUE, 'Input Ramp Segments'!$BH$9, "") -> 
F43: 2028 | N43: 8 | O43: ='Input Ramp Segments'!$U$9 -> 0 | Q43: =IF(Main!$AG$14=TRUE, 'Input Ramp Segments'!$V$9, "") ->  | S43: 28 | T43: ='Input Ramp Segments'!$BI$9 -> 0 | V43: =IF(Main!$AG$14=TRUE, 'Input Ramp Segments'!$BJ$9, "") -> 
F44: 2029 | N44: 9 | O44: ='Input Ramp Segments'!$W$9 -> 0 | Q44: =IF(Main!$AG$14=TRUE, 'Input Ramp Segments'!$X$9, "") ->  | S44: 29 | T44: ='Input Ramp Segments'!$BK$9 -> 0 | V44: =IF(Main!$AG$14=TRUE, 'Input Ramp Segments'!$BL$9, "") -> 
F45: 2030 | N45: 10 | O45: ='Input Ramp Segments'!$Y$9 -> 0 | Q45: =IF(Main!$AG$14=TRUE, 'Input Ramp Segments'!$Z$9, "") ->  | S45: 30 | T45: ='Input Ramp Segments'!$BM$9 -> 0 | V45: =IF(Main!$AG$14=TRUE, 'Input Ramp Segments'!$BN$9, "") -> 
F46: 2031 | N46: 11 | O46: ='Input Ramp Segments'!$AA$9 -> 0 | Q46: =IF(Main!$AG$14=TRUE, 'Input Ramp Segments'!$AB$9, "") ->  | S46: 31 | T46: ='Input Ramp Segments'!$BO$9 -> 0 | V46: =IF(Main!$AG$14=TRUE, 'Input Ramp Segments'!$BP$9, "") -> 
F47: 2032 | N47: 12 | O47: ='Input Ramp Segments'!$AC$9 -> 0 | Q47: =IF(Main!$AG$14=TRUE, 'Input Ramp Segments'!$AD$9, "") ->  | S47: 32 | T47: ='Input Ramp Segments'!$BQ$9 -> 0 | V47: =IF(Main!$AG$14=TRUE, 'Input Ramp Segments'!$BR$9, "") -> 
F48: 2033 | N48: 13 | O48: ='Input Ramp Segments'!$AE$9 -> 0 | Q48: =IF(Main!$AG$14=TRUE, 'Input Ramp Segments'!$AF$9, "") ->  | S48: 33 | T48: ='Input Ramp Segments'!$BS$9 -> 0 | V48: =IF(Main!$AG$14=TRUE, 'Input Ramp Segments'!$BT$9, "") -> 
B49: Distribution of Crashes for Entire Facility | N49: 14 | O49: ='Input Ramp Segments'!$AG$9 -> 0 | Q49: =IF(Main!$AG$14=TRUE, 'Input Ramp Segments'!$AH$9, "") ->  | S49: 34 | T49: ='Input Ramp Segments'!$BU$9 -> 0 | V49: =IF(Main!$AG$14=TRUE, 'Input Ramp Segments'!$BV$9, "") -> 
B50: Crash Type | D50: Crash Type Category | G50: Estimated Number of Crashes During the Study Period | N50: 15 | O50: ='Input Ramp Segments'!$AI$9 -> 0 | Q50: =IF(Main!$AG$14=TRUE, 'Input Ramp Segments'!$AJ$9, "") ->  | S50: 35 | T50: ='Input Ramp Segments'!$BW$9 -> 0 | V50: =IF(Main!$AG$14=TRUE, 'Input Ramp Segments'!$BX$9, "") -> 
G51: Total | H51: K | I51: A | J51: B | K51: C | L51: PDO | N51: 16 | O51: ='Input Ramp Segments'!$AK$9 -> 0 | Q51: =IF(Main!$AG$14=TRUE, 'Input Ramp Segments'!$AL$9, "") ->  | S51: 36 | T51: ='Input Ramp Segments'!$BY$9 -> 0 | V51: =IF(Main!$AG$14=TRUE, 'Input Ramp Segments'!$BZ$9, "") -> 
B52: Multiple vehicle | D52: Head-on crashes: | G52: 1.1472857 | H52: 0.03613682836 | I52: 0.07343041152 | J52: 0.321216464 | K52: 0.400447458 | L52: 0.3160542548 | N52: 17 | O52: ='Input Ramp Segments'!$AM$9 -> 0 | Q52: =IF(Main!$AG$14=TRUE, 'Input Ramp Segments'!$AN$9, "") ->  | S52: 37 | T52: ='Input Ramp Segments'!$CA$9 -> 0 | V52: =IF(Main!$AG$14=TRUE, 'Input Ramp Segments'!$CB$9, "") -> 
D53: Right-angle crashes: | G53: 4.956460953 | H53: 0.1124257073 | I53: 0.2284501493 | J53: 0.9993402362 | K53: 1.245837212 | L53: 2.37040782 | N53: 18 | O53: ='Input Ramp Segments'!$AO$9 -> 0 | Q53: =IF(Main!$AG$14=TRUE, 'Input Ramp Segments'!$AP$9, "") ->  | S53: 38 | T53: ='Input Ramp Segments'!$CC$9 -> 0 | V53: =IF(Main!$AG$14=TRUE, 'Input Ramp Segments'!$CD$9, "") -> 
D54: Rear-end crashes: | G54: 69.23200226 | H54: 1.264789343 | I54: 2.570065022 | J54: 11.24257755 | K54: 14.01566792 | L54: 40.13889313 | N54: 19 | O54: ='Input Ramp Segments'!$AQ$9 -> 0 | Q54: =IF(Main!$AG$14=TRUE, 'Input Ramp Segments'!$AR$9, "") ->  | S54: 39 | T54: ='Input Ramp Segments'!$CE$9 -> 0 | V54: =IF(Main!$AG$14=TRUE, 'Input Ramp Segments'!$CF$9, "") -> 
D55: Sideswipe crashes: | G55: 40.96970749 | H55: 0.4758016169 | I55: 0.9668337107 | J55: 4.22935009 | K55: 5.27256155 | L55: 30.02516174 | N55: 20 | O55: ='Input Ramp Segments'!$AS$9 -> 0 | Q55: =IF(Main!$AG$14=TRUE, 'Input Ramp Segments'!$AT$9, "") ->  | S55: 40 | T55: ='Input Ramp Segments'!$CG$9 -> 0 | V55: =IF(Main!$AG$14=TRUE, 'Input Ramp Segments'!$CH$9, "") -> 
D56: Other multiple-vehicle crashes: | G56: 8.887651443 | H56: 0.1184484884 | I56: 0.2406885326 | J56: 1.052876115 | K56: 1.312578201 | L56: 6.163058758 | N56: Crossroad Ramp Terminals
D57: Total multiple-vehicle crashes: | G57: 125.1931076 | H57: 2.007601976 | I57: 4.079467773 | J57: 17.8453598 | K57: 22.2470932 | L57: 79.01357269 | N57: Number | O57: Config. | P57: Control | Q57: =IF(Main!$AK$14=TRUE, "Crash Period Description", "Study Period Description") -> Study Period Description | U57: =IF(Main!$AK$14=TRUE, "Study Period Description", "") -> 
B58: Single vehicle | D58: Crashes with animal: | G58: 19.87185669 | H58: 0.06225851178 | I58: 0.1268688887 | J58: 0.5479940772 | K58: 0.6667817235 | L58: 18.46795273
D59: Crashes with fixed object: | G59: 257.1777344 | H59: 3.530058861 | I59: 7.193465233 | J59: 31.07126236 | K59: 37.80652618 | L59: 177.5764313 | N59: 1 | O59: ='Input Ramp Terminals'!$G$8 -> 0 | P59: ='Input Ramp Terminals'!$G$10 -> 0 | Q59: ='Input Ramp Terminals'!$G$9 -> 0 | U59: =IF(Main!$AK$14=TRUE, 'Input Ramp Terminals'!$H$9, "") -> 
D60: Crashes with other object: | G60: 39.86738205 | H60: 0.1930014491 | I60: 0.3932934999 | J60: 1.698781013 | K60: 2.067023516 | L60: 35.51528168 | N60: =N59+1 -> 2 | O60: ='Input Ramp Terminals'!$I$8 -> 0 | P60: ='Input Ramp Terminals'!$I$10 -> 0 | Q60: ='Input Ramp Terminals'!$I$9 -> 0 | U60: =IF(Main!$AK$14=TRUE, 'Input Ramp Terminals'!$J$9, "") -> 
D61: Crashes with parked vehicle: | G61: 9.90418148 | H61: 0.1494204551 | I61: 0.3044852912 | J61: 1.315185905 | K61: 1.600276351 | L61: 6.53481245 | N61: =N60+1 -> 3 | O61: ='Input Ramp Terminals'!$K$8 -> 0 | P61: ='Input Ramp Terminals'!$K$10 -> 0 | Q61: ='Input Ramp Terminals'!$K$9 -> 0 | U61: =IF(Main!$AK$14=TRUE, 'Input Ramp Terminals'!$L$9, "") -> 
D62: Other single-vehicle crashes | G62: 97.69145203 | H62: 2.291113615 | I62: 4.668775558 | J62: 20.16617012 | K62: 24.53757095 | L62: 46.02780533 | N62: =N61+1 -> 4 | O62: ='Input Ramp Terminals'!$M$8 -> 0 | P62: ='Input Ramp Terminals'!$M$10 -> 0 | Q62: ='Input Ramp Terminals'!$M$9 -> 0 | U62: =IF(Main!$AK$14=TRUE, 'Input Ramp Terminals'!$N$9,"") -> 
D63: Total single-vehicle crashes: | G63: 424.5125732 | H63: 6.225852966 | I63: 12.68688774 | J63: 54.7993927 | K63: 66.67817688 | L63: 284.1222839 | N63: =N62+1 -> 5 | O63: ='Input Ramp Terminals'!$O$8 -> 0 | P63: ='Input Ramp Terminals'!$O$10 -> 0 | Q63: ='Input Ramp Terminals'!$O$9 -> 0 | U63: =IF(Main!$AK$14=TRUE, 'Input Ramp Terminals'!$P$9, "") -> 
E64: Total crashes: | G64: 549.7056885 | H64: 8.233453751 | I64: 16.76635742 | J64: 72.64476013 | K64: 88.92527771 | L64: 363.1358032 | N64: =N63+1 -> 6 | O64: ='Input Ramp Terminals'!$Q$8 -> 0 | P64: ='Input Ramp Terminals'!$Q$10 -> 0 | Q64: ='Input Ramp Terminals'!$Q$9 -> 0 | U64: =IF(Main!$AK$14=TRUE, 'Input Ramp Terminals'!$R$9, "") -> 

Sheet Output Freeway Segments
E3: Output Worksheet for Freeway Segments
B4: MV = multiple-vehicle model | C4: ENR = ramp entrance model | G4: ="Segment "& TEXT(INT((COLUMN()-5)/2),"0") -> Segment 1 | I4: ="Segment "& TEXT(INT((COLUMN()-5)/2),"0") -> Segment 2 | K4: ="Segment "& TEXT(INT((COLUMN()-5)/2),"0") -> Segment 3 | M4: ="Segment "& TEXT(INT((COLUMN()-5)/2),"0") -> Segment 4 | O4: ="Segment "& TEXT(INT((COLUMN()-5)/2),"0") -> Segment 5 | Q4: ="Segment "& TEXT(INT((COLUMN()-5)/2),"0") -> Segment 6 | S4: ="Segment "& TEXT(INT((COLUMN()-5)/2),"0") -> Segment 7 | U4: ="Segment "& TEXT(INT((COLUMN()-5)/2),"0") -> Segment 8 | W4: ="Segment "& TEXT(INT((COLUMN()-5)/2),"0") -> Segment 9 | Y4: ="Segment "& TEXT(INT((COLUMN()-5)/2),"0") -> Segment 10 | AA4: ="Segment "& TEXT(INT((COLUMN()-5)/2),"0") -> Segment 11 | AC4: ="Segment "& TEXT(INT((COLUMN()-5)/2),"0") -> Segment 12 | AE4: ="Segment "& TEXT(INT((COLUMN()-5)/2),"0") -> Segment 13 | AG4: ="Segment "& TEXT(INT((COLUMN()-5)/2),"0") -> Segment 14 | AI4: ="Segment "& TEXT(INT((COLUMN()-5)/2),"0") -> Segment 15 | AK4: ="Segment "& TEXT(INT((COLUMN()-5)/2),"0") -> Segment 16 | AM4: ="Segment "& TEXT(INT((COLUMN()-5)/2),"0") -> Segment 17 | AO4: ="Segment "& TEXT(INT((COLUMN()-5)/2),"0") -> Segment 18 | AQ4: ="Segment "& TEXT(INT((COLUMN()-5)/2),"0") -> Segment 19 | AS4: ="Segment "& TEXT(INT((COLUMN()-5)/2),"0") -> Segment 20
B5: SV = single-vehicle model | C5: EXR = ramp exit model | G5: =IF(Main!$AC$14=TRUE, "Crash Period", "Study Period") -> Study Period | H5: =IF(Main!$AC$14=TRUE, "Study Period", "") ->  | I5: =G5 -> Study Period | K5: Study Period | M5: Study Period | O5: Study Period | Q5: Study Period | S5: Study Period | U5: Study Period | W5: Study Period | Y5: Study Period | AA5: Study Period | AC5: Study Period | AE5: Study Period | AG5: Study Period | AI5: Study Period | AK5: Study Period | AM5: Study Period | AO5: Study Period | AQ5: Study Period | AS5: Study Period
C6: Applicable Models (y)
B7: Crash Modification Factors
B8: Fatal-and-Injury Crash CMFs
B9: Horizontal curve (CMF1,w,ac,y,fi): | C9: MV | E9: ENR | F9: EXR | G9: 1 | I9: 1.001602888 | K9: 1 | M9: 1 | O9: 1.007980585 | Q9: 1 | S9: 1 | U9: 1.002281666 | W9: 1.006139398 | Y9: 1 | AA9: 1.016627192 | AC9: 1 | AE9: 1.008820653 | AG9: 1.057158113 | AI9: 1 | AK9: 1.004482269 | AM9: 1.001101017 | AO9: 1.010755658 | AQ9: 1 | AS9: 1
D10: SV | G10: 1 | I10: 1.006700635 | K10: 1 | M10: 1 | O10: 1.033360481 | Q10: 1 | S10: 1 | U10: 1.009537935 | W10: 1.02566433 | Y10: 1 | AA10: 1.069505692 | AC10: 1 | AE10: 1.036872506 | AG10: 1.238934278 | AI10: 1 | AK10: 1.018737078 | AM10: 1.004602551 | AO10: 1.044960976 | AQ10: 1 | AS10: 1
B11: Lane width (CMF2,w,ac,y,fi): | C11: MV | D11: SV | E11: ENR | F11: EXR | G11: 1.038315773 | I11: 1 | K11: 1.038315773 | M11: 1.038315773 | O11: 1 | Q11: 1 | S11: 1 | U11: 1.038315773 | W11: 1.038315773 | Y11: 1.038315773 | AA11: 1.038315773 | AC11: 1.038315773 | AE11: 1 | AG11: 1 | AI11: 1 | AK11: 1.038315773 | AM11: 1.038315773 | AO11: 1.038315773 | AQ11: 1.038315773 | AS11: 1.038315773
B12: Outside shoulder width (CMF8,fs,ac,sv,fi): | D12: SV | G12: 0.8786224723 | I12: 1 | K12: 0.8786224723 | M12: 1.138145328 | O12: 1.578895926 | Q12: 1.138145328 | S12: 1.06683898 | U12: 1.081988692 | W12: 1.615945339 | Y12: 1.06683898 | AA12: 1.426643133 | AC12: 1.138145328 | AE12: 0.9243352413 | AG12: 1.55024302 | AI12: 1.138145328 | AK12: 1.560686111 | AM12: 1 | AO12: 1 | AQ12: 0.9373486042 | AS12: 1
B13: Inside shoulder width (CMF3,w,ac,y,fi): | C13: MV | D13: SV | E13: ENR | F13: EXR | G13: 1 | I13: 1.034998536 | K13: 0.9335133433 | M13: 1.071221948 | O13: 1.052954435 | Q13: 1.034998536 | S13: 1.034998536 | U13: 1.052954435 | W13: 1.071221948 | Y13: 1.071221948 | AA13: 1.052954435 | AC13: 1.034998536 | AE13: 1.052954435 | AG13: 1.052954435 | AI13: 0.9661849737 | AK13: 1.052954435 | AM13: 1.052954435 | AO13: 1.052954435 | AQ13: 1.052954435 | AS13: 1.052954435
B14: Median width (CMF4,w,ac,y,fi): | C14: MV | E14: ENR | F14: EXR | G14: 1.135115623 | I14: 1.043186545 | K14: 1.024454236 | M14: 0.9942184091 | O14: 1.040848851 | Q14: 1.145760775 | S14: 0.9910396338 | U14: 1.053604126 | W14: 1.11839056 | Y14: 1.030660629 | AA14: 0.9700840116 | AC14: 1.033369064 | AE14: 1.066295505 | AG14: 0.9917742014 | AI14: 1.146384478 | AK14: 0.9673752785 | AM14: 1.043557286 | AO14: 1.068457842 | AQ14: 1.045424938 | AS14: 1.040130615
D15: SV | G15: 0.9580987692 | I15: 0.9858214855 | K15: 0.9918732047 | M15: 1.001960278 | O15: 0.986568749 | Q15: 0.9550830126 | S15: 1.003044605 | U15: 0.9825184941 | W15: 0.962914288 | Y15: 0.9898518324 | AA15: 1.011611938 | AC15: 0.9901484251 | AE15: 0.9788938165 | AG15: 1.003425956 | AI15: 0.9549074769 | AK15: 1.011265635 | AM15: 0.9857031703 | AO15: 0.9778837562 | AQ15: 0.9851080775 | AS15: 0.9867987633
B16: Median barrier (CMF5,w,ac,y,fi): | C16: MV | D16: SV | E16: ENR | F16: EXR | G16: 1.044370174 | I16: 1.00773561 | K16: 1.006571531 | M16: 1.005262136 | O16: 1.007569671 | Q16: 1.093071461 | S16: 1.005152464 | U16: 1.008568048 | W16: 1.024215221 | Y16: 1.00691855 | AA16: 1.003867865 | AC16: 1.00944519 | AE16: 1.003285766 | AG16: 1.00393486 | AI16: 1.099431872 | AK16: 1.004451871 | AM16: 1.007762671 | AO16: 1.010098934 | AQ16: 1.007901192 | AS16: 1.00751996
B17: Shoulder rumble strip (CMF9,fs,ac,sv,fi): | D17: SV | G17: 0.8113952279 | I17: 0.9104127288 | K17: 0.8113952279 | M17: 0.8113952279 | O17: 0.8940564394 | Q17: 0.8113952279 | S17: 0.8113952279 | U17: 0.9171937108 | W17: 0.9233431816 | Y17: 0.8113952279 | AA17: 0.8571992517 | AC17: 0.8113952279 | AE17: 0.917447269 | AG17: 0.9838885665 | AI17: 0.8113952279 | AK17: 0.8796619773 | AM17: 0.9305869341 | AO17: 0.9653176069 | AQ17: 0.8113952279 | AS17: 0.8113952279
B18: Outside clearance (CMF10,fs,ac,sv,fi): | D18: SV | G18: 1.021619678 | I18: 1.001234055 | K18: 1.00906086 | M18: 1.084566116 | O18: 0.9733028412 | Q18: 1.002240777 | S18: 1.007825494 | U18: 1.025688887 | W18: 0.987991631 | Y18: 0.9955001473 | AA18: 0.9830625653 | AC18: 0.9931027293 | AE18: 1.011942863 | AG18: 0.9808644056 | AI18: 0.9995225668 | AK18: 0.9751021266 | AM18: 1.001545906 | AO18: 1.017253041 | AQ18: 1.008256555 | AS18: 1.000263214
B19: Outside barrier (CMF11,fs,ac,sv,fi): | D19: SV | G19: 1.021861672 | I19: 1.001930594 | K19: 1 | M19: 1.067692757 | O19: 1 | Q19: 1.015952229 | S19: 1.018358827 | U19: 1.044966698 | W19: 1.00265944 | Y19: 1 | AA19: 1.006712794 | AC19: 1.002960324 | AE19: 1.012230158 | AG19: 1.001083851 | AI19: 1.012087703 | AK19: 1.00216794 | AM19: 1.002418399 | AO19: 1.026991367 | AQ19: 1.006156206 | AS19: 1.000210643
B20: Lane change (CMF7,fs,ac,mv,fi): | C20: MV
E21: Year: | F21: =Main!AC5 -> 2010 | G21: 1 | I21: 1 | K21: 1 | M21: 1 | O21: 1 | Q21: 1 | S21: 1 | U21: 1 | W21: 1 | Y21: 1 | AA21: 1 | AC21: 1 | AE21: 1 | AG21: 1 | AI21: 1 | AK21: 1 | AM21: 1 | AO21: 1 | AQ21: 1 | AS21: 1
F22: =F21+1 -> 2011 | G22: 1 | I22: 1 | K22: 1 | M22: 1 | O22: 1 | Q22: 1 | S22: 1 | U22: 1 | W22: 1 | Y22: 1 | AA22: 1 | AC22: 1 | AE22: 1 | AG22: 1 | AI22: 1 | AK22: 1 | AM22: 1 | AO22: 1 | AQ22: 1 | AS22: 1
F23: =F22+1 -> 2012 | G23: 1 | I23: 1 | K23: 1 | M23: 1 | O23: 1 | Q23: 1 | S23: 1 | U23: 1 | W23: 1 | Y23: 1 | AA23: 1 | AC23: 1 | AE23: 1 | AG23: 1 | AI23: 1 | AK23: 1 | AM23: 1 | AO23: 1 | AQ23: 1 | AS23: 1
F24: 2013 | G24: 1 | I24: 1 | K24: 1 | M24: 1 | O24: 1 | Q24: 1 | S24: 1 | U24: 1 | W24: 1 | Y24: 1 | AA24: 1 | AC24: 1 | AE24: 1 | AG24: 1 | AI24: 1 | AK24: 1 | AM24: 1 | AO24: 1 | AQ24: 1 | AS24: 1
F25: 2014 | G25: 1 | I25: 1 | K25: 1 | M25: 1 | O25: 1 | Q25: 1 | S25: 1 | U25: 1 | W25: 1 | Y25: 1 | AA25: 1 | AC25: 1 | AE25: 1 | AG25: 1 | AI25: 1 | AK25: 1 | AM25: 1 | AO25: 1 | AQ25: 1 | AS25: 1
F26: 2015 | G26: 1 | I26: 1 | K26: 1 | M26: 1 | O26: 1 | Q26: 1 | S26: 1 | U26: 1 | W26: 1 | Y26: 1 | AA26: 1 | AC26: 1 | AE26: 1 | AG26: 1 | AI26: 1 | AK26: 1 | AM26: 1 | AO26: 1 | AQ26: 1 | AS26: 1
F27: 2016
F28: 2017
F29: 2018
F30: 2019
F31: 2020
F32: 2021
F33: 2022
F34: 2023
F35: 2024
F36: 2025
F37: 2026
F38: 2027
F39: 2028
F40: 2029
F41: 2030
F42: 2031
F43: 2032
F44: 2033
B45: Ramp entrance (CMF12,sc,nEN,at,fi): | E45: ENR
E46: Year: | F46: =F21 -> 2010 | G46: 1 | I46: 1 | K46: 1 | M46: 1 | O46: 1 | Q46: 1 | S46: 1 | U46: 1 | W46: 1 | Y46: 1 | AA46: 1 | AC46: 1 | AE46: 1 | AG46: 1 | AI46: 1 | AK46: 1 | AM46: 1 | AO46: 1 | AQ46: 1 | AS46: 1
F47: =F22 -> 2011 | G47: 1 | I47: 1 | K47: 1 | M47: 1 | O47: 1 | Q47: 1 | S47: 1 | U47: 1 | W47: 1 | Y47: 1 | AA47: 1 | AC47: 1 | AE47: 1 | AG47: 1 | AI47: 1 | AK47: 1 | AM47: 1 | AO47: 1 | AQ47: 1 | AS47: 1
F48: 2012 | G48: 1 | I48: 1 | K48: 1 | M48: 1 | O48: 1 | Q48: 1 | S48: 1 | U48: 1 | W48: 1 | Y48: 1 | AA48: 1 | AC48: 1 | AE48: 1 | AG48: 1 | AI48: 1 | AK48: 1 | AM48: 1 | AO48: 1 | AQ48: 1 | AS48: 1
F49: 2013 | G49: 1 | I49: 1 | K49: 1 | M49: 1 | O49: 1 | Q49: 1 | S49: 1 | U49: 1 | W49: 1 | Y49: 1 | AA49: 1 | AC49: 1 | AE49: 1 | AG49: 1 | AI49: 1 | AK49: 1 | AM49: 1 | AO49: 1 | AQ49: 1 | AS49: 1
F50: 2014 | G50: 1 | I50: 1 | K50: 1 | M50: 1 | O50: 1 | Q50: 1 | S50: 1 | U50: 1 | W50: 1 | Y50: 1 | AA50: 1 | AC50: 1 | AE50: 1 | AG50: 1 | AI50: 1 | AK50: 1 | AM50: 1 | AO50: 1 | AQ50: 1 | AS50: 1
F51: 2015 | G51: 1 | I51: 1 | K51: 1 | M51: 1 | O51: 1 | Q51: 1 | S51: 1 | U51: 1 | W51: 1 | Y51: 1 | AA51: 1 | AC51: 1 | AE51: 1 | AG51: 1 | AI51: 1 | AK51: 1 | AM51: 1 | AO51: 1 | AQ51: 1 | AS51: 1
F52: 2016
F53: 2017
F54: 2018
F55: 2019
F56: 2020
F57: 2021
F58: 2022
F59: 2023
F60: 2024
F61: 2025
F62: 2026
F63: 2027
F64: 2028
F65: 2029
F66: 2030
F67: 2031
F68: 2032
F69: =F44 -> 2033
B70: Ramp exit (CMF13,sc,nEX,at,fi): | F70: EXR | G70: 1 | I70: 1 | K70: 1 | M70: 1 | O70: 1 | Q70: 1 | S70: 1 | U70: 1 | W70: 1 | Y70: 1 | AA70: 1 | AC70: 1 | AE70: 1 | AG70: 1 | AI70: 1 | AK70: 1 | AM70: 1 | AO70: 1 | AQ70: 1 | AS70: 1
B71: High volume (CMF6,w,ac,y,fi): | C71: MV | E71: ENR | F71: EXR | G71: 1.06414938 | I71: 1 | K71: 1 | M71: 1 | O71: 1 | Q71: 1 | S71: 1 | U71: 1 | W71: 1 | Y71: 1 | AA71: 1 | AC71: 1 | AE71: 1 | AG71: 1 | AI71: 1 | AK71: 1 | AM71: 1 | AO71: 1 | AQ71: 1 | AS71: 1
D72: SV | G72: 0.9880805612 | I72: 1 | K72: 1 | M72: 1 | O72: 1 | Q72: 1 | S72: 1 | U72: 1 | W72: 1 | Y72: 1 | AA72: 1 | AC72: 1 | AE72: 1 | AG72: 1 | AI72: 1 | AK72: 1 | AM72: 1 | AO72: 1 | AQ72: 1 | AS72: 1
B73: Property-Damage-Only Crash CMFs
B74: Horizontal curve (CMF1,w,ac,y,pdo): | C74: MV | E74: ENR | F74: EXR | G74: 1 | I74: 1.003168583 | K74: 1 | M74: 1 | O74: 1.015775442 | Q74: 1 | S74: 1 | U74: 1.004510283 | W74: 1.012136102 | Y74: 1 | AA74: 1.032867789 | AC74: 1 | AE74: 1.017436266 | AG74: 1.112986922 | AI74: 1 | AK74: 1.00886035 | AM74: 1.002176404 | AO74: 1.021261096 | AQ74: 1 | AS74: 1
D75: SV | G75: 1 | I75: 1.005833983 | K75: 1 | M75: 1 | O75: 1.029045463 | Q75: 1 | S75: 1 | U75: 1.008304238 | W75: 1.022344708 | Y75: 1 | AA75: 1.060515404 | AC75: 1 | AE75: 1.032103181 | AG75: 1.208028913 | AI75: 1 | AK75: 1.016313434 | AM75: 1.00400722 | AO75: 1.03914535 | AQ75: 1 | AS75: 1
B76: Lane width (CMF2,w,ac,y,pdo): | C76: MV | D76: SV | E76: ENR | F76: EXR | G76: 1 | I76: 1 | K76: 1 | M76: 1 | O76: 1 | Q76: 1 | S76: 1 | U76: 1 | W76: 1 | Y76: 1 | AA76: 1 | AC76: 1 | AE76: 1 | AG76: 1 | AI76: 1 | AK76: 1 | AM76: 1 | AO76: 1 | AQ76: 1 | AS76: 1
B77: Outside shoulder width (CMF8,fs,ac,sv,pdo): | D77: SV | G77: 1 | I77: 1 | K77: 1 | M77: 1 | O77: 1.287216187 | Q77: 1 | S77: 1 | U77: 1.049155712 | W77: 1.388976216 | Y77: 1 | AA77: 1.126762033 | AC77: 1 | AE77: 0.9546963573 | AG77: 1.477373362 | AI77: 1 | AK77: 1.237200737 | AM77: 1 | AO77: 1 | AQ77: 1 | AS77: 1
B78: Inside shoulder width (CMF3,w,ac,y,pdo): | C78: MV | D78: SV | E78: ENR | F78: EXR | G78: 1 | I78: 1.031072974 | K78: 0.9406350851 | M78: 1.063111544 | O78: 1.046969652 | Q78: 1.031072974 | S78: 1.031072974 | U78: 1.046969652 | W78: 1.063111544 | Y78: 1.063111544 | AA78: 1.046969652 | AC78: 1.031072974 | AE78: 1.046969652 | AG78: 1.046969652 | AI78: 0.9698634148 | AK78: 1.046969652 | AM78: 1.046969652 | AO78: 1.046969652 | AQ78: 1.046969652 | AS78: 1.046969652
B79: Median width (CMF4,w,ac,y,pdo): | C79: MV | E79: ENR | F79: EXR | G79: 1.129887819 | I79: 1.041581273 | K79: 1.023553133 | M79: 0.9944283962 | O79: 1.039332151 | Q79: 1.140096188 | S79: 0.9913645983 | U79: 1.051602125 | W79: 1.113841891 | Y79: 1.029527545 | AA79: 0.9710609317 | AC79: 1.032039404 | AE79: 1.063776612 | AG79: 0.9920241833 | AI79: 1.140694261 | AK79: 0.968544662 | AM79: 1.041937947 | AO79: 1.065883994 | AQ79: 1.04373467 | AS79: 1.038640976
D80: SV | G80: 1.128939867 | I80: 1.041289687 | K80: 1.023389339 | M80: 0.9944665432 | O80: 1.03905654 | Q80: 1.139069319 | S80: 0.9914236665 | U80: 1.051238537 | W80: 1.113016844 | Y80: 1.029321671 | AA80: 0.9712394476 | AC80: 1.031798601 | AE80: 1.063319445 | AG80: 0.9920700192 | AI80: 1.139662743 | AK80: 0.9687574506 | AM80: 1.041643739 | AO80: 1.065416574 | AQ80: 1.043427706 | AS80: 1.038370371
B81: Median barrier (CMF5,w,ac,y,pdo): | C81: MV | D81: SV | E81: ENR | F81: EXR | G81: 1.057605505 | I81: 1.009990811 | K81: 1.008485794 | M81: 1.006793857 | O81: 1.009776115 | Q81: 1.121655703 | S81: 1.006651998 | U81: 1.011067152 | W81: 1.031348586 | Y81: 1.008934379 | AA81: 1.004995346 | AC81: 1.012218356 | AE81: 1.004242897 | AG81: 1.005081892 | AI81: 1.130082965 | AK81: 1.005746961 | AM81: 1.01002562 | AO81: 1.013047457 | AQ81: 1.010204792 | AS81: 1.009711862
B82: Shoulder rumble strip (CMF9,fs,ac,sv,pdo): | D82: SV | G82: 1 | I82: 1 | K82: 1 | M82: 1 | O82: 1 | Q82: 1 | S82: 1 | U82: 1 | W82: 1 | Y82: 1 | AA82: 1 | AC82: 1 | AE82: 1 | AG82: 1 | AI82: 1 | AK82: 1 | AM82: 1 | AO82: 1 | AQ82: 1 | AS82: 1
B83: Outside clearance (CMF10,fs,ac,sv,pdo): | D83: SV | G83: 1 | I83: 1 | K83: 1 | M83: 1 | O83: 1 | Q83: 1 | S83: 1 | U83: 1 | W83: 1 | Y83: 1 | AA83: 1 | AC83: 1 | AE83: 1 | AG83: 1 | AI83: 1 | AK83: 1 | AM83: 1 | AO83: 1 | AQ83: 1 | AS83: 1
B84: Outside barrier (CMF11,fs,ac,sv,pdo): | D84: SV | G84: 1.028757811 | I84: 1.002539635 | K84: 1 | M84: 1.088172793 | O84: 1 | Q84: 1.020984292 | S84: 1.024150014 | U84: 1.059151292 | W84: 1.003437519 | Y84: 1 | AA84: 1.008830309 | AC84: 1.003894091 | AE84: 1.016088128 | AG84: 1.001405001 | AI84: 1.015900731 | AK84: 1.002851844 | AM84: 1.003181338 | AO84: 1.035505652 | AQ84: 1.008098245 | AS84: 1.00027442
B85: Lane change (CMF7,fs,ac,mv,pdo): | C85: MV
E86: Year: | F86: =F21 -> 2010 | G86: 1 | I86: 1 | K86: 1 | M86: 1 | O86: 1 | Q86: 1 | S86: 1 | U86: 1 | W86: 1 | Y86: 1 | AA86: 1 | AC86: 1 | AE86: 1 | AG86: 1 | AI86: 1 | AK86: 1 | AM86: 1 | AO86: 1 | AQ86: 1 | AS86: 1
F87: =F86+1 -> 2011 | G87: 1 | I87: 1 | K87: 1 | M87: 1 | O87: 1 | Q87: 1 | S87: 1 | U87: 1 | W87: 1 | Y87: 1 | AA87: 1 | AC87: 1 | AE87: 1 | AG87: 1 | AI87: 1 | AK87: 1 | AM87: 1 | AO87: 1 | AQ87: 1 | AS87: 1
F88: =F87+1 -> 2012 | G88: 1 | I88: 1 | K88: 1 | M88: 1 | O88: 1 | Q88: 1 | S88: 1 | U88: 1 | W88: 1 | Y88: 1 | AA88: 1 | AC88: 1 | AE88: 1 | AG88: 1 | AI88: 1 | AK88: 1 | AM88: 1 | AO88: 1 | AQ88: 1 | AS88: 1
F89: 2013 | G89: 1 | I89: 1 | K89: 1 | M89: 1 | O89: 1 | Q89: 1 | S89: 1 | U89: 1 | W89: 1 | Y89: 1 | AA89: 1 | AC89: 1 | AE89: 1 | AG89: 1 | AI89: 1 | AK89: 1 | AM89: 1 | AO89: 1 | AQ89: 1 | AS89: 1
F90: 2014 | G90: 1 | I90: 1 | K90: 1 | M90: 1 | O90: 1 | Q90: 1 | S90: 1 | U90: 1 | W90: 1 | Y90: 1 | AA90: 1 | AC90: 1 | AE90: 1 | AG90: 1 | AI90: 1 | AK90: 1 | AM90: 1 | AO90: 1 | AQ90: 1 | AS90: 1
F91: 2015 | G91: 1 | I91: 1 | K91: 1 | M91: 1 | O91: 1 | Q91: 1 | S91: 1 | U91: 1 | W91: 1 | Y91: 1 | AA91: 1 | AC91: 1 | AE91: 1 | AG91: 1 | AI91: 1 | AK91: 1 | AM91: 1 | AO91: 1 | AQ91: 1 | AS91: 1
F92: 2016
F93: 2017
F94: 2018
F95: 2019
F96: 2020
F97: 2021
F98: 2022
F99: 2023
F100: 2024
F101: 2025
F102: 2026
F103: 2027
F104: 2028
F105: 2029
F106: 2030
F107: 2031
F108: 2032
F109: 2033
B110: Ramp entrance (CMF12,sc,nEN,at,pdo): | E110: ENR | G110: 1 | I110: 1 | K110: 1 | M110: 1 | O110: 1 | Q110: 1 | S110: 1 | U110: 1 | W110: 1 | Y110: 1 | AA110: 1 | AC110: 1 | AE110: 1 | AG110: 1 | AI110: 1 | AK110: 1 | AM110: 1 | AO110: 1 | AQ110: 1 | AS110: 1
B111: Ramp exit (CMF13,sc,nEX,at,pdo): | F111: EXR | G111: 1 | I111: 1 | K111: 1 | M111: 1 | O111: 1 | Q111: 1 | S111: 1 | U111: 1 | W111: 1 | Y111: 1 | AA111: 1 | AC111: 1 | AE111: 1 | AG111: 1 | AI111: 1 | AK111: 1 | AM111: 1 | AO111: 1 | AQ111: 1 | AS111: 1
B112: High volume (CMF6,w,ac,y,pdo): | C112: MV | E112: ENR | F112: EXR | G112: 1.051558733 | I112: 1 | K112: 1 | M112: 1 | O112: 1 | Q112: 1 | S112: 1 | U112: 1 | W112: 1 | Y112: 1 | AA112: 1 | AC112: 1 | AE112: 1 | AG112: 1 | AI112: 1 | AK112: 1 | AM112: 1 | AO112: 1 | AQ112: 1 | AS112: 1
D113: SV | G113: 0.8971419334 | I113: 1 | K113: 1 | M113: 1 | O113: 1 | Q113: 1 | S113: 1 | U113: 1 | W113: 1 | Y113: 1 | AA113: 1 | AC113: 1 | AE113: 1 | AG113: 1 | AI113: 1 | AK113: 1 | AM113: 1 | AO113: 1 | AQ113: 1 | AS113: 1
B114: =IF(Main!$AC$14=TRUE, "Expected Average Crash Frequency", "Predicted Average Crash Frequency") -> Predicted Average Crash Frequency
B115: Fatal-and-Injury Crash Frequency
B116: Freeway Segment Multiple-Vehicle Crash Analysis | F116: Year
B117: Overdispersion parameter (kfs,n,mv,fi):
B118: Observed crash count (N*o,fs,n,mv,fi), crashes:
B119: Reference year (r):
B120: Predicted average crash freq. for reference year (Np,fs,n,mv,fi,r), crashes/yr:
B121: Equivalent years associated with crash count (Cb,fs,n,mv,fi,r), yr:
B122: Expected average crash freq. for reference year given N*o (Ne,fs,n,mv,fi,r), crashes/yr:
B123: =IF(Main!$AC$14=TRUE, "Expected average crash frequency", "Predicted average crash frequency") -> Predicted average crash frequency | F123: =Main!$AC$5 -> 2010 | G123: 0.6168381572 | I123: 0.2201519608 | K123: 0.5178212523 | M123: 0.01492523775 | O123: 0.2391288728 | Q123: 0.1812101007 | S123: 0.5227584243 | U123: 0.08003854752 | W123: 0.2280707806 | Y123: 0.2728483677 | AA123: 0.03199408203 | AC123: 1.098526478 | AE123: 0.2663800418 | AG123: 0.03730688244 | AI123: 0.987328887 | AK123: 0.3723751605 | AM123: 0.4640482962 | AO123: 0.3253014684 | AQ123: 0.263265729 | AS123: 0.4162060022
B124: (Ne,fs,n,mv,fi), crashes/yr: | C124: (Np,fs,n,mv,fi), crashes/yr: | F124: =F123+1 -> 2011 | G124: 0.6717505455 | I124: 0.2201519608 | K124: 0.5178212523 | M124: 0.01492523775 | O124: 0.2581477761 | Q124: 0.1812101007 | S124: 0.4941361248 | U124: 0.08283152431 | W124: 0.2926274836 | Y124: 0.3004278839 | AA124: 0.02963693812 | AC124: 1.098526478 | AE124: 0.2887589633 | AG124: 0.03455832228 | AI124: 1.027405739 | AK124: 0.4036588669 | AM124: 0.5053589344 | AO124: 0.3498649001 | AQ124: 0.2853830159 | AS124: 0.4493085742
F125: =F124+1 -> 2012 | G125: 0.6532751322 | I125: 0.2598921061 | K125: 0.490472734 | M125: 0.01492523775 | O125: 0.2391288728 | Q125: 0.195622474 | S125: 0.5815728903 | U125: 0.08003854752 | W125: 0.3622761667 | Y125: 0.3004278839 | AA125: 0.03319476545 | AC125: 1.098526478 | AE125: 0.2887589633 | AG125: 0.04300775006 | AI125: 0.987328887 | AK125: 0.4036588669 | AM125: 0.5478147864 | AO125: 0.3498649001 | AQ125: 0.3080807328 | AS125: 0.4832358062
F126: 2013 | G126: 0.6532751322 | I126: 0.2598921061 | K126: 0.490472734 | M126: 0.01492523775 | O126: 0.2391288728 | Q126: 0.195622474 | S126: 0.5815728903 | U126: 0.08003854752 | W126: 0.3622761667 | Y126: 0.3004278839 | AA126: 0.03319476545 | AC126: 1.098526478 | AE126: 0.2887589633 | AG126: 0.04300775006 | AI126: 0.987328887 | AK126: 0.4036588669 | AM126: 0.5478147864 | AO126: 0.3498649001 | AQ126: 0.3080807328 | AS126: 0.4832358062
F127: 2014 | G127: 0.66249156 | I127: 0.276386708 | K127: 0.479671061 | M127: 0.01492523775 | O127: 0.2372535169 | Q127: 0.2014884949 | S127: 0.6087061763 | U127: 0.07976098359 | W127: 0.4138648808 | Y127: 0.3088709414 | AA127: 0.03392215073 | AC127: 1.098526478 | AE127: 0.3047745228 | AG127: 0.04565901682 | AI127: 0.9833502173 | AK127: 0.4132050276 | AM127: 0.5781984925 | AO127: 0.3573481739 | AQ127: 0.3243063688 | AS127: 0.5074647069
F128: 2015 | G128: 0.6717505455 | I128: 0.2932125926 | K128: 0.4689490199 | M128: 0.01492523775 | O128: 0.2353830338 | Q128: 0.207411319 | S128: 0.6362444162 | U128: 0.07948375493 | W128: 0.4676685631 | Y128: 0.3173908591 | AA128: 0.03465470672 | AC128: 1.098526478 | AE128: 0.3210726082 | AG128: 0.04836205766 | AI128: 0.9793767929 | AK128: 0.4228245318 | AM128: 0.6091181636 | AO128: 0.3648834825 | AQ128: 0.3408043087 | AS128: 0.5320812464
F129: 2016
F130: 2017
F131: 2018
F132: 2019
F133: 2020
F134: 2021
F135: 2022
F136: 2023
F137: 2024
F138: 2025
F139: 2026
F140: 2027
F141: 2028
F142: 2029
F143: 2030
F144: 2031
F145: 2032
F146: 2033
B147: Freeway Segment Single-Vehicle Crash Analysis | F147: Year
B148: Overdispersion parameter (kfs,n,sv,fi):
B149: Observed crash count (N*o,fs,n,sv,fi), crashes:
B150: Reference year (r):
B151: Predicted average crash freq. for reference year (Np,fs,n,sv,fi,r), crashes/yr:
B152: Equivalent years associated with crash count (Cb,fs,n,sv,fi,r), yr:
B153: Expected average crash freq. for reference year given N*o (Na,fs,n,sv,fi,r), crashes/yr:
B154: =IF(Main!$AC$14=TRUE, "Expected average crash frequency", "Predicted average crash frequency") -> Predicted average crash frequency | F154: =F123 -> 2010 | G154: 0.6070381999 | I154: 0.8161844611 | K154: 1.01058507 | M154: 0.08101604134 | O154: 1.241895914 | Q154: 0.5525256991 | S154: 1.35827291 | U154: 0.6082529426 | W154: 1.827519298 | Y154: 1.072872639 | AA154: 0.6174601912 | AC154: 1.96481359 | AE154: 0.8890565038 | AG154: 0.9629957676 | AI154: 1.700623393 | AK154: 2.156776667 | AM154: 1.756302834 | AO154: 1.156211495 | AQ154: 0.7794133425 | AS154: 1.246908784
B155: (Ne,fs,n,sv,fi), crashes/yr: | C155: (Np,fs,n,sv,fi), crashes/yr: | F155: =F124 -> 2011 | G155: 0.6298716068 | I155: 0.8161844611 | K155: 1.01058507 | M155: 0.08101604134 | O155: 1.283735991 | Q155: 0.5525256991 | S155: 1.325558305 | U155: 0.6173536777 | W155: 2.035774469 | Y155: 1.118548274 | AA155: 0.5973356962 | AC155: 1.96481359 | AE155: 0.9206576347 | AG155: 0.9316094518 | AI155: 1.730175018 | AK155: 2.233438492 | AM155: 1.822365284 | AO155: 1.193233848 | AQ155: 0.8071172237 | AS155: 1.28891778
F156: 2012 | G156: 0.6223115921 | I156: 0.8769869804 | K156: 0.9871196747 | M156: 0.08101604134 | O156: 1.241895914 | Q156: 0.5711405873 | S156: 1.422443867 | U156: 0.6082529426 | W156: 2.232940674 | Y156: 1.118548274 | AA156: 0.6273885369 | AC156: 1.96481359 | AE156: 0.9206576347 | AG156: 1.024151087 | AI156: 1.700623393 | AK156: 2.233438492 | AM156: 1.887140393 | AO156: 1.193233848 | AQ156: 0.8343093991 | AS156: 1.330189466
F157: 2013 | G157: 0.6223115921 | I157: 0.8769869804 | K157: 0.9871196747 | M157: 0.08101604134 | O157: 1.241895914 | Q157: 0.5711405873 | S157: 1.422443867 | U157: 0.6082529426 | W157: 2.232940674 | Y157: 1.118548274 | AA157: 0.6273885369 | AC157: 1.96481359 | AE157: 0.9206576347 | AG157: 1.024151087 | AI157: 1.700623393 | AK157: 2.233438492 | AM157: 1.887140393 | AO157: 1.193233848 | AQ157: 0.8343093991 | AS157: 1.330189466
F158: 2014 | G158: 0.6260977983 | I158: 0.9006664753 | K158: 0.9776476622 | M158: 0.08101604134 | O158: 1.237669468 | Q158: 0.5784938931 | S158: 1.450806975 | U158: 0.6073387265 | W158: 2.365436792 | Y158: 1.132052183 | AA158: 0.6333043575 | AC158: 1.96481359 | AE158: 0.9424287081 | AG158: 1.051024079 | AI158: 1.697652817 | AK158: 2.256156206 | AM158: 1.931766033 | AO158: 1.20421803 | AQ158: 0.8530580997 | AS158: 1.35866642
F159: 2015 | G159: 0.6298716068 | I159: 0.9240096807 | K159: 0.9681251049 | M159: 0.08101604134 | O159: 1.233435154 | Q159: 0.585796237 | S159: 1.4788692 | U159: 0.6064237952 | W159: 2.49398303 | Y159: 1.145468235 | AA159: 0.6391900182 | AC159: 1.96481359 | AE159: 0.9639276266 | AG159: 1.077525616 | AI159: 1.694679379 | AK159: 2.278749466 | AM159: 1.975834012 | AO159: 1.215147614 | AQ159: 0.871583581 | AS159: 1.38681972
F160: 2016
F161: 2017
F162: 2018
F163: 2019
F164: 2020
F165: 2021
F166: 2022
F167: 2023
F168: 2024
F169: 2025
F170: 2026
F171: 2027
F172: 2028
F173: 2029
F174: 2030
F175: 2031
F176: 2032
F177: 2033
B178: Ramp Entrance Crash Analysis | F178: Year
B179: Overdispersion parameter (ksc,EN,at,fi):
B180: Observed crash count (N*o,sc,EN,at,fi), crashes:
B181: Reference year (r):
B182: Predicted average crash freq. for reference year (Np,sc,EN,at,fi,r), crashes/yr:
B183: Equivalent years associated with crash count (Cb,sc,EN,at,fi,r), yr:
B184: Expected average crash freq. for reference year given N*o (Na,sc,EN,at,fi,r), crashes/yr:
B185: =IF(Main!$AC$14=TRUE, "Expected average crash frequency", "Predicted average crash frequency") -> Predicted average crash frequency | F185: =F154 -> 2010 | G185: 0 | I185: 0 | K185: 0 | M185: 0 | O185: 0 | Q185: 0 | S185: 0 | U185: 0 | W185: 0 | Y185: 0 | AA185: 0 | AC185: 0 | AE185: 0 | AG185: 0 | AI185: 0 | AK185: 0 | AM185: 0 | AO185: 0 | AQ185: 0 | AS185: 0
B186: (Ne,sc,EN,at,fi), crashes/yr: | C186: (Np,sc,EN,at,fi), crashes/yr: | F186: =F155 -> 2011 | G186: 0 | I186: 0 | K186: 0 | M186: 0 | O186: 0 | Q186: 0 | S186: 0 | U186: 0 | W186: 0 | Y186: 0 | AA186: 0 | AC186: 0 | AE186: 0 | AG186: 0 | AI186: 0 | AK186: 0 | AM186: 0 | AO186: 0 | AQ186: 0 | AS186: 0
F187: 2012 | G187: 0 | I187: 0 | K187: 0 | M187: 0 | O187: 0 | Q187: 0 | S187: 0 | U187: 0 | W187: 0 | Y187: 0 | AA187: 0 | AC187: 0 | AE187: 0 | AG187: 0 | AI187: 0 | AK187: 0 | AM187: 0 | AO187: 0 | AQ187: 0 | AS187: 0
F188: 2013 | G188: 0 | I188: 0 | K188: 0 | M188: 0 | O188: 0 | Q188: 0 | S188: 0 | U188: 0 | W188: 0 | Y188: 0 | AA188: 0 | AC188: 0 | AE188: 0 | AG188: 0 | AI188: 0 | AK188: 0 | AM188: 0 | AO188: 0 | AQ188: 0 | AS188: 0
F189: 2014 | G189: 0 | I189: 0 | K189: 0 | M189: 0 | O189: 0 | Q189: 0 | S189: 0 | U189: 0 | W189: 0 | Y189: 0 | AA189: 0 | AC189: 0 | AE189: 0 | AG189: 0 | AI189: 0 | AK189: 0 | AM189: 0 | AO189: 0 | AQ189: 0 | AS189: 0
F190: 2015 | G190: 0 | I190: 0 | K190: 0 | M190: 0 | O190: 0 | Q190: 0 | S190: 0 | U190: 0 | W190: 0 | Y190: 0 | AA190: 0 | AC190: 0 | AE190: 0 | AG190: 0 | AI190: 0 | AK190: 0 | AM190: 0 | AO190: 0 | AQ190: 0 | AS190: 0
F191: 2016
F192: 2017
F193: 2018
F194: 2019
F195: 2020
F196: 2021
F197: 2022
F198: 2023
F199: 2024
F200: 2025
F201: 2026
F202: 2027
... 382 more rows

Sheet Output Ramp Segments
E3: Output Worksheet for Ramp Segments
B4: MV = multiple-vehicle model | G4: ="Segment "& TEXT(INT((COLUMN()-5)/2),"0") -> Segment 1 | I4: ="Segment "& TEXT(INT((COLUMN()-5)/2),"0") -> Segment 2 | K4: ="Segment "& TEXT(INT((COLUMN()-5)/2),"0") -> Segment 3 | M4: ="Segment "& TEXT(INT((COLUMN()-5)/2),"0") -> Segment 4 | O4: ="Segment "& TEXT(INT((COLUMN()-5)/2),"0") -> Segment 5 | Q4: ="Segment "& TEXT(INT((COLUMN()-5)/2),"0") -> Segment 6 | S4: ="Segment "& TEXT(INT((COLUMN()-5)/2),"0") -> Segment 7 | U4: ="Segment "& TEXT(INT((COLUMN()-5)/2),"0") -> Segment 8 | W4: ="Segment "& TEXT(INT((COLUMN()-5)/2),"0") -> Segment 9 | Y4: ="Segment "& TEXT(INT((COLUMN()-5)/2),"0") -> Segment 10 | AA4: ="Segment "& TEXT(INT((COLUMN()-5)/2),"0") -> Segment 11 | AC4: ="Segment "& TEXT(INT((COLUMN()-5)/2),"0") -> Segment 12 | AE4: ="Segment "& TEXT(INT((COLUMN()-5)/2),"0") -> Segment 13 | AG4: ="Segment "& TEXT(INT((COLUMN()-5)/2),"0") -> Segment 14 | AI4: ="Segment "& TEXT(INT((COLUMN()-5)/2),"0") -> Segment 15 | AK4: ="Segment "& TEXT(INT((COLUMN()-5)/2),"0") -> Segment 16 | AM4: ="Segment "& TEXT(INT((COLUMN()-5)/2),"0") -> Segment 17 | AO4: ="Segment "& TEXT(INT((COLUMN()-5)/2),"0") -> Segment 18 | AQ4: ="Segment "& TEXT(INT((COLUMN()-5)/2),"0") -> Segment 19 | AS4: ="Segment "& TEXT(INT((COLUMN()-5)/2),"0") -> Segment 20 | AU4: ="Segment "& TEXT(INT((COLUMN()-5)/2),"0") -> Segment 21 | AW4: ="Segment "& TEXT(INT((COLUMN()-5)/2),"0") -> Segment 22 | AY4: ="Segment "& TEXT(INT((COLUMN()-5)/2),"0") -> Segment 23 | BA4: ="Segment "& TEXT(INT((COLUMN()-5)/2),"0") -> Segment 24 | BC4: ="Segment "& TEXT(INT((COLUMN()-5)/2),"0") -> Segment 25 | BE4: ="Segment "& TEXT(INT((COLUMN()-5)/2),"0") -> Segment 26 | BG4: ="Segment "& TEXT(INT((COLUMN()-5)/2),"0") -> Segment 27 | BI4: ="Segment "& TEXT(INT((COLUMN()-5)/2),"0") -> Segment 28 | BK4: ="Segment "& TEXT(INT((COLUMN()-5)/2),"0") -> Segment 29 | BM4: ="Segment "& TEXT(INT((COLUMN()-5)/2),"0") -> Segment 30 | BO4: ="Segment "& TEXT(INT((COLUMN()-5)/2),"0") -> Segment 31 | BQ4: ="Segment "& TEXT(INT((COLUMN()-5)/2),"0") -> Segment 32 | BS4: ="Segment "& TEXT(INT((COLUMN()-5)/2),"0") -> Segment 33 | BU4: ="Segment "& TEXT(INT((COLUMN()-5)/2),"0") -> Segment 34 | BW4: ="Segment "& TEXT(INT((COLUMN()-5)/2),"0") -> Segment 35 | BY4: ="Segment "& TEXT(INT((COLUMN()-5)/2),"0") -> Segment 36 | CA4: ="Segment "& TEXT(INT((COLUMN()-5)/2),"0") -> Segment 37 | CC4: ="Segment "& TEXT(INT((COLUMN()-5)/2),"0") -> Segment 38 | CE4: ="Segment "& TEXT(INT((COLUMN()-5)/2),"0") -> Segment 39 | CG4: ="Segment "& TEXT(INT((COLUMN()-5)/2),"0") -> Segment 40
B5: SV = single-vehicle model | E5: Applicable Models | G5: =IF(Main!$AG$14=TRUE, "Crash Period", "Study Period") -> Study Period | H5: =IF(Main!$AG$14=TRUE, "Study Period", "") ->  | I5: =G5 -> Study Period | K5: Study Period | M5: Study Period | O5: Study Period | Q5: Study Period | S5: Study Period | U5: Study Period | W5: Study Period | Y5: Study Period | AA5: Study Period | AC5: Study Period | AE5: Study Period | AG5: Study Period | AI5: Study Period | AK5: Study Period | AM5: Study Period | AO5: =AM5 -> Study Period | AQ5: Study Period | AS5: Study Period | AU5: Study Period | AW5: Study Period | AY5: Study Period | BA5: Study Period | BC5: Study Period | BE5: Study Period | BG5: Study Period | BI5: Study Period | BK5: Study Period | BM5: Study Period | BO5: Study Period | BQ5: Study Period | BS5: Study Period | BU5: =BS5 -> Study Period | BW5: Study Period | BY5: Study Period | CA5: Study Period | CC5: Study Period | CE5: Study Period | CG5: Study Period
B7: Crash Modification Factors
B8: Fatal-and-Injury Crash CMFs
B9: Horizontal curve (CMF1,w,x,y,fi): | E9: MV
F10: SV
B11: Lane width (CMF2, w,x,y,fi): | E11: MV | F11: SV
B12: Right shoulder width (CMF3,w,x,y,fi): | E12: MV | F12: SV
B13: Left shoulder width (CMF4,w,x,y,fi): | E13: MV | F13: SV
B14: Right side barrier (CMF5,w,x,y,fi): | E14: MV | F14: SV
B15: Left side barrier (CMF6,w,x,y,fi): | E15: MV | F15: SV
B16: Weaving section (CMF9,cds,ac,at,fi): | E16: MV | F16: SV
E17: Year: | F17: =Main!$AG$5 -> 2010
F18: =F17+1 -> 2011
F19: =F18+1 -> 2012
F20: 2013
F21: 2014
F22: 2015
F23: 2016
F24: 2017
F25: 2018
F26: 2019
F27: 2020
F28: 2021
F29: 2022
F30: 2023
F31: 2024
F32: 2025
F33: 2026
F34: 2027
F35: 2028
F36: 2029
F37: 2030
F38: 2031
F39: 2032
F40: 2033
B41: Ramp speed-change lane (CMF8,w,x,mv,fi): | E41: MV
B42: Lane add or drop (CMF7,w,x,y,fi): | E42: MV | F42: SV
B43: Property-Damage-Only Crash CMFs
B44: Horizontal curve (CMF1,w,x,y,pdo): | E44: MV
F45: SV
B46: Lane width (CMF2, w,x,y,pdo): | E46: MV | F46: SV
B47: Right shoulder width (CMF3,w,x,y,pdo): | E47: MV | F47: SV
B48: Left shoulder width (CMF4,w,x,y,pdo): | E48: MV | F48: SV
B49: Right side barrier (CMF5,w,x,y,pdo): | E49: MV | F49: SV
B50: Left side barrier (CMF6,w,x,y,pdo): | E50: MV | F50: SV
B51: Weaving section (CMF9,cds,ac,at,pdo): | E51: MV | F51: SV
E52: Year: | F52: =Main!$AG$5 -> 2010
F53: =F52+1 -> 2011
F54: =F53+1 -> 2012
F55: 2013
F56: 2014
F57: 2015
F58: 2016
F59: 2017
F60: 2018
F61: 2019
F62: 2020
F63: 2021
F64: 2022
F65: 2023
F66: 2024
F67: 2025
F68: 2026
F69: 2027
F70: 2028
F71: 2029
F72: 2030
F73: 2031
F74: 2032
F75: 2033
B76: Ramp speed-change lane (CMF8,w,x,mv,pdo): | E76: MV
B77: Lane add or drop (CMF7,w,x,y,pdo): | E77: MV | F77: SV
B78: =IF(Main!$AG$14=TRUE, "Expected Average Crash Frequency", "Predicted Average Crash Frequency") -> Predicted Average Crash Frequency
B79: Fatal-and-Injury Crash Frequency
B80: Multiple-Vehicle Crash Analysis | F80: Year
B81: Overdispersion parameter (kw,x,mv,fi):
B82: Observed crash count (N*o,w,x,mv,fi), crashes:
B83: Reference year (r):
B84: Predicted average crash freq. for reference year (Np,w,x,mv,fi,r), crashes/yr:
B85: Equivalent years associated with crash count (Cb,w,x,mv,fi,r), yr:
B86: Expected average crash freq. for reference year given N*o (Na,w,x,mv,fi,r), crashes/yr:
B87: =IF(Main!$AG$14=TRUE, "Expected average crash frequency", "Predicted average crash frequency") -> Predicted average crash frequency | F87: =Main!$AG$5 -> 2010
B88: (Ne,w,x,mv,fi), crashes/yr: | C88: (Np,w,x,mv,fi), crashes/yr: | F88: =F87+1 -> 2011
F89: =F88+1 -> 2012
F90: 2013
F91: 2014
F92: 2015
F93: 2016
F94: 2017
F95: 2018
F96: 2019
F97: 2020
F98: 2021
F99: 2022
F100: 2023
F101: 2024
F102: 2025
F103: 2026
F104: 2027
F105: 2028
F106: 2029
F107: 2030
F108: 2031
F109: 2032
F110: 2033
B111: Single-Vehicle Crash Analysis | F111: Year
B112: Overdispersion parameter (kw,x,sv,fi):
B113: Observed crash count (N*o,w,x,sv,fi), crashes:
B114: Reference year (r):
B115: Predicted average crash freq. for reference year (Np,w,x,sv,fi,r), crashes/yr:
B116: Equivalent years associated with crash count (Cb,w,x,sv,fi,r), yr:
B117: Expected average crash freq. for reference year given N*o (Na,w,x,sv,fi,r), crashes/yr:
B118: =IF(Main!$AG$14=TRUE, "Expected average crash frequency", "Predicted average crash frequency") -> Predicted average crash frequency | F118: =F87 -> 2010
B119: (Ne,w,x,sv,fi), crashes/yr: | C119: (Np,w,x,sv,fi), crashes/yr: | F119: =F88 -> 2011
F120: 2012
F121: 2013
F122: 2014
F123: 2015
F124: 2016
F125: 2017
F126: 2018
F127: 2019
F128: 2020
F129: 2021
F130: 2022
F131: 2023
F132: 2024
F133: 2025
F134: 2026
F135: 2027
F136: 2028
F137: 2029
F138: 2030
F139: 2031
F140: 2032
F141: 2033
B142: Project Level Crash Analysis | F142: Year | G142: Project
B143: Observed crash count (N*o,aS,ac,at,fi), crashes:
B144: Reference year (r):
B145: Predicted average crash freq. for reference year (Np,aS,ac,at,fi,r), crashes/yr:
B146: Equivalent years associated with crash count (Cb,aS,ac,at,fi,r), yr:
B147: Independent sites crash analysis
B148: Variance when site crash frequencies are independent (V0,aS,ac,at,fi):
B149: Weight associated with Np,...r (w0,aS,ac,at,fi):
B150: Expected average crash freq. for reference year given N*o (N0,aS,ac,at,fi,r), crashes/yr:
B151: Correlated sites crash analysis
B152: Variance when site crash frequencies are correlated (V1,aS,ac,at,fi):
B153: Weight associated with Np,...r (w1,aS,ac,at,fi):
B154: Expected average crash freq. for reference year given N*o (N1,aS,ac,at,fi,r), crashes/yr:
B155: Expected average crash frequency | F155: =F118 -> 2010
B156: (Ne,aS,ac,at,fi), crashes/year: | F156: =F119 -> 2011
F157: 2012
F158: 2013
F159: 2014
F160: 2015
F161: 2016
F162: 2017
F163: 2018
F164: 2019
F165: 2020
F166: 2021
F167: 2022
F168: 2023
F169: 2024
F170: 2025
F171: 2026
F172: 2027
F173: 2028
F174: 2029
F175: 2030
F176: 2031
F177: 2032
F178: 2033
B179: Property-Damage-Only Crash Frequency
B180: Multiple-Vehicle Crash Analysis | F180: Year
B181: Overdispersion parameter (kw,x,mv,pdo):
B182: Observed crash count (N*o,w,x,mv,pdo), crashes:
B183: Reference year (r):
B184: Predicted average crash freq. for reference year (Np,w,x,mv,pdo,r), crashes/yr:
B185: Equivalent years associated with crash count (Cb,w,x,mv,pdo,r), yr:
B186: Expected average crash freq. for reference year given N*o (Na,w,x,mv,pdo,r), crashes/yr:
B187: =IF(Main!$AG$14=TRUE, "Expected average crash frequency", "Predicted average crash frequency") -> Predicted average crash frequency | F187: =Main!$AG$5 -> 2010
B188: (Ne,w,x,mv,pdo), crashes/yr: | C188: (Np,w,x,mv,pdo), crashes/yr: | F188: =F187+1 -> 2011
F189: =F188+1 -> 2012
F190: 2013
F191: 2014
F192: 2015
F193: 2016
F194: 2017
F195: 2018
F196: 2019
F197: 2020
F198: 2021
F199: 2022
F200: 2023
F201: 2024
F202: 2025
F203: 2026
... 137 more rows

Sheet Output Ramp Terminals
E3: Output Worksheet for Crossroad Ramp Terminals
B4: Signal = signalized intersection model | G4: ="Terminal "& TEXT(INT((COLUMN()-5)/2),"0") -> Terminal 1 | I4: ="Terminal "& TEXT(INT((COLUMN()-5)/2),"0") -> Terminal 2 | K4: ="Terminal "& TEXT(INT((COLUMN()-5)/2),"0") -> Terminal 3 | M4: ="Terminal "& TEXT(INT((COLUMN()-5)/2),"0") -> Terminal 4 | O4: ="Terminal "& TEXT(INT((COLUMN()-5)/2),"0") -> Terminal 5 | Q4: ="Terminal "& TEXT(INT((COLUMN()-5)/2),"0") -> Terminal 6
B5: Unsig = unsignalized intersection model | E5: Applicable Models | G5: =IF(Main!$AK$14=TRUE, "Crash Period", "Study Period") -> Study Period | H5: =IF(Main!$AK$14=TRUE, "Study Period", "") ->  | I5: =G5 -> Study Period | K5: Study Period | M5: Study Period | O5: Study Period | Q5: Study Period
B7: Crash Modification Factors
B8: Fatal-and-Injury Crash CMFs
B9: Non-ramp public street leg (CMF19,w,SG,at,fi): | E9: Signal
B10: Segment length (CMF14,w,x,at,fi): | E10: Signal | F10: Unsig
B11: Protected left-turn operation (CMF16,w,SG,at,fi): | E11: Signal
E12: Year: | F12: =Main!$AK$5 -> 2010
F13: =F12+1 -> 2011
F14: =F13+1 -> 2012
F15: 2013
F16: 2014
F17: 2015
F18: 2016
F19: 2017
F20: 2018
F21: 2019
F22: 2020
F23: 2021
F24: 2022
F25: 2023
F26: 2024
F27: 2025
F28: 2026
F29: 2027
F30: 2028
F31: 2029
F32: 2030
F33: 2031
F34: 2032
F35: 2033
B36: Channelized right turn on crossroad (CMF17,w,SG,at,fi): | E36: Signal
E37: Year: | F37: =Main!$AK$5 -> 2010
F38: =F37+1 -> 2011
F39: =F38+1 -> 2012
F40: 2013
F41: 2014
F42: 2015
F43: 2016
F44: 2017
F45: 2018
F46: 2019
F47: 2020
F48: 2021
F49: 2022
F50: 2023
F51: 2024
F52: 2025
F53: 2026
F54: 2027
F55: 2028
F56: 2029
F57: 2030
F58: 2031
F59: 2032
F60: 2033
B61: Channelized right turn on exit ramp (CMF18,w,SG,at,fi): | E61: Signal
E62: Year: | F62: =Main!$AK$5 -> 2010
F63: =F62+1 -> 2011
F64: =F63+1 -> 2012
F65: 2013
F66: 2014
F67: 2015
F68: 2016
F69: 2017
F70: 2018
F71: 2019
F72: 2020
F73: 2021
F74: 2022
F75: 2023
F76: 2024
F77: 2025
F78: 2026
F79: 2027
F80: 2028
F81: 2029
F82: 2030
F83: 2031
F84: 2032
F85: 2033
B86: Access point frequency (CMF13,w,x,at,fi): | E86: Signal | F86: Unsig
E87: Year: | F87: =Main!$AK$5 -> 2010
F88: =F87+1 -> 2011
F89: =F88+1 -> 2012
F90: 2013
F91: 2014
F92: 2015
F93: 2016
F94: 2017
F95: 2018
F96: 2019
F97: 2020
F98: 2021
F99: 2022
F100: 2023
F101: 2024
F102: 2025
F103: 2026
F104: 2027
F105: 2028
F106: 2029
F107: 2030
F108: 2031
F109: 2032
F110: 2033
B111: Crossroad left-turn lane (CMF11,w,x,at,fi): | E111: Signal | F111: Unsig
E112: Year: | F112: =Main!$AK$5 -> 2010
F113: =F112+1 -> 2011
F114: =F113+1 -> 2012
F115: 2013
F116: 2014
F117: 2015
F118: 2016
F119: 2017
F120: 2018
F121: 2019
F122: 2020
F123: 2021
F124: 2022
F125: 2023
F126: 2024
F127: 2025
F128: 2026
F129: 2027
F130: 2028
F131: 2029
F132: 2030
F133: 2031
F134: 2032
F135: 2033
B136: Crossroad right-turn lane (CMF12,w,x,at,fi): | E136: Signal | F136: Unsig
E137: Year: | F137: =Main!$AK$5 -> 2010
F138: =F137+1 -> 2011
F139: =F138+1 -> 2012
F140: 2013
F141: 2014
F142: 2015
F143: 2016
F144: 2017
F145: 2018
F146: 2019
F147: 2020
F148: 2021
F149: 2022
F150: 2023
F151: 2024
F152: 2025
F153: 2026
F154: 2027
F155: 2028
F156: 2029
F157: 2030
F158: 2031
F159: 2032
F160: 2033
B161: Median width (CMF15,w,x,at,fi): | E161: Signal | F161: Unsig
E162: Year: | F162: =Main!$AK$5 -> 2010
F163: =F162+1 -> 2011
F164: =F163+1 -> 2012
F165: 2013
F166: 2014
F167: 2015
F168: 2016
F169: 2017
F170: 2018
F171: 2019
F172: 2020
F173: 2021
F174: 2022
F175: 2023
F176: 2024
F177: 2025
F178: 2026
F179: 2027
F180: 2028
F181: 2029
F182: 2030
F183: 2031
F184: 2032
F185: 2033
B186: Exit ramp capacity (CMF10,w,x,at,fi): | E186: Signal | F186: Unsig
E187: Year: | F187: =Main!$AK$5 -> 2010
F188: =F187+1 -> 2011
F189: =F188+1 -> 2012
F190: 2013
F191: 2014
F192: 2015
F193: 2016
F194: 2017
F195: 2018
F196: 2019
F197: 2020
F198: 2021
F199: 2022
F200: 2023
F201: 2024
F202: 2025
F203: 2026
... 553 more rows

Sheet Calibration Factors
B3: Freeway Model Calibration Factors and Default Values
B4: Freeway Fatal-and-Injury Crash Frequency Models | J4: Model: exp(a + b ln[c AADTfs]) L
B5: Area Type | D5: Through Lanes | E5: Model | H5: Location | J5: a | K5: b | L5: c | M5: Inverse Disp. (K), mi | N5: Calib. Factor (C)
B7: Rural | D7: 4 | E7: Multiple-vehicle | H7: Freeway segment | J7: =(-5.47-0.505) -> -5.975 | K7: 1.492 | L7: 0.001 | M7: =17.6 -> 17.6 | N7: 1
E8: Single-vehicle | H8: Freeway segment | J8: =(-2.266+0.0351*D7) -> -2.1256 | K8: 0.646 | L8: 0.001 | M8: =30.1 -> 30.1 | N8: 1
E9: Ramp-entrance | H9: Speed-change lane | J9: =(-3.194 - 0.13*D7 - 0.18) -> -3.894 | K9: 1.173 | L9: =1/2000 -> 0.0005 | M9: =26.1 -> 26.1 | N9: 1
E10: Ramp-exit | H10: Speed-change lane | J10: =(-2.679) -> -2.679 | K10: 0.903 | L10: =1/2000 -> 0.0005 | M10: =1.78 -> 1.78 | N10: 1
D11: 6 | E11: Multiple-vehicle | H11: Freeway segment | J11: =(-5.587-0.505) -> -6.092 | K11: =K7 -> 1.492 | L11: 0.001 | M11: =M7 -> 17.6 | N11: 1
E12: Single-vehicle | H12: Freeway segment | J12: =(-2.266+0.0351*D11) -> -2.0554 | K12: 0.646 | L12: 0.001 | M12: 30.1 | N12: 1
E13: Ramp-entrance | H13: Speed-change lane | J13: =(-3.194 - 0.13*D11 - 0.18) -> -4.154 | K13: 1.173 | L13: 0.0005 | M13: 26.1 | N13: 1
E14: Ramp-exit | H14: Speed-change lane | J14: =(-2.679) -> -2.679 | K14: 0.903 | L14: 0.0005 | M14: 1.78 | N14: 1
D15: 8 | E15: Multiple-vehicle | H15: Freeway segment | J15: =(-5.635-0.505) -> -6.14 | K15: 1.492 | L15: 0.001 | M15: 17.6 | N15: 1
E16: Single-vehicle | H16: Freeway segment | J16: =(-2.266+0.0351*D15) -> -1.9852 | K16: 0.646 | L16: 0.001 | M16: 30.1 | N16: 1
E17: Ramp-entrance | H17: Speed-change lane | J17: =(-3.194 - 0.13*D15 - 0.18) -> -4.414 | K17: 1.173 | L17: 0.0005 | M17: 26.1 | N17: 1
E18: Ramp-exit | H18: Speed-change lane | J18: =(-2.679) -> -2.679 | K18: 0.903 | L18: 0.0005 | M18: 1.78 | N18: 1
B19: Urban | D19: 4 | E19: Multiple-vehicle | H19: Freeway segment | J19: =(-5.47) -> -5.47 | K19: 1.492 | L19: 0.001 | M19: 17.6 | N19: 1
E20: Single-vehicle | H20: Freeway segment | J20: =(-2.266+0.0351*D19) -> -2.1256 | K20: 0.646 | L20: 0.001 | M20: 30.1 | N20: 1
E21: Ramp-entrance | H21: Speed-change lane | J21: =(-3.194 - 0.13*D19 ) -> -3.714 | K21: 1.173 | L21: 0.0005 | M21: 26.1 | N21: 1
E22: Ramp-exit | H22: Speed-change lane | J22: =(-2.679) -> -2.679 | K22: 0.903 | L22: 0.0005 | M22: 1.78 | N22: 1
D23: 6 | E23: Multiple-vehicle | H23: Freeway segment | J23: =(-5.587) -> -5.587 | K23: 1.492 | L23: 0.001 | M23: =M19 -> 17.6 | N23: 1
E24: Single-vehicle | H24: Freeway segment | J24: =(-2.266+0.0351*D23) -> -2.0554 | K24: 0.646 | L24: 0.001 | M24: 30.1 | N24: 1
E25: Ramp-entrance | H25: Speed-change lane | J25: =(-3.194 - 0.13*D23 ) -> -3.974 | K25: 1.173 | L25: 0.0005 | M25: 26.1 | N25: 1
E26: Ramp-exit | H26: Speed-change lane | J26: =(-2.679) -> -2.679 | K26: 0.903 | L26: 0.0005 | M26: 1.78 | N26: 1
D27: 8 | E27: Multiple-vehicle | H27: Freeway segment | J27: =(-5.635) -> -5.635 | K27: 1.492 | L27: 0.001 | M27: 17.6 | N27: 1
E28: Single-vehicle | H28: Freeway segment | J28: =(-2.266+0.0351*D27) -> -1.9852 | K28: 0.646 | L28: 0.001 | M28: 30.1 | N28: 1
E29: Ramp-entrance | H29: Speed-change lane | J29: =(-3.194 - 0.13*D27 ) -> -4.234 | K29: 1.173 | L29: 0.0005 | M29: 26.1 | N29: 1
E30: Ramp-exit | H30: Speed-change lane | J30: =(-2.679) -> -2.679 | K30: 0.903 | L30: 0.0005 | M30: 1.78 | N30: 1
D31: 10 | E31: Multiple-vehicle | H31: Freeway segment | J31: =(-5.842) -> -5.842 | K31: 1.492 | L31: 0.001 | M31: 17.6 | N31: 1
E32: Single-vehicle | H32: Freeway segment | J32: =(-2.266+0.0351*D31) -> -1.915 | K32: 0.646 | L32: 0.001 | M32: 30.1 | N32: 1
E33: Ramp-entrance | H33: Speed-change lane | J33: =(-3.194 - 0.13*D31 ) -> -4.494 | K33: 1.173 | L33: 0.0005 | M33: 26.1 | N33: 1
E34: Ramp-exit | H34: Speed-change lane | J34: =(-2.679) -> -2.679 | K34: 0.903 | L34: 0.0005 | M34: 1.78 | N34: 1
B35: Freeway Property-Damage-Only Crash Frequency Models | J35: Model: exp(a + b ln[c AADTfs]) L
B36: Area Type | D36: Through Lanes | E36: Model | H36: Location | J36: a | K36: b | L36: c | M36: Inverse Disp. (K), mi | N36: Calib. Factor (C)
B38: Rural | D38: 4 | E38: Multiple-vehicle | H38: Freeway segment | J38: =(-6.355-0.332-0.193) -> -6.88 | K38: 1.936 | L38: =L7 -> 0.001 | M38: 18.8 | N38: 1
E39: Single-vehicle | H39: Freeway segment | J39: =(-1.955-0.0193*D38-0.203) -> -2.2352 | K39: 0.876 | L39: =L8 -> 0.001 | M39: 20.7 | N39: 1
E40: Ramp-entrance | H40: Speed-change lane | J40: =-2.18-0.101*D38-0.0989-0.212 -> -2.8949 | K40: 1.215 | L40: =L9 -> 0.0005 | M40: 24.8 | N40: 1
E41: Ramp-exit | H41: Speed-change lane | J41: =-1.575-0.223 -> -1.798 | K41: 0.932 | L41: =L10 -> 0.0005 | M41: 1.58 | N41: 1
D42: 6 | E42: Multiple-vehicle | H42: Freeway segment | J42: =(-6.616-0.332-0.193) -> -7.141 | K42: =K38 -> 1.936 | L42: 0.001 | M42: 18.8 | N42: 1
E43: Single-vehicle | H43: Freeway segment | J43: =(-1.955-0.0193*D42-0.203) -> -2.2738 | K43: 0.876 | L43: 0.001 | M43: 20.7 | N43: 1
E44: Ramp-entrance | H44: Speed-change lane | J44: =-2.18-0.101*D42-0.0989-0.212 -> -3.0969 | K44: 1.215 | L44: 0.0005 | M44: 24.8 | N44: 1
E45: Ramp-exit | H45: Speed-change lane | J45: =-1.575-0.223 -> -1.798 | K45: 0.932 | L45: 0.0005 | M45: 1.58 | N45: 1
D46: 8 | E46: Multiple-vehicle | H46: Freeway segment | J46: =(-6.804-0.332-0.193) -> -7.329 | K46: 1.936 | L46: 0.001 | M46: 18.8 | N46: 1
E47: Single-vehicle | H47: Freeway segment | J47: =(-1.955-0.0193*D46-0.203) -> -2.3124 | K47: 0.876 | L47: 0.001 | M47: 20.7 | N47: 1
E48: Ramp-entrance | H48: Speed-change lane | J48: =-2.18-0.101*D46-0.0989-0.212 -> -3.2989 | K48: =K44 -> 1.215 | L48: 0.0005 | M48: 24.8 | N48: 1
E49: Ramp-exit | H49: Speed-change lane | J49: =-1.575-0.223 -> -1.798 | K49: =K45 -> 0.932 | L49: 0.0005 | M49: 1.58 | N49: 1
B50: Urban | D50: 4 | E50: Multiple-vehicle | H50: Freeway segment | J50: =(-6.355-0-0.193) -> -6.548 | K50: 1.936 | L50: 0.001 | M50: 18.8 | N50: =N46 -> 1
E51: Single-vehicle | H51: Freeway segment | J51: =(-1.955-0.0193*D50-0.203) -> -2.2352 | K51: 0.876 | L51: 0.001 | M51: 20.7 | N51: =N47 -> 1
E52: Ramp-entrance | H52: Speed-change lane | J52: =-2.18-0.101*D50-0-0.212 -> -2.796 | K52: =K48 -> 1.215 | L52: 0.0005 | M52: 24.8 | N52: 1
E53: Ramp-exit | H53: Speed-change lane | J53: =-1.575-0.223 -> -1.798 | K53: =K49 -> 0.932 | L53: 0.0005 | M53: 1.58 | N53: 1
D54: 6 | E54: Multiple-vehicle | H54: Freeway segment | J54: =(-6.616-0-0.193) -> -6.809 | K54: 1.936 | L54: 0.001 | M54: 18.8 | N54: =N50 -> 1
E55: Single-vehicle | H55: Freeway segment | J55: =(-1.955-0.0193*D54-0.203) -> -2.2738 | K55: 0.876 | L55: 0.001 | M55: 20.7 | N55: =N51 -> 1
E56: Ramp-entrance | H56: Speed-change lane | J56: =-2.18-0.101*D54-0-0.212 -> -2.998 | K56: =K52 -> 1.215 | L56: 0.0005 | M56: 24.8 | N56: 1
E57: Ramp-exit | H57: Speed-change lane | J57: =-1.575-0.223 -> -1.798 | K57: =K53 -> 0.932 | L57: 0.0005 | M57: 1.58 | N57: 1
D58: 8 | E58: Multiple-vehicle | H58: Freeway segment | J58: =(-6.804-0-0.193) -> -6.997 | K58: 1.936 | L58: 0.001 | M58: 18.8 | N58: =N54 -> 1
E59: Single-vehicle | H59: Freeway segment | J59: =(-1.955-0.0193*D58-0.203) -> -2.3124 | K59: 0.876 | L59: 0.001 | M59: 20.7 | N59: =N55 -> 1
E60: Ramp-entrance | H60: Speed-change lane | J60: =-2.18-0.101*D58-0-0.212 -> -3.2 | K60: =K56 -> 1.215 | L60: 0.0005 | M60: 24.8 | N60: 1
E61: Ramp-exit | H61: Speed-change lane | J61: =-1.575-0.223 -> -1.798 | K61: =K57 -> 0.932 | L61: 0.0005 | M61: 1.58 | N61: 1
D62: 10 | E62: Multiple-vehicle | H62: Freeway segment | J62: =(-7.067-0-0.193) -> -7.26 | K62: 1.936 | L62: 0.001 | M62: 18.8 | N62: =N58 -> 1
E63: Single-vehicle | H63: Freeway segment | J63: =(-1.955-0.0193*D62-0.203) -> -2.351 | K63: 0.876 | L63: 0.001 | M63: 20.7 | N63: =N59 -> 1
E64: Ramp-entrance | H64: Speed-change lane | J64: =-2.18-0.101*D62-0-0.212 -> -3.402 | K64: =K60 -> 1.215 | L64: 0.0005 | M64: 24.8 | N64: 1
E65: Ramp-exit | H65: Speed-change lane | J65: =-1.575-0.223 -> -1.798 | K65: =K61 -> 0.932 | L65: =L61 -> 0.0005 | M65: =M61 -> 1.58 | N65: 1
B66: Freeway Crash Severity Model
L67: Calibration factor | N67: 1
B68: Freeway Crash Distribution
B69: Area Type | D69: Crash Type | F69: Crash Type Category | I69: Proportion of Crashes by Severity Level for Specific Models
I70: Main Lanes | K70: Ramp Entrance | M70: Ramp Exit
I71: FI | J71: PDO | K71: FI | L71: PDO | M71: FI | N71: PDO
B72: Rural | D72: Multiple vehicle | F72: Head-on | I72: 0.018 | J72: 0.004 | K72: 0.021 | L72: 0.004 | M72: 0 | N72: 0
F73: Right-angle | I73: 0.056 | J73: 0.03 | K73: 0.032 | L73: 0.013 | M73: 0.015 | N73: 0
F74: Rear-end | I74: 0.63 | J74: 0.508 | K74: 0.351 | L74: 0.26 | M74: 0.463 | N74: 0.304
F75: Sideswipe | I75: 0.237 | J75: 0.38 | K75: 0.128 | L75: 0.242 | M75: 0.104 | N75: 0.243
F76: Other multiple-vehicle crash | I76: 0.059 | J76: 0.078 | K76: 0.011 | L76: 0.04 | M76: 0 | N76: 0.009
H77: MV Total: | I77: =SUM(I72:I76) -> 1 | J77: =SUM(J72:J76) -> 1
D78: Single vehicle | F78: Crash with animal | I78: 0.01 | J78: 0.065 | K78: 0 | L78: 0.009 | M78: 0 | N78: 0.061
F79: Crash with fixed object | I79: 0.567 | J79: 0.625 | K79: 0.245 | L79: 0.296 | M79: 0.224 | N79: 0.235
F80: Crash with other object | I80: 0.031 | J80: 0.125 | K80: 0.021 | L80: 0.07 | M80: 0.03 | N80: 0.061
F81: Crash with parked vehicle | I81: 0.024 | J81: 0.023 | K81: 0.021 | L81: 0 | M81: 0 | N81: 0.017
F82: Other single-vehicle crash | I82: 0.368 | J82: 0.162 | K82: 0.17 | L82: 0.066 | M82: 0.164 | N82: 0.07
H83: SV Total: | I83: =SUM(I78:I82) -> 1 | J83: =SUM(J78:J82) -> 1
H84: Total: | K84: =SUM(K78:K82)+SUM(K72:K76) -> 1 | L84: =SUM(L78:L82)+SUM(L72:L76) -> 1 | M84: =SUM(M78:M82)+SUM(M72:M76) -> 1 | N84: =SUM(N78:N82)+SUM(N72:N76) -> 1
B85: Urban | D85: Multiple vehicle | F85: Head-on | I85: 0.008 | J85: 0.002 | K85: 0.004 | L85: 0.001 | M85: 0.005 | N85: 0.002
F86: Right-angle | I86: 0.031 | J86: 0.018 | K86: 0.019 | L86: 0.016 | M86: 0.011 | N86: 0.012
F87: Rear-end | I87: 0.75 | J87: 0.69 | K87: 0.543 | L87: 0.53 | M87: 0.549 | N87: 0.565
F88: Sideswipe | I88: 0.18 | J88: 0.266 | K88: 0.133 | L88: 0.252 | M88: 0.158 | N88: 0.138
F89: Other multiple-vehicle crash | I89: 0.031 | J89: 0.024 | K89: 0.017 | L89: 0.015 | M89: 0.016 | N89: 0.016
H90: MV Total: | I90: =SUM(I85:I89) -> 1 | J90: =SUM(J85:J89) -> 1
D91: Single vehicle | F91: Crash with animal | I91: 0.004 | J91: 0.022 | K91: 0 | L91: 0.002 | M91: 0 | N91: 0.007
F92: Crash with fixed object | I92: 0.722 | J92: 0.716 | K92: 0.194 | L92: 0.129 | M92: 0.196 | N92: 0.207
F93: Crash with other object | I93: 0.051 | J93: 0.139 | K93: 0.019 | L93: 0.036 | M93: 0.016 | N93: 0.03
F94: Crash with parked vehicle | I94: 0.015 | J94: 0.016 | K94: 0.004 | L94: 0.003 | M94: 0 | N94: 0
F95: Other single-vehicle crash | I95: 0.208 | J95: 0.107 | K95: 0.067 | L95: 0.016 | M95: 0.049 | N95: 0.023
H96: SV Total: | I96: =SUM(I91:I95) -> 1 | J96: =SUM(J91:J95) -> 1
H97: Total: | K97: =SUM(K91:K95)+SUM(K85:K89) -> 1 | L97: =SUM(L91:L95)+SUM(L85:L89) -> 1 | M97: =SUM(M91:M95)+SUM(M85:M89) -> 1 | N97: =SUM(N91:N95)+SUM(N85:N89) -> 1
B100: Ramp Segment Model Calibration Factors and Default Values
B101: Ramp Segment Fatal-and-Injury Crash Frequency Models | I101: Model: exp(a + b ln[c AADTr] + d [c AADTr]) L
B102: Area Type | D102: Through Lanes | E102: Number of Vehicles Involved | H102: Location | I102: a | J102: b | K102: c | L102: d | M102: Inverse Disp. (K), mi | N102: Calib. Factor (C)
B104: Rural | D104: 1 | E104: Multiple vehicle | H104: Entrance | I104: =(-2.997-0.508-1.721) -> -5.226 | J104: 0.524 | K104: 0.001 | L104: 0.0699 | M104: =14.6 -> 14.6 | N104: 1
E105: Multiple vehicle | H105: Exit | I105: =(-2.997-1.974-1.721) -> -6.692 | J105: 0.524 | K105: 0.001 | L105: 0.0699 | M105: =14.6 -> 14.6 | N105: 1
E106: Multiple vehicle | H106: C-D road | I106: =(-2.997-0-1.721) -> -4.718 | J106: 0.524 | K106: 0.001 | L106: 0.0699 | M106: =14.6 -> 14.6 | N106: 1
E107: Single vehicle | H107: Entrance | I107: =(-2.848+0.882-0.154) -> -2.12 | J107: 0.718 | K107: 0.001 | L107: 0 | M107: =7.91 -> 7.91 | N107: 1
E108: Single vehicle | H108: Exit | I108: =(-2.848+1.203-0.154) -> -1.799 | J108: 0.718 | K108: 0.001 | L108: 0 | M108: =7.91 -> 7.91 | N108: 1
E109: Single vehicle | H109: C-D road | I109: =(-2.848+0-0.154) -> -3.002 | J109: 0.718 | K109: 0.001 | L109: 0 | M109: =7.91 -> 7.91 | N109: 1
B110: Urban | D110: 1 | E110: Multiple vehicle | H110: Entrance | I110: =(-2.997-0.508-0) -> -3.505 | J110: =J104 -> 0.524 | K110: 0.001 | L110: 0.0699 | M110: 14.6 | N110: 1
E111: Multiple vehicle | H111: Exit | I111: =(-2.997-1.974-0) -> -4.971 | J111: 0.524 | K111: 0.001 | L111: 0.0699 | M111: 14.6 | N111: 1
E112: Multiple vehicle | H112: C-D road | I112: =(-2.997-0-0) -> -2.997 | J112: 0.524 | K112: 0.001 | L112: 0.0699 | M112: 14.6 | N112: 1
E113: Single vehicle | H113: Entrance | I113: =(-2.848+0.882-0) -> -1.966 | J113: 0.718 | K113: 0.001 | L113: 0 | M113: 7.91 | N113: 1
E114: Single vehicle | H114: Exit | I114: =(-2.848+1.203-0) -> -1.645 | J114: 0.718 | K114: 0.001 | L114: 0 | M114: 7.91 | N114: 1
E115: Single vehicle | H115: C-D road | I115: =(-2.848+0-0) -> -2.848 | J115: 0.718 | K115: 0.001 | L115: 0 | M115: 7.91 | N115: 1
D116: 2 | E116: Multiple vehicle | H116: Entrance | I116: =(-2.515-0.508-0) -> -3.023 | J116: 0.524 | K116: 0.001 | L116: 0.0699 | M116: 14.6 | N116: 1
E117: Multiple vehicle | H117: Exit | I117: =(-2.515-1.974-0) -> -4.489 | J117: 0.524 | K117: 0.001 | L117: 0.0699 | M117: 14.6 | N117: 1
E118: Multiple vehicle | H118: C-D road | I118: =(-2.515-0-0) -> -2.515 | J118: 0.524 | K118: 0.001 | L118: 0.0699 | M118: 14.6 | N118: 1
E119: Single vehicle | H119: Entrance | I119: =(-2.881+0.882-0) -> -1.999 | J119: 0.718 | K119: 0.001 | L119: 0 | M119: 7.91 | N119: 1
E120: Single vehicle | H120: Exit | I120: =(-2.881+1.203-0) -> -1.678 | J120: 0.718 | K120: 0.001 | L120: 0 | M120: 7.91 | N120: 1
E121: Single vehicle | H121: C-D road | I121: =(-2.881+0-0) -> -2.881 | J121: 0.718 | K121: 0.001 | L121: 0 | M121: 7.91 | N121: 1
B122: Ramp Segment Property-Damage-Only Crash Frequency Models | I122: Model: exp(a + b ln[c AADTr] + d [c AADTr]) L
B123: Area Type | D123: Through Lanes | E123: Number of Vehicles Involved | H123: Location | I123: a | J123: b | K123: c | L123: d | M123: Inverse Disp. (K), mi | N123: Calib. Factor (C)
B125: Rural | D125: 1 | E125: Multiple vehicle | H125: Entrance | I125: =(-3.311-0.508) -> -3.819 | J125: 1.256 | K125: 0.001 | L125: 0 | M125: 12.7 | N125: 1
E126: Multiple vehicle | H126: Exit | I126: =(-3.311-1.54) -> -4.851 | J126: 1.256 | K126: 0.001 | L126: 0 | M126: 12.7 | N126: 1
E127: Multiple vehicle | H127: C-D road | I127: =(-3.311-0) -> -3.311 | J127: 1.256 | K127: 0.001 | L127: 0 | M127: 12.7 | N127: 1
E128: Single vehicle | H128: Entrance | I128: =(-2.659+0.944-0.231) -> -1.946 | J128: 0.689 | K128: 0.001 | L128: 0 | M128: 9.77 | N128: 1
E129: Single vehicle | H129: Exit | I129: =(-2.659+1.151-0.231) -> -1.739 | J129: 0.689 | K129: 0.001 | L129: 0 | M129: 9.77 | N129: 1
E130: Single vehicle | H130: C-D road | I130: =(-2.659+0-0.231) -> -2.89 | J130: 0.689 | K130: 0.001 | L130: 0 | M130: 9.77 | N130: 1
B131: Urban | D131: 1 | E131: Multiple vehicle | H131: Entrance | I131: =(-3.311-0.508) -> -3.819 | J131: =J125 -> 1.256 | K131: 0.001 | L131: 0 | M131: 12.7 | N131: 1
E132: Multiple vehicle | H132: Exit | I132: =(-3.311-1.54) -> -4.851 | J132: 1.256 | K132: 0.001 | L132: 0 | M132: 12.7 | N132: 1
E133: Multiple vehicle | H133: C-D road | I133: =(-3.311-0) -> -3.311 | J133: 1.256 | K133: 0.001 | L133: 0 | M133: 12.7 | N133: 1
E134: Single vehicle | H134: Entrance | I134: =(-2.659+0.944-0) -> -1.715 | J134: 0.689 | K134: 0.001 | L134: 0 | M134: 9.77 | N134: 1
E135: Single vehicle | H135: Exit | I135: =(-2.659+1.151-0) -> -1.508 | J135: 0.689 | K135: 0.001 | L135: 0 | M135: 9.77 | N135: 1
E136: Single vehicle | H136: C-D road | I136: =(-2.659+0-0) -> -2.659 | J136: 0.689 | K136: 0.001 | L136: 0 | M136: 9.77 | N136: 1
D137: 2 | E137: Multiple vehicle | H137: Entrance | I137: =(-2.475-0.508) -> -2.983 | J137: 1.256 | K137: 0.001 | L137: 0 | M137: 12.7 | N137: 1
E138: Multiple vehicle | H138: Exit | I138: =(-2.475-1.54) -> -4.015 | J138: 1.256 | K138: 0.001 | L138: 0 | M138: 12.7 | N138: 1
E139: Multiple vehicle | H139: C-D road | I139: =(-2.475-0) -> -2.475 | J139: 1.256 | K139: 0.001 | L139: 0 | M139: 12.7 | N139: 1
E140: Single vehicle | H140: Entrance | I140: =(-2.344+0.944-0) -> -1.4 | J140: 0.689 | K140: 0.001 | L140: 0 | M140: 9.77 | N140: 1
E141: Single vehicle | H141: Exit | I141: =(-2.344+1.151-0) -> -1.193 | J141: 0.689 | K141: 0.001 | L141: 0 | M141: 9.77 | N141: 1
E142: Single vehicle | H142: C-D road | I142: =(-2.344+0-0) -> -2.344 | J142: 0.689 | K142: 0.001 | L142: 0 | M142: 9.77 | N142: 1
B143: Ramp Segment Crash Severity Model
L144: Calibration factor | N144: 1
B145: Ramp Segment Crash Distribution
B146: Area Type | D146: Crash Type | F146: Crash Type Category | I146: Proportion of Crashes by Severity Level for Specific Models
I147: C-D Road | K147: Entrance Ramp | M147: Exit Ramp
I148: FI | J148: PDO | K148: FI | L148: PDO | M148: FI | N148: PDO
B149: Rural | D149: Multiple vehicle | F149: Head-on | I149: =I162 -> 0.015 | J149: 0.009 | K149: =I149 -> 0.015 | L149: 0.009 | M149: =I149 -> 0.015 | N149: 0.009
F150: Right-angle | I150: 0.01 | J150: 0.005 | K150: 0.01 | L150: 0.005 | M150: 0.01 | N150: 0.005
F151: Rear-end | I151: 0.707 | J151: 0.55 | K151: 0.707 | L151: 0.55 | M151: 0.707 | N151: 0.55
F152: Sideswipe | I152: 0.129 | J152: 0.335 | K152: 0.129 | L152: 0.335 | M152: 0.129 | N152: 0.335
F153: Other multiple-vehicle crash | I153: 0.139 | J153: 0.101 | K153: 0.139 | L153: 0.101 | M153: 0.139 | N153: 0.101
H154: MV Total: | I154: =SUM(I149:I153) -> 1 | J154: 1 | K154: 1 | L154: 1 | M154: 1 | N154: 1
D155: Single vehicle | F155: Crash with animal | I155: 0.012 | J155: 0.022 | K155: =I155 -> 0.012 | L155: 0.022 | M155: =I155 -> 0.012 | N155: 0.022
F156: Crash with fixed object | I156: 0.422 | J156: 0.538 | K156: 0.422 | L156: 0.538 | M156: 0.422 | N156: 0.538
F157: Crash with other object | I157: 0 | J157: 0.011 | K157: 0 | L157: 0.011 | M157: 0 | N157: 0.011
F158: Crash with parked vehicle | I158: 0.024 | J158: 0.055 | K158: 0.024 | L158: 0.055 | M158: 0.024 | N158: 0.055
F159: Other single-vehicle crash | I159: 0.542 | J159: 0.374 | K159: 0.542 | L159: 0.374 | M159: 0.542 | N159: 0.374
H160: SV Total: | I160: =SUM(I155:I159) -> 1 | J160: 1 | K160: 1 | L160: 1 | M160: 1 | N160: 1
B162: Urban | D162: Multiple vehicle | F162: Head-on | I162: 0.015 | J162: 0.009 | K162: =I162 -> 0.015 | L162: 0.009 | M162: =I162 -> 0.015 | N162: 0.009
F163: Right-angle | I163: 0.01 | J163: 0.005 | K163: 0.01 | L163: 0.005 | M163: 0.01 | N163: 0.005
F164: Rear-end | I164: 0.707 | J164: 0.55 | K164: 0.707 | L164: 0.55 | M164: 0.707 | N164: 0.55
F165: Sideswipe | I165: 0.129 | J165: 0.335 | K165: 0.129 | L165: 0.335 | M165: 0.129 | N165: 0.335
F166: Other multiple-vehicle crash | I166: 0.139 | J166: 0.101 | K166: 0.139 | L166: 0.101 | M166: 0.139 | N166: 0.101
H167: MV Total: | I167: =SUM(I162:I166) -> 1 | J167: 1 | K167: 1 | L167: 1 | M167: 1 | N167: 1
D168: Single vehicle | F168: Crash with animal | I168: 0.003 | J168: 0.005 | K168: =I168 -> 0.003 | L168: =J168 -> 0.005 | M168: =I168 -> 0.003 | N168: 0.005
F169: Crash with fixed object | I169: 0.718 | J169: 0.834 | K169: =I169 -> 0.718 | L169: =J169 -> 0.834 | M169: 0.718 | N169: 0.834
F170: Crash with other object | I170: 0.015 | J170: 0.023 | K170: =I170 -> 0.015 | L170: 0.023 | M170: 0.015 | N170: 0.023
F171: Crash with parked vehicle | I171: 0.012 | J171: 0.012 | K171: 0.012 | L171: 0.012 | M171: 0.012 | N171: 0.012
F172: Other single-vehicle crash | I172: 0.252 | J172: 0.126 | K172: 0.252 | L172: 0.126 | M172: 0.252 | N172: 0.126
H173: SV Total: | I173: =SUM(I168:I172) -> 1 | J173: 1 | K173: 1 | L173: 1 | M173: 1 | N173: 1
B177: Ramp Terminal Model Calibration Factors and Default Values
B178: Ramp Terminal Fatal-and-Injury Crash Frequency Models | H178: Model: exp(a + b ln[c AADTin/2 + c AADTout/2] + d ln[c AADTex + c AADTen])
B179: Area Type | D179: Terminal Config. | E179: Control Type | G179: Through Lanes | I179: a | J179: b | K179: c | L179: d | M179: Inverse Disp. (K) | N179: Calib. Factor (C)
B181: Rural | D181: D3ex | E181: One-way stop | H181: 2 | I181: =-3.223+0.324 -> -2.899 | J181: 0.582 | K181: 0.001 | L181: 0.899 | M181: 2.16 | N181: 1
H182: 3 | I182: =-3.223+0.324 -> -2.899 | J182: 0.582 | K182: 0.001 | L182: 0.899 | M182: 2.16 | N182: =N181 -> 1
H183: 4 | I183: =-3.223+0.324 -> -2.899 | J183: 0.582 | K183: 0.001 | L183: 0.899 | M183: 2.16 | N183: =N182 -> 1
E184: Signalized | H184: 2 | I184: =-1.672+0.16*H184 -> -1.352 | J184: 0.379 | K184: 0.001 | L184: 0.394 | M184: 8.72 | N184: 1
H185: 3 | I185: =-1.672+0.16*H185 -> -1.192 | J185: 0.379 | K185: 0.001 | L185: 0.394 | M185: 8.72 | N185: =N184 -> 1
H186: 4 | I186: =-1.672+0.16*H186 -> -1.032 | J186: 0.379 | K186: 0.001 | L186: 0.394 | M186: 8.72 | N186: =N185 -> 1
D187: D3en | E187: One-way stop | H187: 2 | I187: =-3.141+0.324 -> -2.817 | J187: 0.709 | K187: 0.001 | L187: 0.73 | M187: 0.918 | N187: =N181 -> 1
H188: 3 | I188: =-3.141+0.324 -> -2.817 | J188: 0.709 | K188: 0.001 | L188: 0.73 | M188: 0.918 | N188: =N182 -> 1
H189: 4 | I189: =-3.141+0.324 -> -2.817 | J189: 0.709 | K189: 0.001 | L189: 0.73 | M189: 0.918 | N189: 1
E190: Signalized | H190: 2 | I190: =-2.388+0.16*H190 -> -2.068 | J190: 0.265 | K190: 0.001 | L190: 0.905 | M190: 5.37 | N190: 1
H191: 3 | I191: =-2.388+0.16*H191 -> -1.908 | J191: 0.265 | K191: 0.001 | L191: 0.905 | M191: 5.37 | N191: 1
H192: 4 | I192: =-2.388+0.16*H192 -> -1.748 | J192: 0.265 | K192: 0.001 | L192: 0.905 | M192: 5.37 | N192: 1
D193: D4 | E193: One-way stop | H193: 2 | I193: =-3.064+0.324 -> -2.74 | J193: 1.008 | K193: 0.001 | L193: 0.177 | M193: 2.58 | N193: =N187 -> 1
H194: 3 | I194: =-3.064+0.324 -> -2.74 | J194: 1.008 | K194: 0.001 | L194: 0.177 | M194: 2.58 | N194: 1
H195: 4 | I195: =-3.064+0.324 -> -2.74 | J195: 1.008 | K195: 0.001 | L195: 0.177 | M195: 2.58 | N195: 1
E196: Signalized | H196: 2 | I196: =-2.975+0.16*H196 -> -2.655 | J196: 1.191 | K196: 0.001 | L196: 0.131 | M196: 11.5 | N196: 1
H197: 3 | I197: =-2.975+0.16*H197 -> -2.495 | J197: 1.191 | K197: 0.001 | L197: 0.131 | M197: 11.5 | N197: 1
H198: 4 | I198: =-2.975+0.16*H198 -> -2.335 | J198: 1.191 | K198: 0.001 | L198: 0.131 | M198: 11.5 | N198: 1
D199: A4 | E199: One-way stop | H199: 2 | I199: =-3.223+0.324 -> -2.899 | J199: 0.582 | K199: 0.001 | L199: 0.899 | M199: 2.16 | N199: =N193 -> 1
H200: 3 | I200: =-3.223+0.324 -> -2.899 | J200: 0.582 | K200: 0.001 | L200: 0.899 | M200: 2.16 | N200: 1
H201: 4 | I201: =-3.223+0.324 -> -2.899 | J201: 0.582 | K201: 0.001 | L201: 0.899 | M201: 2.16 | N201: 1
E202: Signalized | H202: 2 | I202: =-1.672+0.16*H202 -> -1.352 | J202: 0.379 | K202: 0.001 | L202: 0.394 | M202: 8.72 | N202: 1
H203: 3 | I203: =-1.672+0.16*H203 -> -1.192 | J203: 0.379 | K203: 0.001 | L203: 0.394 | M203: 8.72 | N203: 1
H204: 4 | I204: =-1.672+0.16*H204 -> -1.032 | J204: 0.379 | K204: 0.001 | L204: 0.394 | M204: 8.72 | N204: 1
D205: B4 | E205: One-way stop | H205: 2 | I205: =-3.141+0.324 -> -2.817 | J205: 0.709 | K205: 0.001 | L205: 0.73 | M205: 0.918 | N205: =N199 -> 1
H206: 3 | I206: =-3.141+0.324 -> -2.817 | J206: 0.709 | K206: 0.001 | L206: 0.73 | M206: 0.918 | N206: 1
H207: 4 | I207: =-3.141+0.324 -> -2.817 | J207: 0.709 | K207: 0.001 | L207: 0.73 | M207: 0.918 | N207: 1
E208: Signalized | H208: 2 | I208: =-2.388+0.16*H208 -> -2.068 | J208: 0.265 | K208: 0.001 | L208: 0.905 | M208: 5.37 | N208: 1
H209: 3 | I209: =-2.388+0.16*H209 -> -1.908 | J209: 0.265 | K209: 0.001 | L209: 0.905 | M209: 5.37 | N209: 1
H210: 4 | I210: =-2.388+0.16*H210 -> -1.748 | J210: 0.265 | K210: 0.001 | L210: 0.905 | M210: 5.37 | N210: 1
D211: A2 | E211: One-way stop | H211: 2 | I211: =-2.687+0.324 -> -2.363 | J211: 0.26 | K211: 0.001 | L211: 0.947 | M211: 3.4 | N211: =N205 -> 1
H212: 3 | I212: =-2.687+0.324 -> -2.363 | J212: 0.26 | K212: 0.001 | L212: 0.947 | M212: 3.4 | N212: 1
H213: 4 | I213: =-2.687+0.324 -> -2.363 | J213: 0.26 | K213: 0.001 | L213: 0.947 | M213: 3.4 | N213: 1
... 193 more rows

Sheet Temp
A1: 0 | B1: 0 | C1: 0 | D1: 0 | E1: 0 | F1: 0 | G1: 0 | H1: 0 | I1: 0 | J1: 0 | K1: 0 | L1: 0 | M1: 0 | N1: 0 | O1: 0 | P1: 0
